﻿"organisation_name","service_responsible","supplier_name","supplier_code","payment_date","transaction_ref","net_amount_by_line_item","irrecoverable_vat","purpose_of_spend","procurement_category_name","transaction_type","payment_type","card_transaction","invoice_date","financial_year","financial_period","supplier_invoice_reference","cost_centre_code","cost_centre_desc","account_code","account_desc"
"GUILDFORD BOROUGH COUNCIL","Street Cleansing","Pristine Gardens","698350","15/04/2021",30016777,120,0,"Services","Grounds Maintenance Providers","II","BACS","None",2021-02-28 00:00:00,"2021","01","1952","K4551","Street Cleansing","D6004","Services"
"GUILDFORD BOROUGH COUNCIL","Guildford Museum","Amazon Payments Europe S.C.A.","951330","27/04/2021",30016785,22.3,0,"Equipment","Other Retailers","II","BACS","None",2021-02-27 00:00:00,"2021","01","INV-GB-117633301-2021-4879","A5511","Museum","D2001","Equipment"
"GUILDFORD BOROUGH COUNCIL","Resources Caseworker","Hays Specialist Recruitment Limited","156250","22/04/2021",30017179,749.13,0,"Agency","Other Recruitment Agencies And Service Providers","II","BACS","None",2021-03-02 00:00:00,"2021","01","1011151690","G3550","Resources Caseworker","A5191","Agency"
"GUILDFORD BOROUGH COUNCIL","Woking Road Depot","Guildford Lock And Safe Limited","229400","13/04/2021",30017253,26.4,0,"Equipment","Keys And Locksmiths","II","BACS","None",2021-03-04 00:00:00,"2021","01","27492","B4452","Woking Road Depot","D2001","Equipment"
"GUILDFORD BOROUGH COUNCIL","Acquisition of Land and Buildings","Freeths LLP (London)","885990","27/04/2021",30017930,5976.73,0,"Legal Expenses","Other Legal Service Providers","II","BACS","None",2020-09-30 00:00:00,"2021","01","204651","N10031","Purchase 14, 14A, 14B New Road","1395","Legal Expenses"
"GUILDFORD BOROUGH COUNCIL","Lead Specialist - Information Governance","Fivium Limited","878770","20/04/2021",30018279,3125,0,"Grants And Subscriptions","Software As A Service Providers","II","BACS","None",2021-03-01 00:00:00,"2021","01","INV-2219","G4520","Information Governance Service","D9001","Grants And Subscriptions"
"GUILDFORD BOROUGH COUNCIL","Resources Caseworker","Hays Specialist Recruitment Limited","156250","20/04/2021",30018292,743.5,0,"Agency","Other Recruitment Agencies And Service Providers","II","BACS","None",2021-03-15 00:00:00,"2021","01","1011176588","G3550","Resources Caseworker","A5191","Agency"
"GUILDFORD BOROUGH COUNCIL","Lead Specialist - HR","Wealden Leisure Limited","702140","04/05/2021",30018552,140.8,0,"Pension Added Years","Sports And Leisure Centres","II","BACS","None",2021-03-18 00:00:00,"2021","01","196651","G2555","HR Services","A7180","Pension Added Years"
"GUILDFORD BOROUGH COUNCIL","Lead Specialist - Finance","Hays Specialist Recruitment Limited","156250","15/04/2021",30018577,2962,0,"Agency","Other Recruitment Agencies And Service Providers","II","BACS","None",2021-02-22 00:00:00,"2021","01","1011095709","G3593","Procurement Services","A5191","Agency"
"GUILDFORD BOROUGH COUNCIL","Licensing","Mink Farm Boarding Kennels and Cattery","968950","13/04/2021",30019030,1430.25,0,"Services","Animal Boarding Service Providers","II","BACS","None",2021-02-28 00:00:00,"2021","01","43166","H2100","Licensing Services","D6004","Services"
"GUILDFORD BOROUGH COUNCIL","Refuse and Recycling","R S Components Limited","699000","27/04/2021",30019074,260.4,0,"Equipment","","II","BACS","None",2021-03-19 00:00:00,"2021","01","2202193781","K3551","Refuse - Domestic","D2001","Equipment"
"GUILDFORD BOROUGH COUNCIL","Vehicle Maintenance","R S Components Limited","699000","27/04/2021",30019074,260.4,0,"Equipment","","II","BACS","None",2021-03-19 00:00:00,"2021","01","2202193781","K5551","Fleet Workshops","D2001","Equipment"
"GUILDFORD BOROUGH COUNCIL","Off Street Parking","Harpers Door Specialists","759110","15/04/2021",30019084,300,0,"Asset Maintenance","Security Shutter, Door And Gate Contractors","II","BACS","None",2021-03-25 00:00:00,"2021","01","3708","B2291","York Road Mscp","B1001","Asset Maintenance"
"GUILDFORD BOROUGH COUNCIL","Off Street Parking","Restore Datashred Limited","753320","04/05/2021",30019176,69.51,0,"Services","Confidential Waste Disposal Providers","II","BACS","None",2021-02-28 00:00:00,"2021","01","1250792","B2111","Car Parks - Administration","D6004","Services"
"GUILDFORD BOROUGH COUNCIL","Food Safety","Royal Mail Group Ltd (Chesterfield)","878030","13/04/2021",30019242,6.86,0,"Postage","","II","BACS","None",2021-03-02 00:00:00,"2021","01","9062537067","C1111","Food And Safety Service","D5003","Postage"
"GUILDFORD BOROUGH COUNCIL","Development Control","Alexander Advertising (International) Ltd","454730","20/04/2021",30019257,414.12,0,"Advertising, Publicity & Promotion","Full Service Marketing Agencies","II","BACS","None",2021-03-12 00:00:00,"2021","01","1823G21","D5100","Development Control - Fee Earn","D5002","Advertising, Publicity & Promotion"
"GUILDFORD BOROUGH COUNCIL","Crematorium","Ant Structures Ltd","933760","15/04/2021",30019262,3152,0,"Contractor Payments","Scaffolders","II","BACS","None",2021-02-28 00:00:00,"2021","01","3922","P05012","Broadwater Cottage","1233","Contractor Payments"
"GUILDFORD BOROUGH COUNCIL","Lead Specialist - ICT","Nouveau Solutions Ltd","568970","20/04/2021",30019333,661.64,0,"ICT Software","It Support Service Providers","II","BACS","None",2021-03-26 00:00:00,"2021","01","NSLI39169","G3548","ICT Technical & Infrastructure","D7002","ICT Software"
"GUILDFORD BOROUGH COUNCIL","Guildford Museum","Rapid Office Systems Limited","706600","22/04/2021",30019378,1465,0,"Furniture","Interior Designers","II","BACS","None",2021-03-30 00:00:00,"2021","01","103573","A5511","Museum","D2002","Furniture"
"GUILDFORD BOROUGH COUNCIL","Street Cleansing","Munihire Ltd","993920","04/05/2021",30019408,3220,0,"External Vehicle Hire","","II","BACS","None",2021-03-29 00:00:00,"2021","01","MHL7768","K4551","Street Cleansing","C3001","External Vehicle Hire"
"GUILDFORD BOROUGH COUNCIL","Guildford Museum","Harpers Group (Woking) Ltd","237300","15/04/2021",30019415,1169,0,"Furniture","Photographic Equipment Suppliers","II","BACS","None",2021-03-22 00:00:00,"2021","01","1369","A5511","Museum","D2002","Furniture"
"GUILDFORD BOROUGH COUNCIL","Lead Specialist - Finance","Hays Specialist Recruitment Limited","156250","20/04/2021",30019419,2278,0,"Agency","Other Recruitment Agencies And Service Providers","II","BACS","None",2021-02-08 00:00:00,"2021","01","1011069430","G3593","Procurement Services","A5191","Agency"
"GUILDFORD BOROUGH COUNCIL","Crematorium","The Yaboo Co Ltd","792870","27/04/2021",30019731,2280,0,"Services","Media Production Agencies","II","BACS","None",2021-03-31 00:00:00,"2021","01","55389","A1500","Crematorium","D6004","Services"
"GUILDFORD BOROUGH COUNCIL","Crematorium","The Yaboo Co Ltd","792870","27/04/2021",30019745,786,0,"Services","Media Production Agencies","II","BACS","None",2021-03-31 00:00:00,"2021","01","55386","A1500","Crematorium","D6004","Services"
"GUILDFORD BOROUGH COUNCIL","Tenant Services","Chartered Institute Of Housing","128200","27/04/2021",30019748,197,0,"Staff Costs","","II","BACS","None",2021-03-31 00:00:00,"2021","01","13321","M1151","Tenants Services (BHS)","A7100","Staff Costs"
"GUILDFORD BOROUGH COUNCIL","Crematorium","Cooper & Withycombe Ltd","146900","27/04/2021",30019750,1516.25,0,"Consultants Fees","Other Construction Consultants","II","BACS","None",2021-03-31 00:00:00,"2021","01","21-3526","P05012","Broadwater Cottage","1221","Consultants Fees"
"GUILDFORD BOROUGH COUNCIL","Crematorium","The Yaboo Co Ltd","792870","27/04/2021",30019757,20,0,"Services","Media Production Agencies","II","BACS","None",2021-03-31 00:00:00,"2021","01","55391","A1500","Crematorium","D6004","Services"
"GUILDFORD BOROUGH COUNCIL","Insurance Revenue Account","Aon UK Limited","851950","04/05/2021",30019762,242068.2,0,"Insurance","Other Insurance Service Providers","II","BACS","None",2021-03-16 00:00:00,"2021","01","505729683","F8531","Insurance Revenue Account","A7124","Insurance"
"GUILDFORD BOROUGH COUNCIL","Investment Properties","Fitzgerald Building Services Ltd","824480","15/04/2021",30019766,200,0,"Asset Maintenance","General Builders","II","BACS","None",2021-03-30 00:00:00,"2021","01","2071","B6111","Investment Property","B1001","Asset Maintenance"
"GUILDFORD BOROUGH COUNCIL","Crematorium","The Yaboo Co Ltd","792870","27/04/2021",30019770,295,0,"Services","Media Production Agencies","II","BACS","None",2021-03-31 00:00:00,"2021","01","55393","A1500","Crematorium","D6004","Services"
"GUILDFORD BOROUGH COUNCIL","Crematorium","The Yaboo Co Ltd","792870","27/04/2021",30019777,90,0,"Services","Media Production Agencies","II","BACS","None",2021-03-31 00:00:00,"2021","01","55388","A1500","Crematorium","D6004","Services"
"GUILDFORD BOROUGH COUNCIL","Homelessness Support","London Hotel Group Ltd","938070","13/04/2021",30019783,920,0,"Emergency Accomodation","Third Party Supplier","II","BACS","None",2021-03-09 00:00:00,"2021","01","D1547","C3311","Homelessness","D8009","Emergency Accomodation"
"GUILDFORD BOROUGH COUNCIL","Crematorium","The Yaboo Co Ltd","792870","27/04/2021",30019786,40,0,"Services","Media Production Agencies","II","BACS","None",2021-03-31 00:00:00,"2021","01","55385","A1500","Crematorium","D6004","Services"
"GUILDFORD BOROUGH COUNCIL","Markets","Gidden Place Ltd","215900","27/04/2021",30019791,-155,0,"Publicity & Marketing","Graphic Design And Creative Agencies","II","BACS","None",2021-03-31 00:00:00,"2021","01","1062","F5550","Farmers Market","1578","Publicity & Marketing"
"GUILDFORD BOROUGH COUNCIL","Homelessness Support","London Crystal Palace Ltd","1000063","27/04/2021",30019792,400,0,"Emergency Accomodation","","II","BACS","None",2021-03-31 00:00:00,"2021","01","LCP-1120","C3311","Homelessness","D8009","Emergency Accomodation"
"GUILDFORD BOROUGH COUNCIL","Crematorium","The Yaboo Co Ltd","792870","27/04/2021",30019793,360,0,"Services","Media Production Agencies","II","BACS","None",2021-03-31 00:00:00,"2021","01","55392","A1500","Crematorium","D6004","Services"
"GUILDFORD BOROUGH COUNCIL","Vehicle Maintenance","FASTSIGNS (Guildford) Ltd","199300","04/05/2021",30019794,3500,0,"Repair And Maintenance Of Vehicles","Building Signage Suppliers","II","BACS","None",2021-04-01 00:00:00,"2021","01","858--17448","K5551","Fleet Workshops","C1002","Repair And Maintenance Of Vehicles"
"GUILDFORD BOROUGH COUNCIL","Insurance Revenue Account","Aon UK Limited","851950","04/05/2021",30019796,64352.23,0,"Insurance","Other Insurance Service Providers","II","BACS","None",2021-03-16 00:00:00,"2021","01","505728657","F8531","Insurance Revenue Account","A7124","Insurance"
"GUILDFORD BOROUGH COUNCIL","Vehicle Maintenance","Digital Tachograph Centre Ltd","905220","04/05/2021",30019924,95,0,"Repair And Maintenance Of Vehicles","Other Vehicle Equipment Providers","II","BACS","None",2021-03-26 00:00:00,"2021","01","44288","K5551","Fleet Workshops","C1002","Repair And Maintenance Of Vehicles"
"GUILDFORD BOROUGH COUNCIL","Equity Share Administration","Clarke Gammon Wellers","150290","22/04/2021",30019938,375,0,"Valuers Fees","Property Letting And Estate Agents","II","BACS","None",2021-04-01 00:00:00,"2021","01","14774","M1181","Sale Of Council Houses (BHS)","D6002","Valuers Fees"
"GUILDFORD BOROUGH COUNCIL","Public Relations","NewZapp Communications","1000196","27/04/2021",30019941,5500,0,"Advertising, Publicity & Promotion","","II","BACS","None",2021-04-01 00:00:00,"2021","01","INV-102520","F5551","Public Relations & Marketing","D5002","Advertising, Publicity & Promotion"
"GUILDFORD BOROUGH COUNCIL","Countryside and Parks Services","Rigby Taylor Limited","714600","27/04/2021",30019943,1620,0,"Materials","Gardening Equipment Suppliers","II","BACS","None",2021-04-01 00:00:00,"2021","01","RSIN0367525","A1100","Horticulture","D2003","Materials"
"GUILDFORD BOROUGH COUNCIL","Countryside and Parks Services","Rigby Taylor Limited","714600","27/04/2021",30019943,25,0,"Materials","Gardening Equipment Suppliers","II","BACS","None",2021-04-01 00:00:00,"2021","01","RSIN0367525","A1100","Horticulture","D2003","Materials"
"GUILDFORD BOROUGH COUNCIL","Countryside and Parks Services","Rigby Taylor Limited","714600","27/04/2021",30019943,25,0,"Materials","Gardening Equipment Suppliers","II","BACS","None",2021-04-01 00:00:00,"2021","01","RSIN0367525","A1100","Horticulture","D2003","Materials"
"GUILDFORD BOROUGH COUNCIL","Other Short Term Creditors","My Staff Shop Limited","971670","15/04/2021",30019945,2601,0,"Payments","Other Business Service Providers","II","BACS","None",2021-04-05 00:00:00,"2021","01","INV-5797","L08013","Sals Dedns - Childcare Voucher","2489","Payments"
"GUILDFORD BOROUGH COUNCIL","Vehicle Maintenance","Digital Tachograph Centre Ltd","905220","04/05/2021",30019948,95,0,"Repair And Maintenance Of Vehicles","Other Vehicle Equipment Providers","II","BACS","None",2021-03-31 00:00:00,"2021","01","44332","K5551","Fleet Workshops","C1002","Repair And Maintenance Of Vehicles"
"GUILDFORD BOROUGH COUNCIL","Vehicle Maintenance","Inchcape Retail Ltd t/a Inchcape Jaguar Land Rover","1000327","04/05/2021",30019956,4.07,0,"Repair And Maintenance Of Vehicles","","II","BACS","None",2021-03-31 00:00:00,"2021","01","74507163","K5551","Fleet Workshops","C1002","Repair And Maintenance Of Vehicles"
"GUILDFORD BOROUGH COUNCIL","IT Renewals","Bolderwood Solutions Ltd","892850","13/04/2021",30019967,1177.5,0,"Software","Computer Systems Integrators","II","BACS","None",2021-03-10 00:00:00,"2021","01","GBC-0073","P81002","IT Renewals Reserve Funded General","1296","Software"
"GUILDFORD BOROUGH COUNCIL","Business Improvement","Amazon Payments Europe S.C.A.","951330","27/04/2021",30019970,48.32,0,"Equipment","Other Retailers","II","BACS","None",2021-04-04 00:00:00,"2021","01","INV-GB-1177588705-2021-41","G3531","Future Guildford","D2001","Equipment"
"GUILDFORD BOROUGH COUNCIL","Audit Management","Amazon Payments Europe S.C.A.","951330","27/04/2021",30019970,48.32,0,"Equipment","Other Retailers","II","BACS","None",2021-04-04 00:00:00,"2021","01","INV-GB-1177588705-2021-41","G3531","Future Guildford","D2001","Equipment"
"GUILDFORD BOROUGH COUNCIL","Crematorium","Restore Datashred Limited","753320","27/04/2021",30019978,139.01,0,"Services","Confidential Waste Disposal Providers","II","BACS","None",2021-03-31 00:00:00,"2021","01","1265985","A1500","Crematorium","D6004","Services"
"GUILDFORD BOROUGH COUNCIL","Homelessness Support","Top Mill Limited","898090","29/04/2021",30020020,420,0,"Emergency Accomodation","Hotels","II","BACS","None",2021-04-05 00:00:00,"2021","01","4065","C3311","Homelessness","D8009","Emergency Accomodation"
"GUILDFORD BOROUGH COUNCIL","Vehicle Maintenance","Handsfree Group Limited","945250","04/05/2021",30020021,36,0,"Vehicle Operating Costs","Third Party Supplier","II","BACS","None",2021-04-01 00:00:00,"2021","01","2013966","K5551","Fleet Workshops","C1001","Vehicle Operating Costs"
"GUILDFORD BOROUGH COUNCIL","Industrial Estates","Eton Environmental Group Ltd","815200","27/04/2021",30020022,400,0,"Asset Maintenance","Asbestos Removal Service Providers","II","BACS","None",2021-03-31 00:00:00,"2021","01","37321","B5331","Lysons Avenue Small Units","B1001","Asset Maintenance"
"GUILDFORD BOROUGH COUNCIL","Vehicle Maintenance","Certas Energy UK Limited","759300","04/05/2021",30020023,2902.5,0,"Vehicle Operating Costs","Oil Fuel Suppliers","II","BACS","None",2021-04-01 00:00:00,"2021","01","5565415","K5551","Fleet Workshops","C1001","Vehicle Operating Costs"
"GUILDFORD BOROUGH COUNCIL","Homelessness Support","Top Mill Limited","898090","29/04/2021",30020027,60,0,"Emergency Accomodation","Hotels","II","BACS","None",2021-04-05 00:00:00,"2021","01","4067","C3311","Homelessness","D8009","Emergency Accomodation"
"GUILDFORD BOROUGH COUNCIL","Resources Caseworker","Hays Specialist Recruitment Limited","156250","29/04/2021",30020029,743.51,0,"Agency","Other Recruitment Agencies And Service Providers","II","BACS","None",2021-04-06 00:00:00,"2021","01","1011233090","G3550","Resources Caseworker","A5191","Agency"
"GUILDFORD BOROUGH COUNCIL","Homelessness Support","Project 114 Ltd","847120","29/04/2021",30020031,1395,0,"Emergency Accomodation","Property Letting And Estate Agents","II","BACS","None",2021-04-06 00:00:00,"2021","01","3185","C3311","Homelessness","D8009","Emergency Accomodation"
"GUILDFORD BOROUGH COUNCIL","Homelessness Support","Croydon Court Ltd","996150","22/04/2021",30020037,540,0,"Emergency Accomodation","","II","BACS","None",2021-03-30 00:00:00,"2021","01","LCH-1022","C3311","Homelessness","D8009","Emergency Accomodation"
"GUILDFORD BOROUGH COUNCIL","Homelessness Support","Top Mill Limited","898090","29/04/2021",30020045,490,0,"Emergency Accomodation","Hotels","II","BACS","None",2021-04-05 00:00:00,"2021","01","4066","C3311","Homelessness","D8009","Emergency Accomodation"
"GUILDFORD BOROUGH COUNCIL","Resources Caseworker","Hays Specialist Recruitment Limited","156250","29/04/2021",30020046,766.03,0,"Agency","Other Recruitment Agencies And Service Providers","II","BACS","None",2021-04-06 00:00:00,"2021","01","1011189392","G3550","Resources Caseworker","A5191","Agency"
"GUILDFORD BOROUGH COUNCIL","Resources Caseworker","Hays Specialist Recruitment Limited","156250","29/04/2021",30020052,720.98,0,"Agency","Other Recruitment Agencies And Service Providers","II","BACS","None",2021-04-06 00:00:00,"2021","01","1011233091","G3550","Resources Caseworker","A5191","Agency"
"GUILDFORD BOROUGH COUNCIL","Community Development","Community Foundation For Surrey","774460","29/04/2021",30020055,5809,0,"Grants And Subscriptions","Community Partnerships","II","BACS","None",2021-04-07 00:00:00,"2021","01","2104 Guildford Philanthropy (Matchfunding)","F1127","Community Development","D9001","Grants And Subscriptions"
"GUILDFORD BOROUGH COUNCIL","Grants","Stannah Stairlifts Ltd (Grants only)","766700","22/04/2021",30020056,3581,0,"Outgoing VAT on sales to EU Member states","Stairlift Suppliers","II","BACS","None",2021-03-30 00:00:00,"2021","01","1085293325","N51019","BCF Non Grant Expenditure","1311","Outgoing VAT on sales to EU Member states"
"GUILDFORD BOROUGH COUNCIL","Grants","Stannah Stairlifts Ltd (Grants only)","766700","22/04/2021",30020056,3581,0,"Outgoing VAT on sales to EU Member states","Stairlift Suppliers","II","BACS","None",2021-03-30 00:00:00,"2021","01","1085293325","N51019","BCF Non Grant Expenditure","1311","Outgoing VAT on sales to EU Member states"
"GUILDFORD BOROUGH COUNCIL","Grants","Stannah Stairlifts Ltd (Grants only)","766700","22/04/2021",30020056,3581,0,"Grants To Private Owners","Stairlift Suppliers","II","BACS","None",2021-03-30 00:00:00,"2021","01","1085293325","N51019","BCF Non Grant Expenditure","1311","Grants To Private Owners"
"GUILDFORD BOROUGH COUNCIL","Council Tax","Morgan Hunt UK Limited","729420","27/04/2021",30020327,561.66,0,"Agency","Other Recruitment Agencies And Service Providers","II","BACS","None",2021-04-04 00:00:00,"2021","01","1224844","F6141","Council Tax Collectn Expenses","A5191","Agency"
"GUILDFORD BOROUGH COUNCIL","Government Short Term Debtors","Print For Business Ltd","673000","27/04/2021",30020328,104.8,0,"Debt Royalties/Commisions","Printing Service Providers","II","BACS","None",2021-03-31 00:00:00,"2021","01","71146","J01194","Elections - PCC","2445","Debt Royalties/Commisions"
"GUILDFORD BOROUGH COUNCIL","Government Short Term Debtors","Print For Business Ltd","673000","27/04/2021",30020328,104.8,0,"Debt Royalties/Commisions","Printing Service Providers","II","BACS","None",2021-03-31 00:00:00,"2021","01","71146","J01194","Elections - PCC","2445","Debt Royalties/Commisions"
"GUILDFORD BOROUGH COUNCIL","Government Short Term Debtors","Print For Business Ltd","673000","27/04/2021",30020328,104.8,0,"Polling Station Costs","Printing Service Providers","II","BACS","None",2021-03-31 00:00:00,"2021","01","71146","J01194","Elections - PCC","2445","Polling Station Costs"
"GUILDFORD BOROUGH COUNCIL","Government Short Term Debtors","Print For Business Ltd","673000","27/04/2021",30020328,89.08,0,"Debt Royalties/Commisions","Printing Service Providers","II","BACS","None",2021-03-31 00:00:00,"2021","01","71146","J01195","Elections - SCC","2445","Debt Royalties/Commisions"
"GUILDFORD BOROUGH COUNCIL","Government Short Term Debtors","Print For Business Ltd","673000","27/04/2021",30020328,89.08,0,"Debt Royalties/Commisions","Printing Service Providers","II","BACS","None",2021-03-31 00:00:00,"2021","01","71146","J01195","Elections - SCC","2445","Debt Royalties/Commisions"
"GUILDFORD BOROUGH COUNCIL","Government Short Term Debtors","Print For Business Ltd","673000","27/04/2021",30020328,89.08,0,"Polling Station Costs","Printing Service Providers","II","BACS","None",2021-03-31 00:00:00,"2021","01","71146","J01195","Elections - SCC","2445","Polling Station Costs"
"GUILDFORD BOROUGH COUNCIL","Government Short Term Debtors","Print For Business Ltd","673000","27/04/2021",30020328,2209.8,0,"Debt Royalties/Commisions","Printing Service Providers","II","BACS","None",2021-03-31 00:00:00,"2021","01","71146","J01194","Elections - PCC","2445","Debt Royalties/Commisions"
"GUILDFORD BOROUGH COUNCIL","Government Short Term Debtors","Print For Business Ltd","673000","27/04/2021",30020328,2209.8,0,"Debt Royalties/Commisions","Printing Service Providers","II","BACS","None",2021-03-31 00:00:00,"2021","01","71146","J01194","Elections - PCC","2445","Debt Royalties/Commisions"
"GUILDFORD BOROUGH COUNCIL","Government Short Term Debtors","Print For Business Ltd","673000","27/04/2021",30020328,2209.8,0,"Polling Station Costs","Printing Service Providers","II","BACS","None",2021-03-31 00:00:00,"2021","01","71146","J01194","Elections - PCC","2445","Polling Station Costs"
"GUILDFORD BOROUGH COUNCIL","Executive - Miscellaneous","Thames Water Utilities Ltd","171920","13/04/2021",30020329,651797.16,0,"Consultants Fees","Mains Water Suppliers","II","BACS","None",2021-03-02 00:00:00,"2021","01","CBA2007978","P79104","Wuv - Thames Water Relocation","1221","Consultants Fees"
"GUILDFORD BOROUGH COUNCIL","Off Street Parking","Harpers Door Specialists","759110","15/04/2021",30020331,230,0,"Asset Maintenance","Security Shutter, Door And Gate Contractors","II","BACS","None",2021-04-07 00:00:00,"2021","01","SI-3716","B2277","Castle Mscp","B1001","Asset Maintenance"
"GUILDFORD BOROUGH COUNCIL","Off Street Parking","Harpers Door Specialists","759110","15/04/2021",30020331,100,0,"Asset Maintenance","Security Shutter, Door And Gate Contractors","II","BACS","None",2021-04-07 00:00:00,"2021","01","SI-3716","B2277","Castle Mscp","B1001","Asset Maintenance"
"GUILDFORD BOROUGH COUNCIL","Guildford Museum","Amazon Payments Europe S.C.A.","951330","29/04/2021",30020335,124.16,0,"Specialist Services","Other Retailers","II","BACS","None",2021-04-07 00:00:00,"2021","01","INV-GB-1087989745-2021-419","A5511","Museum","D6009","Specialist Services"
"GUILDFORD BOROUGH COUNCIL","Vehicle Maintenance","Digital Tachograph Centre Ltd","905220","04/05/2021",30020343,95,0,"Repair And Maintenance Of Vehicles","Other Vehicle Equipment Providers","II","BACS","None",2021-04-01 00:00:00,"2021","01","44352","K5551","Fleet Workshops","C1002","Repair And Maintenance Of Vehicles"
"GUILDFORD BOROUGH COUNCIL","Countryside and Parks Services","Saint-Gobain Building Distribution Limited (Jewson)","271200","20/04/2021",30020345,54.54,0,"Materials","Builders Merchants","II","BACS","None",2021-03-25 00:00:00,"2021","01","0652/00100702","A1100","Horticulture","D2003","Materials"
"GUILDFORD BOROUGH COUNCIL","Countryside and Parks Services","Saint-Gobain Building Distribution Limited (Jewson)","271200","20/04/2021",30020345,121.32,0,"Materials","Builders Merchants","II","BACS","None",2021-03-25 00:00:00,"2021","01","0652/00100702","A1100","Horticulture","D2003","Materials"
"GUILDFORD BOROUGH COUNCIL","Countryside and Parks Services","Saint-Gobain Building Distribution Limited (Jewson)","271200","20/04/2021",30020345,173.68,0,"Materials","Builders Merchants","II","BACS","None",2021-03-25 00:00:00,"2021","01","0652/00100702","A1100","Horticulture","D2003","Materials"
"GUILDFORD BOROUGH COUNCIL","Countryside and Parks Services","Saint-Gobain Building Distribution Limited (Jewson)","271200","20/04/2021",30020345,130.77,0,"Materials","Builders Merchants","II","BACS","None",2021-03-25 00:00:00,"2021","01","0652/00100702","A1100","Horticulture","D2003","Materials"
"GUILDFORD BOROUGH COUNCIL","Countryside and Parks Services","Saint-Gobain Building Distribution Limited (Jewson)","271200","20/04/2021",30020345,382.2,0,"Materials","Builders Merchants","II","BACS","None",2021-03-25 00:00:00,"2021","01","0652/00100702","A1100","Horticulture","D2003","Materials"
"GUILDFORD BOROUGH COUNCIL","Housing Benefits","Eden Brown Ltd","829540","29/04/2021",30020346,813.75,0,"Agency","Other Recruitment Agencies And Service Providers","II","BACS","None",2021-04-07 00:00:00,"2021","01","1268775","C4511","Housing Benefits Admin.","A5191","Agency"
"GUILDFORD BOROUGH COUNCIL","Building Maintenance","Simon Property Solution Ltd","807270","15/04/2021",30020347,3167.96,0,"Services","House Builders","II","BACS","None",2021-04-06 00:00:00,"2021","01","183GBC","K1515","Building Maintenance","D6004","Services"
"GUILDFORD BOROUGH COUNCIL","Building Maintenance","Simon Property Solution Ltd","807270","15/04/2021",30020347,22,0,"Materials","House Builders","II","BACS","None",2021-04-06 00:00:00,"2021","01","183GBC","K1515","Building Maintenance","D2003","Materials"
"GUILDFORD BOROUGH COUNCIL","Property","Pinsent Masons LLP","992900","27/04/2021",30020351,34614.5,0,"Consultants Fees","Other Legal Service Providers","II","BACS","None",2021-03-31 00:00:00,"2021","01","6597345","P74040","Slyfield Area Regeneration Project","1221","Consultants Fees"
"GUILDFORD BOROUGH COUNCIL","Vehicle Maintenance","Digital Tachograph Centre Ltd","905220","04/05/2021",30020352,95,0,"Repair And Maintenance Of Vehicles","Other Vehicle Equipment Providers","II","BACS","None",2021-04-06 00:00:00,"2021","01","44372","K5551","Fleet Workshops","C1002","Repair And Maintenance Of Vehicles"
"GUILDFORD BOROUGH COUNCIL","Roads and Footpaths","Murrill Construction Limited","893350","15/04/2021",30020363,1093.64,0,"Asset Maintenance","Civil Engineers","II","BACS","None",2021-04-01 00:00:00,"2021","01","GBC14035","B5112","Roads & Footpaths Maintenance","B1001","Asset Maintenance"
"GUILDFORD BOROUGH COUNCIL","Executive - Miscellaneous","Pinsent Masons LLP","992900","27/04/2021",30020364,2875,0,"Consultants Fees","Other Legal Service Providers","II","BACS","None",2021-03-31 00:00:00,"2021","01","6597353","P79100","Wuv - Allotment Relocation","1221","Consultants Fees"
"GUILDFORD BOROUGH COUNCIL","Vehicle Maintenance","Inchcape Retail Ltd t/a Inchcape Jaguar Land Rover","1000327","04/05/2021",30020366,36.62,0,"Repair And Maintenance Of Vehicles","","II","BACS","None",2021-04-06 00:00:00,"2021","01","74507261","K5551","Fleet Workshops","C1002","Repair And Maintenance Of Vehicles"
"GUILDFORD BOROUGH COUNCIL","Countryside and Parks Services","Arrowhead Rockdrill Company ltd","1000302","20/04/2021",30020371,2145,0,"Equipment","","II","BACS","None",2021-03-26 00:00:00,"2021","01","38975","A1100","Horticulture","D2001","Equipment"
"GUILDFORD BOROUGH COUNCIL","Countryside and Parks Services","Arrowhead Rockdrill Company ltd","1000302","20/04/2021",30020371,226,0,"Equipment","","II","BACS","None",2021-03-26 00:00:00,"2021","01","38975","A1100","Horticulture","D2001","Equipment"
"GUILDFORD BOROUGH COUNCIL","Countryside and Parks Services","Arrowhead Rockdrill Company ltd","1000302","20/04/2021",30020371,45,0,"Equipment","","II","BACS","None",2021-03-26 00:00:00,"2021","01","38975","A1100","Horticulture","D2001","Equipment"
"GUILDFORD BOROUGH COUNCIL","Property","Pinsent Masons LLP","992900","27/04/2021",30020375,5009,0,"Consultants Fees","Other Legal Service Providers","II","BACS","None",2021-03-31 00:00:00,"2021","01","6597378","P74040","Slyfield Area Regeneration Project","1221","Consultants Fees"
"GUILDFORD BOROUGH COUNCIL","Building Maintenance","Davis Property Services GU Limited (CIS)","946970","15/04/2021",30020377,8227.19,0,"Services","Roofers","II","BACS","None",2021-04-06 00:00:00,"2021","01","211","K1515","Building Maintenance","D6004","Services"
"GUILDFORD BOROUGH COUNCIL","Off Street Parking","Harpers Door Specialists","759110","15/04/2021",30020381,690,0,"Asset Maintenance","Security Shutter, Door And Gate Contractors","II","BACS","None",2021-04-07 00:00:00,"2021","01","SI-3715","B2244","Farnham Road Mscp","B1001","Asset Maintenance"
"GUILDFORD BOROUGH COUNCIL","Off Street Parking","Harpers Door Specialists","759110","15/04/2021",30020381,300,0,"Asset Maintenance","Security Shutter, Door And Gate Contractors","II","BACS","None",2021-04-07 00:00:00,"2021","01","SI-3715","B2244","Farnham Road Mscp","B1001","Asset Maintenance"
"GUILDFORD BOROUGH COUNCIL","Tenant Selection","Civica UK Ltd","963100","29/04/2021",30020387,18400,0,"ICT Software","Computer Systems Integrators","II","BACS","None",2021-04-07 00:00:00,"2021","01","C/HB215170","M1131","Advice,Regs,Tenant Select(SHS)","D7002","ICT Software"
"GUILDFORD BOROUGH COUNCIL","Executive - Miscellaneous","Pinsent Masons LLP","992900","27/04/2021",30020392,938.5,0,"Consultants Fees","Other Legal Service Providers","II","BACS","None",2021-03-31 00:00:00,"2021","01","6597361","P79100","Wuv - Allotment Relocation","1221","Consultants Fees"
"GUILDFORD BOROUGH COUNCIL","Other Short Term Debtors","Mr S D Edge","883520","13/04/2021",30020393,6990,0,"Cash Paid","","II","BACS","None",2021-04-09 00:00:00,"2021","01","Charrouf - Dapdune Road RIA","J01064","Housing H4U Scheme","2175","Cash Paid"
"GUILDFORD BOROUGH COUNCIL","Other Short Term Debtors","Mr Steven Reina","1000317","13/04/2021",30020394,1000,0,"Cash Paid","","II","BACS","None",2021-04-09 00:00:00,"2021","01","Nyame - Nugent Court RIA","J01064","Housing H4U Scheme","2175","Cash Paid"
"GUILDFORD BOROUGH COUNCIL","Miscellaneous Expenses","Cheesman Brothers Limited","129100","27/04/2021",30020396,7377.26,0,"Catering","Fruit And Vegetable Suppliers","II","BACS","None",2021-03-31 00:00:00,"2021","01","882251","F7539","COVID-19","D3001","Catering"
"GUILDFORD BOROUGH COUNCIL","Miscellaneous Expenses","Cheesman Brothers Limited","129100","27/04/2021",30020397,6377.43,0,"Catering","Fruit And Vegetable Suppliers","II","BACS","None",2021-03-31 00:00:00,"2021","01","882250","F7539","COVID-19","D3001","Catering"
"GUILDFORD BOROUGH COUNCIL","Development Control","Macfarlane & Assocs Limited","940570","27/04/2021",30020398,2400,0,"Consultancy","Landscaping Contractors","II","BACS","None",2021-03-31 00:00:00,"2021","01","4482","D5100","Development Control - Fee Earn","D6001","Consultancy"
"GUILDFORD BOROUGH COUNCIL","Vehicle Maintenance","Lister Wilder Ltd","299800","29/04/2021",30020399,264.1,0,"Repair And Maintenance Of Vehicles","Emergency And Other Specialist Vehicle Dealers","II","BACS","None",2021-04-08 00:00:00,"2021","01","506557","K5551","Fleet Workshops","C1002","Repair And Maintenance Of Vehicles"
"GUILDFORD BOROUGH COUNCIL","Vehicle Maintenance","Lister Wilder Ltd","299800","29/04/2021",30020399,26.41,0,"Repair And Maintenance Of Vehicles","Emergency And Other Specialist Vehicle Dealers","II","BACS","None",2021-04-08 00:00:00,"2021","01","506557","K5551","Fleet Workshops","C1002","Repair And Maintenance Of Vehicles"
"GUILDFORD BOROUGH COUNCIL","Vehicle Maintenance","F G Barnes & Sons Ltd T/A Barnes Daf","882000","29/04/2021",30020400,31.3,0,"Repair And Maintenance Of Vehicles","Car And Van Dealers","II","BACS","None",2021-04-07 00:00:00,"2021","01","81307898","K5551","Fleet Workshops","C1002","Repair And Maintenance Of Vehicles"
"GUILDFORD BOROUGH COUNCIL","Day Services","Matthew Algie & Company Limited","989610","04/05/2021",30020401,151.2,0,"Catering","","II","BACS","None",2021-02-10 00:00:00,"2021","01","0003052509","C8100","Community Hubs","D3001","Catering"
"GUILDFORD BOROUGH COUNCIL","Corporate Property Management","Symetri Ltd","1000221","29/04/2021",30020402,710,0,"ICT Software","","II","BACS","None",2021-04-08 00:00:00,"2021","01","111001","G4575","Asset Management","D7002","ICT Software"
"GUILDFORD BOROUGH COUNCIL","Development Control","Design South East","1000038","29/04/2021",30020403,1500,0,"Staff Costs","","II","BACS","None",2021-04-06 00:00:00,"2021","01","INV-2985","D5100","Development Control - Fee Earn","A7100","Staff Costs"
"GUILDFORD BOROUGH COUNCIL","Miscellaneous Expenses","Fidelis Security Limited","200000","22/04/2021",30020405,1065.83,0,"Services","Security Guards","II","BACS","None",2021-03-30 00:00:00,"2021","01","10793","F7539","COVID-19","D6004","Services"
"GUILDFORD BOROUGH COUNCIL","Building Maintenance","Surrey County Windows Ltd","686720","13/04/2021",30020406,1733,0,"Services","Window And Door Installers","II","BACS","None",2021-04-02 00:00:00,"2021","01","15","K1515","Building Maintenance","D6004","Services"
"GUILDFORD BOROUGH COUNCIL","Building Maintenance","Surrey County Windows Ltd","686720","13/04/2021",30020406,3794.02,0,"Materials","Window And Door Installers","II","BACS","None",2021-04-02 00:00:00,"2021","01","15","K1515","Building Maintenance","D2003","Materials"
"GUILDFORD BOROUGH COUNCIL","Miscellaneous Expenses","Fidelis Security Limited","200000","22/04/2021",30020407,531.57,0,"Services","Security Guards","II","BACS","None",2021-03-30 00:00:00,"2021","01","10792","F7539","COVID-19","D6004","Services"
"GUILDFORD BOROUGH COUNCIL","Inventories","UK Plumbing Supplies T/AS Graham the Plumbers Merchant","220400","13/04/2021",30020409,2168.54,0,"Purchases","Plumbing, Heating And Ac (Hvac) Equipment Suppliers","II","BACS","None",2021-03-21 00:00:00,"2021","01","0357/00790785","I01001","Stocks","2591","Purchases"
"GUILDFORD BOROUGH COUNCIL","Resources Caseworker","Hays Specialist Recruitment Limited","156250","29/04/2021",30020411,608.32,0,"Agency","Other Recruitment Agencies And Service Providers","II","BACS","None",2021-04-08 00:00:00,"2021","01","1011240344","G3550","Resources Caseworker","A5191","Agency"
"GUILDFORD BOROUGH COUNCIL","Development Control","Alexander Advertising (International) Ltd","454730","27/04/2021",30020412,345.1,0,"Advertising, Publicity & Promotion","Full Service Marketing Agencies","II","BACS","None",2021-04-02 00:00:00,"2021","01","2064G21","D5100","Development Control - Fee Earn","D5002","Advertising, Publicity & Promotion"
"GUILDFORD BOROUGH COUNCIL","Miscellaneous Expenses","Fidelis Security Limited","200000","22/04/2021",30020413,975.83,0,"Services","Security Guards","II","BACS","None",2021-03-30 00:00:00,"2021","01","10791","F7539","COVID-19","D6004","Services"
"GUILDFORD BOROUGH COUNCIL","Vehicle Maintenance","IC Autocare Limited","938530","04/05/2021",30020414,195.3,0,"Repair And Maintenance Of Vehicles","Other Retailers","II","BACS","None",2021-04-08 00:00:00,"2021","01","0206653","K5551","Fleet Workshops","C1002","Repair And Maintenance Of Vehicles"
"GUILDFORD BOROUGH COUNCIL","Vehicle Maintenance","Frm Truck & Trailer Spares Ltd","208100","29/04/2021",30020415,513,0,"Repair And Maintenance Of Vehicles","Car And Van Parts Suppliers","II","BACS","None",2021-04-07 00:00:00,"2021","01","356772","K5551","Fleet Workshops","C1002","Repair And Maintenance Of Vehicles"
"GUILDFORD BOROUGH COUNCIL","Building Control","Hays Specialist Recruitment Limited","156250","29/04/2021",30020416,41.85,0,"Agency","Other Recruitment Agencies And Service Providers","II","BACS","None",2021-04-08 00:00:00,"2021","01","1011240851","D5700","Building Control - Fee","A5191","Agency"
"GUILDFORD BOROUGH COUNCIL","Building Maintenance","Revive Services (CIS)","846250","13/04/2021",30020417,2990,0,"Services","Other Cleaning And Janitorial Service Providers","II","BACS","None",2021-04-07 00:00:00,"2021","01","104","K1515","Building Maintenance","D6004","Services"
"GUILDFORD BOROUGH COUNCIL","Inventories","UK Plumbing Supplies T/AS Graham the Plumbers Merchant","220400","13/04/2021",30020418,-17.29,0,"Purchases","Plumbing, Heating And Ac (Hvac) Equipment Suppliers","II","BACS","None",2021-03-18 00:00:00,"2021","01","0357/00162357","I01001","Stocks","2591","Purchases"
"GUILDFORD BOROUGH COUNCIL","Building Maintenance","Cinnamon Construction Limited (CIS)","921860","15/04/2021",30020419,5450.25,0,"Services","General Builders","II","BACS","None",2021-04-06 00:00:00,"2021","01","51","K1515","Building Maintenance","D6004","Services"
"GUILDFORD BOROUGH COUNCIL","Development Control","Design South East","1000038","29/04/2021",30020420,1500,0,"Staff Costs","","II","BACS","None",2021-04-06 00:00:00,"2021","01","INV-2989","D5100","Development Control - Fee Earn","A7100","Staff Costs"
"GUILDFORD BOROUGH COUNCIL","Lead Specialist - Finance","Hays Specialist Recruitment Limited","156250","29/04/2021",30020421,1297.16,0,"Agency","Other Recruitment Agencies And Service Providers","II","BACS","None",2021-04-08 00:00:00,"2021","01","1011240409","G3593","Procurement Services","A5191","Agency"
"GUILDFORD BOROUGH COUNCIL","Development Control","Royal Mail Group Ltd (Chesterfield)","878030","13/04/2021",30020422,6.16,0,"Services","","II","BACS","None",2021-02-09 00:00:00,"2021","01","9062408474","D5100","Development Control - Fee Earn","D6004","Services"
"GUILDFORD BOROUGH COUNCIL","Business Improvement","E-Personnel Recruitment Ltd","720390","29/04/2021",30020423,489,0,"Agency","Other Recruitment Agencies And Service Providers","II","BACS","None",2021-04-08 00:00:00,"2021","01","17208","G3531","Future Guildford","A5191","Agency"
"GUILDFORD BOROUGH COUNCIL","Audit Management","E-Personnel Recruitment Ltd","720390","29/04/2021",30020423,489,0,"Agency","Other Recruitment Agencies And Service Providers","II","BACS","None",2021-04-08 00:00:00,"2021","01","17208","G3531","Future Guildford","A5191","Agency"
"GUILDFORD BOROUGH COUNCIL","Inventories","UK Plumbing Supplies T/AS Graham the Plumbers Merchant","220400","20/04/2021",30020424,100.2,0,"Purchases","Plumbing, Heating And Ac (Hvac) Equipment Suppliers","II","BACS","None",2021-03-28 00:00:00,"2021","01","0357/00790864","I01001","Stocks","2591","Purchases"
"GUILDFORD BOROUGH COUNCIL","Vehicle Maintenance","Partsplusuk","984320","29/04/2021",30020425,77.55,0,"Repair And Maintenance Of Vehicles","Third Party Supplier","II","BACS","None",2021-04-06 00:00:00,"2021","01","15734606","K5551","Fleet Workshops","C1002","Repair And Maintenance Of Vehicles"
"GUILDFORD BOROUGH COUNCIL","Miscellaneous Expenses","Fidelis Security Limited","200000","27/04/2021",30020426,310,0,"Services","Security Guards","II","BACS","None",2021-03-31 00:00:00,"2021","01","10813","F7539","COVID-19","D6004","Services"
"GUILDFORD BOROUGH COUNCIL","Off Street Parking","Harpers Door Specialists","759110","15/04/2021",30020427,500,0,"Asset Maintenance","Security Shutter, Door And Gate Contractors","II","BACS","None",2021-04-08 00:00:00,"2021","01","SI-3717","B2257","Leapale Road Mscp","B1001","Asset Maintenance"
"GUILDFORD BOROUGH COUNCIL","Off Street Parking","Harpers Door Specialists","759110","15/04/2021",30020427,1890,0,"Asset Maintenance","Security Shutter, Door And Gate Contractors","II","BACS","None",2021-04-08 00:00:00,"2021","01","SI-3717","B2257","Leapale Road Mscp","B1001","Asset Maintenance"
"GUILDFORD BOROUGH COUNCIL","Vehicle Maintenance","Rossetts (UK) Ltd","720900","29/04/2021",30020428,68.94,0,"Repair And Maintenance Of Vehicles","Truck And Bus Dealers","II","BACS","None",2021-04-08 00:00:00,"2021","01","52521285","K5551","Fleet Workshops","C1002","Repair And Maintenance Of Vehicles"
"GUILDFORD BOROUGH COUNCIL","Vehicle Maintenance","Faun Zoeller (UK) Limited","875210","29/04/2021",30020432,472.9,0,"Repair And Maintenance Of Vehicles","Waste Disposal Equipment Suppliers","II","BACS","None",2021-04-08 00:00:00,"2021","01","SI125514","K5551","Fleet Workshops","C1002","Repair And Maintenance Of Vehicles"
"GUILDFORD BOROUGH COUNCIL","Building Maintenance","MMP Consultancy Ltd","946090","20/04/2021",30020436,1449.86,0,"Consultancy","Other Recruitment Agencies And Service Providers","II","BACS","None",2021-01-26 00:00:00,"2021","01","49945","K1515","Building Maintenance","D6001","Consultancy"
"GUILDFORD BOROUGH COUNCIL","Industrial Estates","IPM Facilities Limited","927090","13/04/2021",30020438,106.66,0,"Asset Maintenance","Property Letting And Estate Agents","II","BACS","None",2021-03-20 00:00:00,"2021","01","57256","B5332","Lysons Avenue Small Units - Rechargeable","B1001","Asset Maintenance"
"GUILDFORD BOROUGH COUNCIL","Vehicle Maintenance","HTS Spares Limited","928730","27/04/2021",30020439,129.15,0,"Repair And Maintenance Of Vehicles","Machinery And Engineering Parts Suppliers","II","BACS","None",2021-03-31 00:00:00,"2021","01","387719","K5551","Fleet Workshops","C1002","Repair And Maintenance Of Vehicles"
"GUILDFORD BOROUGH COUNCIL","Vehicle Maintenance","FASTSIGNS (Guildford) Ltd","199300","27/04/2021",30020440,150,0,"Repair And Maintenance Of Vehicles","Building Signage Suppliers","II","BACS","None",2021-04-01 00:00:00,"2021","01","858--17541","K5551","Fleet Workshops","C1002","Repair And Maintenance Of Vehicles"
"GUILDFORD BOROUGH COUNCIL","Provisions","Surrey County Council (Surrey Pension Fund)","774800","13/04/2021",30020441,24893.98,0,"Current Years Expenditure","","II","BACS","None",2021-01-29 00:00:00,"2021","01","9500251141","S01043","Exit Packages","2239","Current Years Expenditure"
"GUILDFORD BOROUGH COUNCIL","Corporate Financial","Dun & Bradstreet Ltd","415410","13/04/2021",30020442,2720,0,"Grants And Subscriptions","Other Information Service Providers","II","BACS","None",2021-03-04 00:00:00,"2021","01","CI-00010924","F3111","Corporate Subscriptions","D9001","Grants And Subscriptions"
"GUILDFORD BOROUGH COUNCIL","On Street Parking","Parking Refunds","9999994","13/04/2021",30020443,46.66,0,"Expenses","","II","BACS","None",2021-04-09 00:00:00,"2021","01","David Candasamy permit refund","B2217","Guildford On-Street","D8004","Expenses"
"GUILDFORD BOROUGH COUNCIL","On Street Parking","Parking Refunds","9999994","13/04/2021",30020444,16.64,0,"Expenses","","II","BACS","None",2021-04-09 00:00:00,"2021","01","Charlotte Tinworth Refund","B2217","Guildford On-Street","D8004","Expenses"
"GUILDFORD BOROUGH COUNCIL","Tenant Services","Southern Electric (Business Accounts)","760100","27/04/2021",30020445,3.67,0,"Utilities","Mains Electricity Suppliers","II","BACS","None",2021-04-01 00:00:00,"2021","01","0984197413/03","M1151","Tenants Services (BHS)","B2001","Utilities"
"GUILDFORD BOROUGH COUNCIL","On Street Parking","Parking Refunds","9999994","13/04/2021",30020446,48,0,"Expenses","","II","BACS","None",2021-04-09 00:00:00,"2021","01","Alison Drew permit refund RESA5222/RESA5223","B2217","Guildford On-Street","D8004","Expenses"
"GUILDFORD BOROUGH COUNCIL","On Street Parking","Parking Refunds","9999994","13/04/2021",30020447,15.96,0,"Expenses","","II","BACS","None",2021-04-09 00:00:00,"2021","01","Karine Murray permit refund RESE1219","B2217","Guildford On-Street","D8004","Expenses"
"GUILDFORD BOROUGH COUNCIL","Park and Ride Service","John F Hunt Power Ltd","803060","06/05/2021",30020452,700.7,0,"Materials","Other Construction Contractors","II","BACS","None",2021-04-12 00:00:00,"2021","01","216470","B5206","Onslow Park And Ride","D2003","Materials"
"GUILDFORD BOROUGH COUNCIL","Vehicle Maintenance","Rossetts (UK) Ltd","720900","29/04/2021",30020453,0.9,0,"Repair And Maintenance Of Vehicles","Truck And Bus Dealers","II","BACS","None",2021-04-09 00:00:00,"2021","01","52521464","K5551","Fleet Workshops","C1002","Repair And Maintenance Of Vehicles"
"GUILDFORD BOROUGH COUNCIL","Vehicle Maintenance","Rossetts (UK) Ltd","720900","29/04/2021",30020453,12.05,0,"Repair And Maintenance Of Vehicles","Truck And Bus Dealers","II","BACS","None",2021-04-09 00:00:00,"2021","01","52521464","K5551","Fleet Workshops","C1002","Repair And Maintenance Of Vehicles"
"GUILDFORD BOROUGH COUNCIL","Vehicle Maintenance","Rossetts (UK) Ltd","720900","29/04/2021",30020453,13.91,0,"Repair And Maintenance Of Vehicles","Truck And Bus Dealers","II","BACS","None",2021-04-09 00:00:00,"2021","01","52521464","K5551","Fleet Workshops","C1002","Repair And Maintenance Of Vehicles"
"GUILDFORD BOROUGH COUNCIL","Countryside and Parks Services","Plants Limited","668300","29/04/2021",30020454,900,0,"Materials","Garden Centres And Nurseries","II","BACS","None",2021-04-09 00:00:00,"2021","01","72321","A1100","Horticulture","D2003","Materials"
"GUILDFORD BOROUGH COUNCIL","Council Tax","Civica UK Ltd","963100","06/05/2021",30020455,3093.13,0,"Agency","Computer Systems Integrators","II","BACS","None",2021-04-12 00:00:00,"2021","01","C/BN215416","F6141","Council Tax Collectn Expenses","A5191","Agency"
"GUILDFORD BOROUGH COUNCIL","Lead Specialist - ICT","Systems Accountants Limited","975830","29/04/2021",30020456,12535,0,"Consultancy","","II","BACS","None",2021-04-07 00:00:00,"2021","01","SAUK13136","G3545","ICT Specialist","D6001","Consultancy"
"GUILDFORD BOROUGH COUNCIL","Building Control","JJ Surveying Ltd","877460","06/05/2021",30020457,250,0,"Consultancy","Surveyors And Inspectors","II","BACS","None",2021-04-12 00:00:00,"2021","01","1279","D5700","Building Control - Fee","D6001","Consultancy"
"GUILDFORD BOROUGH COUNCIL","Vehicle Maintenance","F G Barnes & Sons Ltd T/A Barnes Daf","882000","27/04/2021",30020458,37.85,0,"Repair And Maintenance Of Vehicles","Car And Van Dealers","II","BACS","None",2021-04-01 00:00:00,"2021","01","81307875","K5551","Fleet Workshops","C1002","Repair And Maintenance Of Vehicles"
"GUILDFORD BOROUGH COUNCIL","Guildford Museum","Brady Corp Ltd T/A Seton","751400","20/04/2021",30020459,281.16,0,"Equipment","Personal Protective Equipment (Ppe) Suppliers","II","BACS","None",2021-03-26 00:00:00,"2021","01","9303299254","A5511","Museum","D2001","Equipment"
"GUILDFORD BOROUGH COUNCIL","Building Maintenance","Chambers Waste Management Plc","127500","27/04/2021",30020460,441,0,"Materials","Other Waste Disposal Suppliers","II","BACS","None",2021-03-31 00:00:00,"2021","01","P471371","K1515","Building Maintenance","D2003","Materials"
"GUILDFORD BOROUGH COUNCIL","Housing Benefits","Civica UK Ltd","963100","06/05/2021",30020461,1059.51,0,"Agency","Computer Systems Integrators","II","BACS","None",2021-04-12 00:00:00,"2021","01","C/BN215415","C4511","Housing Benefits Admin.","A5191","Agency"
"GUILDFORD BOROUGH COUNCIL","Government Short Term Debtors","Site Equip,","1000356","27/04/2021",30020462,0.5,0,"Debt Royalties/Commisions","","II","BACS","None",2021-04-01 00:00:00,"2021","01","E226178","J01195","Elections - SCC","2445","Debt Royalties/Commisions"
"GUILDFORD BOROUGH COUNCIL","Government Short Term Debtors","Site Equip,","1000356","27/04/2021",30020462,0.5,0,"Debt Royalties/Commisions","","II","BACS","None",2021-04-01 00:00:00,"2021","01","E226178","J01195","Elections - SCC","2445","Debt Royalties/Commisions"
"GUILDFORD BOROUGH COUNCIL","Government Short Term Debtors","Site Equip,","1000356","27/04/2021",30020462,0.5,0,"Debt Royalties/Commisions","","II","BACS","None",2021-04-01 00:00:00,"2021","01","E226178","J01195","Elections - SCC","2445","Debt Royalties/Commisions"
"GUILDFORD BOROUGH COUNCIL","Government Short Term Debtors","Site Equip,","1000356","27/04/2021",30020462,0.5,0,"Debt Royalties/Commisions","","II","BACS","None",2021-04-01 00:00:00,"2021","01","E226178","J01195","Elections - SCC","2445","Debt Royalties/Commisions"
"GUILDFORD BOROUGH COUNCIL","Government Short Term Debtors","Site Equip,","1000356","27/04/2021",30020462,0.5,0,"Polling Station Costs","","II","BACS","None",2021-04-01 00:00:00,"2021","01","E226178","J01195","Elections - SCC","2445","Polling Station Costs"
"GUILDFORD BOROUGH COUNCIL","Government Short Term Debtors","Site Equip,","1000356","27/04/2021",30020462,0.5,0,"Polling Station Costs","","II","BACS","None",2021-04-01 00:00:00,"2021","01","E226178","J01195","Elections - SCC","2445","Polling Station Costs"
"GUILDFORD BOROUGH COUNCIL","Government Short Term Debtors","Site Equip,","1000356","27/04/2021",30020462,0.5,0,"Debt Royalties/Commisions","","II","BACS","None",2021-04-01 00:00:00,"2021","01","E226178","J01194","Elections - PCC","2445","Debt Royalties/Commisions"
"GUILDFORD BOROUGH COUNCIL","Government Short Term Debtors","Site Equip,","1000356","27/04/2021",30020462,0.5,0,"Debt Royalties/Commisions","","II","BACS","None",2021-04-01 00:00:00,"2021","01","E226178","J01194","Elections - PCC","2445","Debt Royalties/Commisions"
"GUILDFORD BOROUGH COUNCIL","Government Short Term Debtors","Site Equip,","1000356","27/04/2021",30020462,0.5,0,"Debt Royalties/Commisions","","II","BACS","None",2021-04-01 00:00:00,"2021","01","E226178","J01194","Elections - PCC","2445","Debt Royalties/Commisions"
"GUILDFORD BOROUGH COUNCIL","Government Short Term Debtors","Site Equip,","1000356","27/04/2021",30020462,0.5,0,"Debt Royalties/Commisions","","II","BACS","None",2021-04-01 00:00:00,"2021","01","E226178","J01194","Elections - PCC","2445","Debt Royalties/Commisions"
"GUILDFORD BOROUGH COUNCIL","Government Short Term Debtors","Site Equip,","1000356","27/04/2021",30020462,0.5,0,"Polling Station Costs","","II","BACS","None",2021-04-01 00:00:00,"2021","01","E226178","J01194","Elections - PCC","2445","Polling Station Costs"
"GUILDFORD BOROUGH COUNCIL","Government Short Term Debtors","Site Equip,","1000356","27/04/2021",30020462,0.5,0,"Polling Station Costs","","II","BACS","None",2021-04-01 00:00:00,"2021","01","E226178","J01194","Elections - PCC","2445","Polling Station Costs"
"GUILDFORD BOROUGH COUNCIL","Government Short Term Debtors","Site Equip,","1000356","27/04/2021",30020462,92.5,0,"Debt Royalties/Commisions","","II","BACS","None",2021-04-01 00:00:00,"2021","01","E226178","J01194","Elections - PCC","2445","Debt Royalties/Commisions"
"GUILDFORD BOROUGH COUNCIL","Government Short Term Debtors","Site Equip,","1000356","27/04/2021",30020462,92.5,0,"Debt Royalties/Commisions","","II","BACS","None",2021-04-01 00:00:00,"2021","01","E226178","J01194","Elections - PCC","2445","Debt Royalties/Commisions"
"GUILDFORD BOROUGH COUNCIL","Government Short Term Debtors","Site Equip,","1000356","27/04/2021",30020462,92.5,0,"Polling Station Costs","","II","BACS","None",2021-04-01 00:00:00,"2021","01","E226178","J01194","Elections - PCC","2445","Polling Station Costs"
"GUILDFORD BOROUGH COUNCIL","Government Short Term Debtors","Site Equip,","1000356","27/04/2021",30020462,92.5,0,"Debt Royalties/Commisions","","II","BACS","None",2021-04-01 00:00:00,"2021","01","E226178","J01195","Elections - SCC","2445","Debt Royalties/Commisions"
"GUILDFORD BOROUGH COUNCIL","Government Short Term Debtors","Site Equip,","1000356","27/04/2021",30020462,92.5,0,"Debt Royalties/Commisions","","II","BACS","None",2021-04-01 00:00:00,"2021","01","E226178","J01195","Elections - SCC","2445","Debt Royalties/Commisions"
"GUILDFORD BOROUGH COUNCIL","Government Short Term Debtors","Site Equip,","1000356","27/04/2021",30020462,92.5,0,"Polling Station Costs","","II","BACS","None",2021-04-01 00:00:00,"2021","01","E226178","J01195","Elections - SCC","2445","Polling Station Costs"
"GUILDFORD BOROUGH COUNCIL","Electoral Registration","Idox Software Ltd","650930","04/05/2021",30020463,1312.09,0,"Postage","Software Developers","II","BACS","None",2021-03-31 00:00:00,"2021","01","7032900","F2511","Electoral Registration","D5003","Postage"
"GUILDFORD BOROUGH COUNCIL","Countryside and Parks Services","Plants Limited","668300","29/04/2021",30020464,32.5,0,"Materials","Garden Centres And Nurseries","II","BACS","None",2021-04-09 00:00:00,"2021","01","72320","A1100","Horticulture","D2003","Materials"
"GUILDFORD BOROUGH COUNCIL","Countryside and Parks Services","Plants Limited","668300","29/04/2021",30020464,27,0,"Materials","Garden Centres And Nurseries","II","BACS","None",2021-04-09 00:00:00,"2021","01","72320","A1100","Horticulture","D2003","Materials"
"GUILDFORD BOROUGH COUNCIL","Countryside and Parks Services","Plants Limited","668300","29/04/2021",30020464,14,0,"Materials","Garden Centres And Nurseries","II","BACS","None",2021-04-09 00:00:00,"2021","01","72320","A1100","Horticulture","D2003","Materials"
"GUILDFORD BOROUGH COUNCIL","Countryside and Parks Services","Plants Limited","668300","29/04/2021",30020464,52.5,0,"Materials","Garden Centres And Nurseries","II","BACS","None",2021-04-09 00:00:00,"2021","01","72320","A1100","Horticulture","D2003","Materials"
"GUILDFORD BOROUGH COUNCIL","Countryside and Parks Services","Plants Limited","668300","29/04/2021",30020464,11.25,0,"Materials","Garden Centres And Nurseries","II","BACS","None",2021-04-09 00:00:00,"2021","01","72320","A1100","Horticulture","D2003","Materials"
"GUILDFORD BOROUGH COUNCIL","Countryside and Parks Services","Plants Limited","668300","29/04/2021",30020464,38,0,"Materials","Garden Centres And Nurseries","II","BACS","None",2021-04-09 00:00:00,"2021","01","72320","A1100","Horticulture","D2003","Materials"
"GUILDFORD BOROUGH COUNCIL","Countryside and Parks Services","Plants Limited","668300","29/04/2021",30020464,38,0,"Materials","Garden Centres And Nurseries","II","BACS","None",2021-04-09 00:00:00,"2021","01","72320","A1100","Horticulture","D2003","Materials"
"GUILDFORD BOROUGH COUNCIL","Countryside and Parks Services","Plants Limited","668300","29/04/2021",30020464,85,0,"Materials","Garden Centres And Nurseries","II","BACS","None",2021-04-09 00:00:00,"2021","01","72320","A1100","Horticulture","D2003","Materials"
"GUILDFORD BOROUGH COUNCIL","Countryside and Parks Services","Plants Limited","668300","29/04/2021",30020464,85,0,"Materials","Garden Centres And Nurseries","II","BACS","None",2021-04-09 00:00:00,"2021","01","72320","A1100","Horticulture","D2003","Materials"
"GUILDFORD BOROUGH COUNCIL","Countryside and Parks Services","Plants Limited","668300","29/04/2021",30020464,63,0,"Materials","Garden Centres And Nurseries","II","BACS","None",2021-04-09 00:00:00,"2021","01","72320","A1100","Horticulture","D2003","Materials"
"GUILDFORD BOROUGH COUNCIL","Countryside and Parks Services","Plants Limited","668300","29/04/2021",30020464,15,0,"Materials","Garden Centres And Nurseries","II","BACS","None",2021-04-09 00:00:00,"2021","01","72320","A1100","Horticulture","D2003","Materials"
"GUILDFORD BOROUGH COUNCIL","Countryside and Parks Services","Plants Limited","668300","29/04/2021",30020464,195,0,"Materials","Garden Centres And Nurseries","II","BACS","None",2021-04-09 00:00:00,"2021","01","72320","A1100","Horticulture","D2003","Materials"
"GUILDFORD BOROUGH COUNCIL","Major Projects","Network Rail Infrastructure Ltd","144690","13/04/2021",30020465,34793.42,0,"Consultancy","Rail Companies","II","BACS","None",2021-03-18 00:00:00,"2021","01","1277731","F5530","Major Projects","D6001","Consultancy"
"GUILDFORD BOROUGH COUNCIL","Guildford Museum","MJCR LTD trading as Repropoint","1000281","15/04/2021",30020466,48,0,"Printing, Photocopying And Reprographics External","","II","BACS","None",2020-12-16 00:00:00,"2021","01","I721673","A5511","Museum","D5005","Printing, Photocopying And Reprographics External"
"GUILDFORD BOROUGH COUNCIL","Guildford House","Omicways Ltd T/A Container Group Buying","898840","06/05/2021",30020467,30,0,"Materials","Promotional Item Suppliers","II","BACS","None",2021-04-08 00:00:00,"2021","01","INV077462","A4511","Guildford House Administration","D2003","Materials"
"GUILDFORD BOROUGH COUNCIL","Guildford House","Omicways Ltd T/A Container Group Buying","898840","06/05/2021",30020467,29.4,0,"Materials","Promotional Item Suppliers","II","BACS","None",2021-04-08 00:00:00,"2021","01","INV077462","A4511","Guildford House Administration","D2003","Materials"
"GUILDFORD BOROUGH COUNCIL","Guildford House","Omicways Ltd T/A Container Group Buying","898840","06/05/2021",30020467,60,0,"Materials","Promotional Item Suppliers","II","BACS","None",2021-04-08 00:00:00,"2021","01","INV077462","A4511","Guildford House Administration","D2003","Materials"
"GUILDFORD BOROUGH COUNCIL","Guildford House","Omicways Ltd T/A Container Group Buying","898840","06/05/2021",30020467,23.4,0,"Materials","Promotional Item Suppliers","II","BACS","None",2021-04-08 00:00:00,"2021","01","INV077462","A4511","Guildford House Administration","D2003","Materials"
"GUILDFORD BOROUGH COUNCIL","Guildford House","Omicways Ltd T/A Container Group Buying","898840","06/05/2021",30020467,30,0,"Materials","Promotional Item Suppliers","II","BACS","None",2021-04-08 00:00:00,"2021","01","INV077462","A4511","Guildford House Administration","D2003","Materials"
"GUILDFORD BOROUGH COUNCIL","Guildford House","Omicways Ltd T/A Container Group Buying","898840","06/05/2021",30020467,15.12,0,"Materials","Promotional Item Suppliers","II","BACS","None",2021-04-08 00:00:00,"2021","01","INV077462","A4511","Guildford House Administration","D2003","Materials"
"GUILDFORD BOROUGH COUNCIL","Guildford House","Omicways Ltd T/A Container Group Buying","898840","06/05/2021",30020467,50.4,0,"Materials","Promotional Item Suppliers","II","BACS","None",2021-04-08 00:00:00,"2021","01","INV077462","A4511","Guildford House Administration","D2003","Materials"
"GUILDFORD BOROUGH COUNCIL","Guildford House","Omicways Ltd T/A Container Group Buying","898840","06/05/2021",30020467,107.2,0,"Materials","Promotional Item Suppliers","II","BACS","None",2021-04-08 00:00:00,"2021","01","INV077462","A4511","Guildford House Administration","D2003","Materials"
"GUILDFORD BOROUGH COUNCIL","Guildford House","Omicways Ltd T/A Container Group Buying","898840","06/05/2021",30020467,64,0,"Materials","Promotional Item Suppliers","II","BACS","None",2021-04-08 00:00:00,"2021","01","INV077462","A4511","Guildford House Administration","D2003","Materials"
"GUILDFORD BOROUGH COUNCIL","Guildford House","Omicways Ltd T/A Container Group Buying","898840","06/05/2021",30020467,56.4,0,"Materials","Promotional Item Suppliers","II","BACS","None",2021-04-08 00:00:00,"2021","01","INV077462","A4511","Guildford House Administration","D2003","Materials"
"GUILDFORD BOROUGH COUNCIL","Guildford House","Omicways Ltd T/A Container Group Buying","898840","06/05/2021",30020467,21,0,"Materials","Promotional Item Suppliers","II","BACS","None",2021-04-08 00:00:00,"2021","01","INV077462","A4511","Guildford House Administration","D2003","Materials"
"GUILDFORD BOROUGH COUNCIL","Guildford House","Omicways Ltd T/A Container Group Buying","898840","06/05/2021",30020467,35.1,0,"Materials","Promotional Item Suppliers","II","BACS","None",2021-04-08 00:00:00,"2021","01","INV077462","A4511","Guildford House Administration","D2003","Materials"
"GUILDFORD BOROUGH COUNCIL","Guildford House","Omicways Ltd T/A Container Group Buying","898840","06/05/2021",30020467,27.96,0,"Materials","Promotional Item Suppliers","II","BACS","None",2021-04-08 00:00:00,"2021","01","INV077462","A4511","Guildford House Administration","D2003","Materials"
"GUILDFORD BOROUGH COUNCIL","Guildford House","Omicways Ltd T/A Container Group Buying","898840","06/05/2021",30020467,30.72,0,"Materials","Promotional Item Suppliers","II","BACS","None",2021-04-08 00:00:00,"2021","01","INV077462","A4511","Guildford House Administration","D2003","Materials"
"GUILDFORD BOROUGH COUNCIL","Major Projects","The Oyster Partnership Ltd","814220","13/04/2021",30020468,2320,0,"Agency","Other Recruitment Agencies And Service Providers","II","BACS","None",2021-02-17 00:00:00,"2021","01","1090001","F5530","Major Projects","A5191","Agency"
"GUILDFORD BOROUGH COUNCIL","Executive - Miscellaneous","Pinsent Masons LLP","992900","13/04/2021",30020469,10170,0,"Consultants Fees","Other Legal Service Providers","II","BACS","None",2021-02-28 00:00:00,"2021","01","6590715","P79037","Ash Road Bridge","1221","Consultants Fees"
"GUILDFORD BOROUGH COUNCIL","Development Control","Royal Town Planning Institute (Subscriptions only)","816100","13/04/2021",30020472,315,0,"Staff Costs","Trade Associations And Regulatory Bodies","II","BACS","None",2020-11-02 00:00:00,"2021","01","50994/2021","D5100","Development Control - Fee Earn","A7100","Staff Costs"
"GUILDFORD BOROUGH COUNCIL","Renovations","The OT Practice Ltd","984970","27/04/2021",30020473,1050,0,"Consultancy","","II","BACS","None",2021-03-31 00:00:00,"2021","01","INV-026933","N40282","Disabled adaptations 2020-21","D6001","Consultancy"
"GUILDFORD BOROUGH COUNCIL","Building Maintenance","MMP Consultancy Ltd","946090","22/04/2021",30020474,1316.54,0,"Consultancy","Other Recruitment Agencies And Service Providers","II","BACS","None",2021-03-29 00:00:00,"2021","01","51358","K1515","Building Maintenance","D6001","Consultancy"
"GUILDFORD BOROUGH COUNCIL","Building Maintenance","Professional Construction Recruitment Limited","1000119","29/04/2021",30020475,464,0,"Services","","II","BACS","None",2021-04-07 00:00:00,"2021","01","134848","K1515","Building Maintenance","D6004","Services"
"GUILDFORD BOROUGH COUNCIL","Countryside and Parks Services","Ryder Services Ltd","1000282","27/04/2021",30020476,15750,0,"Grounds Maintenance","","II","BACS","None",2021-03-31 00:00:00,"2021","01","14293","A1250","Stoke Park","B6001","Grounds Maintenance"
"GUILDFORD BOROUGH COUNCIL","Vehicle Maintenance","F G Barnes & Sons Ltd T/A Barnes Daf","882000","29/04/2021",30020477,145.75,0,"Repair And Maintenance Of Vehicles","Car And Van Dealers","II","BACS","None",2021-04-09 00:00:00,"2021","01","10311881","K5551","Fleet Workshops","C1002","Repair And Maintenance Of Vehicles"
"GUILDFORD BOROUGH COUNCIL","Development Control","Alexander Advertising (International) Ltd","454730","29/04/2021",30020478,254.28,0,"Advertising, Publicity & Promotion","Full Service Marketing Agencies","II","BACS","None",2021-04-09 00:00:00,"2021","01","2086R21","D5100","Development Control - Fee Earn","D5002","Advertising, Publicity & Promotion"
"GUILDFORD BOROUGH COUNCIL","Miscellaneous Expenses","Fidelis Security Limited","200000","22/04/2021",30020479,714.45,0,"Services","Security Guards","II","BACS","None",2021-03-30 00:00:00,"2021","01","10790","F7539","COVID-19","D6004","Services"
"GUILDFORD BOROUGH COUNCIL","Corporate Services","Ashurst LLP","722840","29/04/2021",30020480,4500,0,"Services","Other Legal Service Providers","II","BACS","None",2021-04-08 00:00:00,"2021","01","500059790","F1111","Corporate Services","D6004","Services"
"GUILDFORD BOROUGH COUNCIL","Major Projects","The Oyster Partnership Ltd","814220","13/04/2021",30020481,2900,0,"Agency","Other Recruitment Agencies And Service Providers","II","BACS","None",2021-02-24 00:00:00,"2021","01","1090418","F5530","Major Projects","A5191","Agency"
"GUILDFORD BOROUGH COUNCIL","Vehicle Maintenance","Southern Electromotive Distribution Ltd","760300","29/04/2021",30020482,42.99,0,"Repair And Maintenance Of Vehicles","Car And Van Servicing And Maintenance Providers","II","BACS","None",2021-04-08 00:00:00,"2021","01","409103","K5551","Fleet Workshops","C1002","Repair And Maintenance Of Vehicles"
"GUILDFORD BOROUGH COUNCIL","Major Projects","Sharpe Pritchard LLP","415180","13/04/2021",30020483,1527.5,0,"Consultancy","Solicitors [Uk Only]","II","BACS","None",2020-12-31 00:00:00,"2021","01","124806","F5530","Major Projects","D6001","Consultancy"
"GUILDFORD BOROUGH COUNCIL","Building Maintenance","Surrey County Windows Ltd","686720","13/04/2021",30020484,1011.41,0,"Materials","Window And Door Installers","II","BACS","None",2021-04-09 00:00:00,"2021","01","16","K1515","Building Maintenance","D2003","Materials"
"GUILDFORD BOROUGH COUNCIL","Building Maintenance","Surrey County Windows Ltd","686720","13/04/2021",30020484,645,0,"Services","Window And Door Installers","II","BACS","None",2021-04-09 00:00:00,"2021","01","16","K1515","Building Maintenance","D6004","Services"
"GUILDFORD BOROUGH COUNCIL","Major Projects","The Oyster Partnership Ltd","814220","13/04/2021",30020485,2900,0,"Agency","Other Recruitment Agencies And Service Providers","II","BACS","None",2021-03-10 00:00:00,"2021","01","1091275","F5530","Major Projects","A5191","Agency"
"GUILDFORD BOROUGH COUNCIL","Income Collection","Royal Mail Group Ltd (Chesterfield)","878030","29/04/2021",30020487,28.96,0,"Postage","","II","BACS","None",2021-04-07 00:00:00,"2021","01","9062741827","M1121","Income Collection (BHS)","D5003","Postage"
"GUILDFORD BOROUGH COUNCIL","Responsive & Planned Maintenance","Royal Mail Group Ltd (Chesterfield)","878030","29/04/2021",30020487,28.96,0,"Postage","","II","BACS","None",2021-04-07 00:00:00,"2021","01","9062741827","M5111","Repairs-Admin (BHS)","D5003","Postage"
"GUILDFORD BOROUGH COUNCIL","Tenant Services","Royal Mail Group Ltd (Chesterfield)","878030","29/04/2021",30020487,28.95,0,"Postage","","II","BACS","None",2021-04-07 00:00:00,"2021","01","9062741827","M1151","Tenants Services (BHS)","D5003","Postage"
"GUILDFORD BOROUGH COUNCIL","Miscellaneous Expenses","Fidelis Security Limited","200000","22/04/2021",30020488,686.43,0,"Services","Security Guards","II","BACS","None",2021-03-30 00:00:00,"2021","01","10788","F7539","COVID-19","D6004","Services"
"GUILDFORD BOROUGH COUNCIL","Grants to Voluntary Organisations","Surrey Welfare Rights Unit","125820","13/04/2021",30020489,5000,0,"Grants And Subscriptions","Charities And Voluntary Organisations","II","BACS","None",2021-04-09 00:00:00,"2021","01","1841","C3111","Community Grant Scheme","D9001","Grants And Subscriptions"
"GUILDFORD BOROUGH COUNCIL","Lead Specialist - Finance","Surrey County Council","230230","06/05/2021",30020490,300,0,"Licences","Local Government [Uk Only]","II","BACS","None",2021-04-12 00:00:00,"2021","01","9500258924","G3593","Procurement Services","D8001","Licences"
"GUILDFORD BOROUGH COUNCIL","Street Cleansing","Arton Monoseal Ltd","775190","29/04/2021",30020492,490,0,"Waste Removal","Asbestos Removal Service Providers","II","BACS","None",2021-04-09 00:00:00,"2021","01","INV-5225","K4551","Street Cleansing","D6010","Waste Removal"
"GUILDFORD BOROUGH COUNCIL","Major Projects","The Oyster Partnership Ltd","814220","20/04/2021",30020493,5800,0,"Agency","Other Recruitment Agencies And Service Providers","II","BACS","None",2021-03-24 00:00:00,"2021","01","1092125","F5530","Major Projects","A5191","Agency"
"GUILDFORD BOROUGH COUNCIL","Housing Benefits","Civica UK Ltd","963100","06/05/2021",30020494,2470.01,0,"Agency","Computer Systems Integrators","II","BACS","None",2021-04-12 00:00:00,"2021","01","C/BN215414","C4511","Housing Benefits Admin.","A5191","Agency"
"GUILDFORD BOROUGH COUNCIL","Street Cleansing","Arton Monoseal Ltd","775190","06/05/2021",30020495,460,0,"Waste Removal","Asbestos Removal Service Providers","II","BACS","None",2021-04-12 00:00:00,"2021","01","INV-5226","K4551","Street Cleansing","D6010","Waste Removal"
"GUILDFORD BOROUGH COUNCIL","Crematorium","Facultatieve Technologies Ltd","798050","20/04/2021",30020496,2400,0,"Asset Maintenance","Crematoria Contractors","II","BACS","None",2021-03-17 00:00:00,"2021","01","21100046","A1500","Crematorium","B1001","Asset Maintenance"
"GUILDFORD BOROUGH COUNCIL","Countryside and Parks Services","Sterling Hydrotech Ltd","857560","04/05/2021",30020497,2405,0,"Contractors","Water Treatment Service Providers","II","BACS","None",2021-04-09 00:00:00,"2021","01","41089","A1250","Stoke Park","D6012","Contractors"
"GUILDFORD BOROUGH COUNCIL","Leisure Play","Industrial Workwear Limited","772150","29/04/2021",30020498,35.18,0,"Clothing & Uniform","Other Clothing And Accessory Suppliers","II","BACS","None",2021-04-09 00:00:00,"2021","01","258169","A7211","Play Development","D4001","Clothing & Uniform"
"GUILDFORD BOROUGH COUNCIL","Leisure Play","Industrial Workwear Limited","772150","29/04/2021",30020498,35.18,0,"Clothing & Uniform","Other Clothing And Accessory Suppliers","II","BACS","None",2021-04-09 00:00:00,"2021","01","258169","A7211","Play Development","D4001","Clothing & Uniform"
"GUILDFORD BOROUGH COUNCIL","Leisure Play","Industrial Workwear Limited","772150","29/04/2021",30020498,35.18,0,"Clothing & Uniform","Other Clothing And Accessory Suppliers","II","BACS","None",2021-04-09 00:00:00,"2021","01","258169","A7211","Play Development","D4001","Clothing & Uniform"
"GUILDFORD BOROUGH COUNCIL","Leisure Play","Industrial Workwear Limited","772150","29/04/2021",30020498,35.18,0,"Clothing & Uniform","Other Clothing And Accessory Suppliers","II","BACS","None",2021-04-09 00:00:00,"2021","01","258169","A7211","Play Development","D4001","Clothing & Uniform"
"GUILDFORD BOROUGH COUNCIL","Leisure Play","Industrial Workwear Limited","772150","29/04/2021",30020498,35.18,0,"Clothing & Uniform","Other Clothing And Accessory Suppliers","II","BACS","None",2021-04-09 00:00:00,"2021","01","258169","A7211","Play Development","D4001","Clothing & Uniform"
"GUILDFORD BOROUGH COUNCIL","Major Projects","The Oyster Partnership Ltd","814220","13/04/2021",30020499,2900,0,"Agency","Other Recruitment Agencies And Service Providers","II","BACS","None",2021-03-03 00:00:00,"2021","01","1090851","F5530","Major Projects","A5191","Agency"
"GUILDFORD BOROUGH COUNCIL","Feasibility Studies","Runnymede Borough Council","1000344","13/04/2021",30020500,15000,0,"Consultancy","","II","BACS","None",2021-03-04 00:00:00,"2021","01","4549660","F7600","Feasibility Studies, General","D6001","Consultancy"
"GUILDFORD BOROUGH COUNCIL","Miscellaneous Expenses","Fidelis Security Limited","200000","22/04/2021",30020501,518.42,0,"Services","Security Guards","II","BACS","None",2021-03-30 00:00:00,"2021","01","10787","F7539","COVID-19","D6004","Services"
"GUILDFORD BOROUGH COUNCIL","Building Maintenance","Chambers Waste Management Plc","127500","27/04/2021",30020502,628.25,0,"Materials","Other Waste Disposal Suppliers","II","BACS","None",2021-03-31 00:00:00,"2021","01","P471170","K1515","Building Maintenance","D2003","Materials"
"GUILDFORD BOROUGH COUNCIL","Inventories","Akw Medi-Care Limited","178400","27/04/2021",30020503,47.33,0,"Purchases","Mobility Disability Equipment Suppliers","II","BACS","None",2021-03-31 00:00:00,"2021","01","1912510","I01001","Stocks","2591","Purchases"
"GUILDFORD BOROUGH COUNCIL","Grants","Bentley Mobility Services Limited","929000","29/04/2021",30020505,4960,0,"Outgoing VAT on sales to EU Member states","Mobility Disability Equipment Suppliers","II","BACS","None",2021-04-08 00:00:00,"2021","01","27710","N51019","BCF Non Grant Expenditure","1311","Outgoing VAT on sales to EU Member states"
"GUILDFORD BOROUGH COUNCIL","Grants","Bentley Mobility Services Limited","929000","29/04/2021",30020505,4960,0,"Outgoing VAT on sales to EU Member states","Mobility Disability Equipment Suppliers","II","BACS","None",2021-04-08 00:00:00,"2021","01","27710","N51019","BCF Non Grant Expenditure","1311","Outgoing VAT on sales to EU Member states"
"GUILDFORD BOROUGH COUNCIL","Grants","Bentley Mobility Services Limited","929000","29/04/2021",30020505,4960,0,"Grants To Private Owners","Mobility Disability Equipment Suppliers","II","BACS","None",2021-04-08 00:00:00,"2021","01","27710","N51019","BCF Non Grant Expenditure","1311","Grants To Private Owners"
"GUILDFORD BOROUGH COUNCIL","Other Short Term Creditors","Kudos Mobility Group Ltd","978660","15/04/2021",30020506,2334.5,0,"Payments","","II","BACS","None",2021-02-05 00:00:00,"2021","01","8923","L02088","Care & Repair Client Fund","2489","Payments"
"GUILDFORD BOROUGH COUNCIL","Grants","Kudos Mobility Group Ltd","978660","15/04/2021",30020506,4205.5,0,"Outgoing VAT on sales to EU Member states","","II","BACS","None",2021-02-05 00:00:00,"2021","01","8923","N51008","Mandatory DFG","1311","Outgoing VAT on sales to EU Member states"
"GUILDFORD BOROUGH COUNCIL","Grants","Kudos Mobility Group Ltd","978660","15/04/2021",30020506,4205.5,0,"Outgoing VAT on sales to EU Member states","","II","BACS","None",2021-02-05 00:00:00,"2021","01","8923","N51008","Mandatory DFG","1311","Outgoing VAT on sales to EU Member states"
"GUILDFORD BOROUGH COUNCIL","Grants","Kudos Mobility Group Ltd","978660","15/04/2021",30020506,4205.5,0,"Grants To Private Owners","","II","BACS","None",2021-02-05 00:00:00,"2021","01","8923","N51008","Mandatory DFG","1311","Grants To Private Owners"
"GUILDFORD BOROUGH COUNCIL","River Control","Wey Marine Services Ltd","779520","13/04/2021",30020686,4309.26,0,"Asset Maintenance","Other Boat Equipment And Service Providers","II","BACS","None",2021-04-08 00:00:00,"2021","01","correction re credit notes","B8111","River Control","B1001","Asset Maintenance"
"GUILDFORD BOROUGH COUNCIL","Other Short Term Debtors","Martin & Co Lettings","951870","15/04/2021",30020690,1750,0,"Cash Paid","","II","BACS","None",2021-04-13 00:00:00,"2021","01","Khalid - Walnut Tree Close RIA","J01064","Housing H4U Scheme","2175","Cash Paid"
"GUILDFORD BOROUGH COUNCIL","On Street Parking","Parking Refunds","9999994","15/04/2021",30020691,15.96,0,"Income Recovery","","II","BACS","None",2021-04-13 00:00:00,"2021","01","Refund for permit RESD2416 - 55 Quarry Street","B2217","Guildford On-Street","K2003","Income Recovery"
"GUILDFORD BOROUGH COUNCIL","Tenant Services","Affinity Water Limited (HSE PROP)","904780","27/04/2021",30020694,44.98,0,"Utilities","Mains Water Suppliers","II","BACS","None",2021-04-01 00:00:00,"2021","01","8432307-6/010421","M1151","Tenants Services (BHS)","B2001","Utilities"
"GUILDFORD BOROUGH COUNCIL","Public Relations","Paul Marcus Media","1000178","29/04/2021",30020695,1500,0,"Advertising, Publicity & Promotion","","II","BACS","None",2021-04-06 00:00:00,"2021","01","0122","F5551","Public Relations & Marketing","D5002","Advertising, Publicity & Promotion"
"GUILDFORD BOROUGH COUNCIL","Community Safety","Storage On Site Ltd","987880","22/04/2021",30020696,39.8,0,"Equipment","","II","BACS","None",2021-03-29 00:00:00,"2021","01","497209","F5711","Community Safety Team","D2001","Equipment"
"GUILDFORD BOROUGH COUNCIL","Off Street Parking","Brand Pest Control","202390","29/04/2021",30020697,295,0,"Cleaning Contractors","Pest And Vermin Control Service Providers","II","BACS","None",2021-04-06 00:00:00,"2021","01","2057","B2216","General Upkeep- Urban Car Pks","D6006","Cleaning Contractors"
"GUILDFORD BOROUGH COUNCIL","Cemeteries","AGB Contractors Limited","766060","27/04/2021",30020698,218,0,"Asset Maintenance","General Builders","II","BACS","None",2021-04-12 00:00:00,"2021","01","210412","A1420","Cemeteries - The Mount","B1001","Asset Maintenance"
"GUILDFORD BOROUGH COUNCIL","Cemeteries","AGB Contractors Limited","766060","27/04/2021",30020698,1050,0,"Asset Maintenance","General Builders","II","BACS","None",2021-04-12 00:00:00,"2021","01","210412","A1420","Cemeteries - The Mount","B1001","Asset Maintenance"
"GUILDFORD BOROUGH COUNCIL","Tenant Services","British Gas Trading Ltd","341270","29/04/2021",30020699,35.27,0,"Utilities","Mains Utility Multiple Service Providers","II","BACS","None",2021-04-05 00:00:00,"2021","01","851011854465/050421","M1151","Tenants Services (BHS)","B2001","Utilities"
"GUILDFORD BOROUGH COUNCIL","Street Cleansing","Pristine Gardens","698350","20/04/2021",30020700,960,0,"Services","Grounds Maintenance Providers","II","BACS","None",2021-03-10 00:00:00,"2021","01","1966","K4551","Street Cleansing","D6004","Services"
"GUILDFORD BOROUGH COUNCIL","Vehicle Maintenance","Berendsen Workwear Ltd T/A Elis","817300","27/04/2021",30020701,401.65,0,"Clothing & Uniform","Linen And Blanket Suppliers","II","BACS","None",2021-04-01 00:00:00,"2021","01","SN3357944","K5551","Fleet Workshops","D4001","Clothing & Uniform"
"GUILDFORD BOROUGH COUNCIL","Major Projects","The Oyster Partnership Ltd","814220","15/04/2021",30020702,2900,0,"Agency","Other Recruitment Agencies And Service Providers","II","BACS","None",2021-03-17 00:00:00,"2021","01","1091696","F5530","Major Projects","A5191","Agency"
"GUILDFORD BOROUGH COUNCIL","Industrial Estates","Harpers Door Specialists","759110","15/04/2021",30020703,140,0,"Asset Maintenance","Security Shutter, Door And Gate Contractors","II","BACS","None",2021-04-08 00:00:00,"2021","01","SI-3719","B5376","Slyfield Foundation Units - Rechargeable","B1001","Asset Maintenance"
"GUILDFORD BOROUGH COUNCIL","Community Meals and Transport","Apetito Ltd","604000","27/04/2021",30020704,20676.42,0,"Catering","Frozen Food Suppliers","II","BACS","None",2021-03-31 00:00:00,"2021","01","9003418518","C8142","Community Meals Service","D3001","Catering"
"GUILDFORD BOROUGH COUNCIL","Building Maintenance","MMP Consultancy Ltd","946090","20/04/2021",30020705,1433.19,0,"Consultancy","Other Recruitment Agencies And Service Providers","II","BACS","None",2020-08-18 00:00:00,"2021","01","46189","K1515","Building Maintenance","D6001","Consultancy"
"GUILDFORD BOROUGH COUNCIL","Vehicle Maintenance","ATE (UK) Ltd.","1000044","29/04/2021",30020706,20.85,0,"Repair And Maintenance Of Vehicles","","II","BACS","None",2021-04-07 00:00:00,"2021","01","IN389430","K5551","Fleet Workshops","C1002","Repair And Maintenance Of Vehicles"
"GUILDFORD BOROUGH COUNCIL","Property","AGB Contractors Limited","766060","20/04/2021",30020707,212,0,"Contractor Payments","General Builders","II","BACS","None",2021-04-12 00:00:00,"2021","01","210412A","P74077","2 THE BILLINGS VOID WORKS","1233","Contractor Payments"
"GUILDFORD BOROUGH COUNCIL","Property","AGB Contractors Limited","766060","20/04/2021",30020707,1050,0,"Contractor Payments","General Builders","II","BACS","None",2021-04-12 00:00:00,"2021","01","210412A","P74077","2 THE BILLINGS VOID WORKS","1233","Contractor Payments"
"GUILDFORD BOROUGH COUNCIL","Electoral Registration","Royal Mail Group Ltd (Chesterfield)","878030","20/04/2021",30020708,270.16,0,"Postage","","II","BACS","None",2021-03-22 00:00:00,"2021","01","9062640922","F2511","Electoral Registration","D5003","Postage"
"GUILDFORD BOROUGH COUNCIL","Tenant Services","E.On","178880","27/04/2021",30020709,98.66,0,"Utilities","Mains Utility Multiple Service Providers","II","BACS","None",2021-04-03 00:00:00,"2021","01","016690911130/030421","M1151","Tenants Services (BHS)","B2001","Utilities"
"GUILDFORD BOROUGH COUNCIL","Crematorium","Spooners Turf Ltd","746050","20/04/2021",30020710,192.5,0,"Materials","Other Retailers","II","BACS","None",2021-03-08 00:00:00,"2021","01","4517","A1500","Crematorium","D2003","Materials"
"GUILDFORD BOROUGH COUNCIL","Lead Specialist - Finance","Adelante Software Ltd","789120","29/04/2021",30020711,701.7,0,"ICT Software","Software Developers","II","BACS","None",2021-04-07 00:00:00,"2021","01","122543","G3565","Finance Specialists","D7002","ICT Software"
"GUILDFORD BOROUGH COUNCIL","On Street Parking","Capita Business Services Ltd","120400","22/04/2021",30020713,26.48,0,"Printing, Photocopying And Reprographics External","Managed And Outsourced Business Services Providers","II","BACS","None",2021-03-30 00:00:00,"2021","01","6004055936","B2217","Guildford On-Street","D5005","Printing, Photocopying And Reprographics External"
"GUILDFORD BOROUGH COUNCIL","On Street Parking","Capita Business Services Ltd","120400","22/04/2021",30020713,100.5,0,"Postage","Managed And Outsourced Business Services Providers","II","BACS","None",2021-03-30 00:00:00,"2021","01","6004055936","B2217","Guildford On-Street","D5003","Postage"
"GUILDFORD BOROUGH COUNCIL","Off Street Parking","Capita Business Services Ltd","120400","22/04/2021",30020713,10,0,"Printing, Photocopying And Reprographics External","Managed And Outsourced Business Services Providers","II","BACS","None",2021-03-30 00:00:00,"2021","01","6004055936","B2111","Car Parks - Administration","D5005","Printing, Photocopying And Reprographics External"
"GUILDFORD BOROUGH COUNCIL","Off Street Parking","Capita Business Services Ltd","120400","22/04/2021",30020713,18.47,0,"Printing, Photocopying And Reprographics External","Managed And Outsourced Business Services Providers","II","BACS","None",2021-03-30 00:00:00,"2021","01","6004055936","B2111","Car Parks - Administration","D5005","Printing, Photocopying And Reprographics External"
"GUILDFORD BOROUGH COUNCIL","Off Street Parking","Capita Business Services Ltd","120400","22/04/2021",30020713,116.25,0,"Postage","Managed And Outsourced Business Services Providers","II","BACS","None",2021-03-30 00:00:00,"2021","01","6004055936","B2111","Car Parks - Administration","D5003","Postage"
"GUILDFORD BOROUGH COUNCIL","Off Street Parking","Capita Business Services Ltd","120400","22/04/2021",30020713,118.5,0,"Postage","Managed And Outsourced Business Services Providers","II","BACS","None",2021-03-30 00:00:00,"2021","01","6004055936","B2111","Car Parks - Administration","D5003","Postage"
"GUILDFORD BOROUGH COUNCIL","Development Control","Portal Planquest Ltd.","1000021","15/04/2021",30020739,96,0,"Planning Fees","","II","BACS","None",2021-04-14 00:00:00,"2021","01","PP-09685918v1FIH","D5100","Development Control - Fee Earn","K4006","Planning Fees"
"GUILDFORD BOROUGH COUNCIL","Lead Specialist - Legal","Thomson Reuters","673650","27/04/2021",30020768,28173.96,0,"Publications","","II","BACS","None",2021-04-01 00:00:00,"2021","01","6801117692","G4525","Legal Services","D5001","Publications"
"GUILDFORD BOROUGH COUNCIL","Building Maintenance","Cinnamon Construction Limited (CIS)","921860","15/04/2021",30020769,10060,0,"Services","General Builders","II","BACS","None",2021-04-12 00:00:00,"2021","01","X0068127/17/120421","K1515","Building Maintenance","D6004","Services"
"GUILDFORD BOROUGH COUNCIL","Executive - Miscellaneous","H T P Consulting Limited","899630","20/04/2021",30020770,5694,0,"Consultants Fees","Transport Consultants","II","BACS","None",2021-03-23 00:00:00,"2021","01","1192/50","P79032","SMC (West) Phase 1","1221","Consultants Fees"
"GUILDFORD BOROUGH COUNCIL","Guildford House","Omicways Ltd T/A Container Group Buying","898840","06/05/2021",30020771,107.2,0,"Materials","Promotional Item Suppliers","II","BACS","None",2021-04-12 00:00:00,"2021","01","INV077498","A4511","Guildford House Administration","D2003","Materials"
"GUILDFORD BOROUGH COUNCIL","Guildford House","Omicways Ltd T/A Container Group Buying","898840","06/05/2021",30020771,29.4,0,"Materials","Promotional Item Suppliers","II","BACS","None",2021-04-12 00:00:00,"2021","01","INV077498","A4511","Guildford House Administration","D2003","Materials"
"GUILDFORD BOROUGH COUNCIL","Guildford House","Omicways Ltd T/A Container Group Buying","898840","06/05/2021",30020771,64,0,"Materials","Promotional Item Suppliers","II","BACS","None",2021-04-12 00:00:00,"2021","01","INV077498","A4511","Guildford House Administration","D2003","Materials"
"GUILDFORD BOROUGH COUNCIL","Guildford House","Omicways Ltd T/A Container Group Buying","898840","06/05/2021",30020771,50.4,0,"Materials","Promotional Item Suppliers","II","BACS","None",2021-04-12 00:00:00,"2021","01","INV077498","A4511","Guildford House Administration","D2003","Materials"
"GUILDFORD BOROUGH COUNCIL","Guildford House","Omicways Ltd T/A Container Group Buying","898840","06/05/2021",30020771,15.12,0,"Materials","Promotional Item Suppliers","II","BACS","None",2021-04-12 00:00:00,"2021","01","INV077498","A4511","Guildford House Administration","D2003","Materials"
"GUILDFORD BOROUGH COUNCIL","Guildford House","Omicways Ltd T/A Container Group Buying","898840","06/05/2021",30020771,30,0,"Materials","Promotional Item Suppliers","II","BACS","None",2021-04-12 00:00:00,"2021","01","INV077498","A4511","Guildford House Administration","D2003","Materials"
"GUILDFORD BOROUGH COUNCIL","Guildford House","Omicways Ltd T/A Container Group Buying","898840","06/05/2021",30020772,60,0,"Materials","Promotional Item Suppliers","II","BACS","None",2021-04-12 00:00:00,"2021","01","INV077499","A4511","Guildford House Administration","D2003","Materials"
"GUILDFORD BOROUGH COUNCIL","Guildford House","Omicways Ltd T/A Container Group Buying","898840","06/05/2021",30020772,23.4,0,"Materials","Promotional Item Suppliers","II","BACS","None",2021-04-12 00:00:00,"2021","01","INV077499","A4511","Guildford House Administration","D2003","Materials"
"GUILDFORD BOROUGH COUNCIL","Guildford House","Omicways Ltd T/A Container Group Buying","898840","06/05/2021",30020772,30,0,"Materials","Promotional Item Suppliers","II","BACS","None",2021-04-12 00:00:00,"2021","01","INV077499","A4511","Guildford House Administration","D2003","Materials"
"GUILDFORD BOROUGH COUNCIL","Guildford House","Omicways Ltd T/A Container Group Buying","898840","06/05/2021",30020772,23.4,0,"Materials","Promotional Item Suppliers","II","BACS","None",2021-04-12 00:00:00,"2021","01","INV077499","A4511","Guildford House Administration","D2003","Materials"
"GUILDFORD BOROUGH COUNCIL","Guildford House","Omicways Ltd T/A Container Group Buying","898840","06/05/2021",30020772,21,0,"Materials","Promotional Item Suppliers","II","BACS","None",2021-04-12 00:00:00,"2021","01","INV077499","A4511","Guildford House Administration","D2003","Materials"
"GUILDFORD BOROUGH COUNCIL","Guildford House","Omicways Ltd T/A Container Group Buying","898840","06/05/2021",30020772,56.4,0,"Materials","Promotional Item Suppliers","II","BACS","None",2021-04-12 00:00:00,"2021","01","INV077499","A4511","Guildford House Administration","D2003","Materials"
"GUILDFORD BOROUGH COUNCIL","Guildford House","Omicways Ltd T/A Container Group Buying","898840","06/05/2021",30020772,30.72,0,"Materials","Promotional Item Suppliers","II","BACS","None",2021-04-12 00:00:00,"2021","01","INV077499","A4511","Guildford House Administration","D2003","Materials"
"GUILDFORD BOROUGH COUNCIL","Guildford House","Omicways Ltd T/A Container Group Buying","898840","06/05/2021",30020772,27.96,0,"Materials","Promotional Item Suppliers","II","BACS","None",2021-04-12 00:00:00,"2021","01","INV077499","A4511","Guildford House Administration","D2003","Materials"
"GUILDFORD BOROUGH COUNCIL","Off Street Parking","FASTSIGNS (Guildford) Ltd","199300","15/04/2021",30020773,52,0,"Printing, Photocopying And Reprographics External","Building Signage Suppliers","II","BACS","None",2020-12-04 00:00:00,"2021","01","858--17376","B2216","General Upkeep- Urban Car Pks","D5005","Printing, Photocopying And Reprographics External"
"GUILDFORD BOROUGH COUNCIL","Inventories","Akw Medi-Care Limited","178400","27/04/2021",30020774,103.86,0,"Purchases","Mobility Disability Equipment Suppliers","II","BACS","None",2021-03-31 00:00:00,"2021","01","1912230SALESORDERNO","I01001","Stocks","2591","Purchases"
"GUILDFORD BOROUGH COUNCIL","Vehicle Maintenance","Fuller Tyres Limited","882220","04/05/2021",30020775,105.66,0,"Repair And Maintenance Of Vehicles","Other Vehicle Equipment Providers","II","BACS","None",2021-03-15 00:00:00,"2021","01","FTI-29618","K5551","Fleet Workshops","C1002","Repair And Maintenance Of Vehicles"
"GUILDFORD BOROUGH COUNCIL","Resources Caseworker","Digital ID Limited","771890","06/05/2021",30020776,219.2,0,"Materials","Alarm And Access Control System Suppliers","II","BACS","None",2021-04-12 00:00:00,"2021","01","0000428229","G7511","Millmead House","D2003","Materials"
"GUILDFORD BOROUGH COUNCIL","Millmead House","Digital ID Limited","771890","06/05/2021",30020776,219.2,0,"Materials","Alarm And Access Control System Suppliers","II","BACS","None",2021-04-12 00:00:00,"2021","01","0000428229","G7511","Millmead House","D2003","Materials"
"GUILDFORD BOROUGH COUNCIL","Vehicle Maintenance","Fuller Tyres Limited","882220","20/04/2021",30020777,127,0,"Repair And Maintenance Of Vehicles","Other Vehicle Equipment Providers","II","BACS","None",2021-03-18 00:00:00,"2021","01","FTI-29619","K5551","Fleet Workshops","C1002","Repair And Maintenance Of Vehicles"
"GUILDFORD BOROUGH COUNCIL","Vehicle Maintenance","Fuller Tyres Limited","882220","20/04/2021",30020778,67,0,"Repair And Maintenance Of Vehicles","Other Vehicle Equipment Providers","II","BACS","None",2021-03-18 00:00:00,"2021","01","FTI-29623","K5551","Fleet Workshops","C1002","Repair And Maintenance Of Vehicles"
"GUILDFORD BOROUGH COUNCIL","Business Improvement","E-Personnel Recruitment Ltd","720390","06/05/2021",30020779,603.1,0,"Agency","Other Recruitment Agencies And Service Providers","II","BACS","None",2021-04-13 00:00:00,"2021","01","17320","G3531","Future Guildford","A5191","Agency"
"GUILDFORD BOROUGH COUNCIL","Audit Management","E-Personnel Recruitment Ltd","720390","06/05/2021",30020779,603.1,0,"Agency","Other Recruitment Agencies And Service Providers","II","BACS","None",2021-04-13 00:00:00,"2021","01","17320","G3531","Future Guildford","A5191","Agency"
"GUILDFORD BOROUGH COUNCIL","Emergency Communications","PPP Taking Care","971860","29/04/2021",30020781,3565.83,0,"Specialist Services","","II","BACS","None",2021-04-09 00:00:00,"2021","01","S1533024","C2511","Careline/Telecare","D6009","Specialist Services"
"GUILDFORD BOROUGH COUNCIL","Building Control","Matchtech Group UK Ltd","933930","15/04/2021",30020782,-38.7,0,"Agency","Other Recruitment Agencies And Service Providers","II","BACS","None",2021-04-12 00:00:00,"2021","01","748800","D5700","Building Control - Fee","A5191","Agency"
"GUILDFORD BOROUGH COUNCIL","Guildford House","Bernard Sims Associates","685740","11/05/2021",30020783,2500,0,"Consultancy","Health And Safety Consultants","II","BACS","None",2021-04-14 00:00:00,"2021","01","0000048825","A4511","Guildford House Administration","D6001","Consultancy"
"GUILDFORD BOROUGH COUNCIL","Civil Emergencies","Applied Resilience Limited","822600","27/04/2021",30020784,2188.75,0,"Specialist Services","Other Business Service Providers","II","BACS","None",2021-04-01 00:00:00,"2021","01","GBC85","F1511","Civil Emergencies","D6009","Specialist Services"
"GUILDFORD BOROUGH COUNCIL","Markets","FASTSIGNS (Guildford) Ltd","199300","20/04/2021",30020785,130,0,"Purchase Of Shares","Building Signage Suppliers","II","BACS","None",2020-09-29 00:00:00,"2021","01","858--17230","F5550","Farmers Market","1124","Purchase Of Shares"
"GUILDFORD BOROUGH COUNCIL","Markets","FASTSIGNS (Guildford) Ltd","199300","20/04/2021",30020786,130,0,"Publicity & Marketing","Building Signage Suppliers","II","BACS","None",2020-10-11 00:00:00,"2021","01","858--17330","F5550","Farmers Market","1578","Publicity & Marketing"
"GUILDFORD BOROUGH COUNCIL","Grants","The OT Practice Ltd","984970","27/04/2021",30020787,1400,0,"Consultancy","","II","BACS","None",2021-03-31 00:00:00,"2021","01","INV-026941","N51019","BCF Non Grant Expenditure","D6001","Consultancy"
"GUILDFORD BOROUGH COUNCIL","Lead Specialist - Legal","Kodak Alaris Limited","1000305","15/04/2021",30020788,209,0,"Equipment","","II","BACS","None",2020-07-21 00:00:00,"2021","01","GBP000013207","G4525","Legal Services","D2001","Equipment"
"GUILDFORD BOROUGH COUNCIL","Vehicle Maintenance","Frm Truck & Trailer Spares Ltd","208100","11/05/2021",30020789,210.48,0,"Repair And Maintenance Of Vehicles","Car And Van Parts Suppliers","II","BACS","None",2021-04-14 00:00:00,"2021","01","356932","K5551","Fleet Workshops","C1002","Repair And Maintenance Of Vehicles"
"GUILDFORD BOROUGH COUNCIL","Markets","FASTSIGNS (Guildford) Ltd","199300","20/04/2021",30020790,130,0,"Advertising, Publicity & Promotion","Building Signage Suppliers","II","BACS","None",2020-11-10 00:00:00,"2021","01","858--17281","F5550","Farmers Market","D5002","Advertising, Publicity & Promotion"
"GUILDFORD BOROUGH COUNCIL","Countryside and Parks Services","A & P Services (Surrey) Ltd","320160","06/05/2021",30020791,864.54,0,"Repair And Maintenance Of Vehicles","Agricultural Engineers","II","BACS","None",2021-04-12 00:00:00,"2021","01","6650","A1100","Horticulture","C1002","Repair And Maintenance Of Vehicles"
"GUILDFORD BOROUGH COUNCIL","Countryside and Parks Services","A & P Services (Surrey) Ltd","320160","06/05/2021",30020792,74.6,0,"Repair And Maintenance Of Vehicles","Agricultural Engineers","II","BACS","None",2021-04-12 00:00:00,"2021","01","6649","A1100","Horticulture","C1002","Repair And Maintenance Of Vehicles"
"GUILDFORD BOROUGH COUNCIL","Car Leasing Holding Code (Service)","Car Hire (Day Of Swansea) Ltd","856090","25/05/2021",30020793,292.5,0,"Car Leasing","Car, Van And Truck Hire Companies","II","BACS","None",2021-04-01 00:00:00,"2021","01","INV00282897","G1131","Car Leasing Holding Code","C3002","Car Leasing"
"GUILDFORD BOROUGH COUNCIL","Car Leasing Holding Code (Service)","Car Hire (Day Of Swansea) Ltd","856090","25/05/2021",30020793,256.98,0,"Car Leasing","Car, Van And Truck Hire Companies","II","BACS","None",2021-04-01 00:00:00,"2021","01","INV00282897","G1131","Car Leasing Holding Code","C3002","Car Leasing"
"GUILDFORD BOROUGH COUNCIL","Major Projects","Gardiner & Theobald LLP","1000209","27/04/2021",30020794,22477.44,0,"Consultancy","","II","BACS","None",2021-03-31 00:00:00,"2021","01","SC236537","F5530","Major Projects","D6001","Consultancy"
"GUILDFORD BOROUGH COUNCIL","Council Tax","Morgan Hunt UK Limited","729420","29/04/2021",30020795,753.14,0,"Agency","Other Recruitment Agencies And Service Providers","II","BACS","None",2021-04-11 00:00:00,"2021","01","1225688","F6141","Council Tax Collectn Expenses","A5191","Agency"
"GUILDFORD BOROUGH COUNCIL","Countryside and Parks Services","Rigby Taylor Limited","714600","06/05/2021",30020796,483.14,0,"Materials","Gardening Equipment Suppliers","II","BACS","None",2021-04-12 00:00:00,"2021","01","RSIN0368540","A1250","Stoke Park","D2003","Materials"
"GUILDFORD BOROUGH COUNCIL","Countryside and Parks Services","Rigby Taylor Limited","714600","06/05/2021",30020796,161.08,0,"Materials","Gardening Equipment Suppliers","II","BACS","None",2021-04-12 00:00:00,"2021","01","RSIN0368540","A1245","Stoke Recreation Ground","D2003","Materials"
"GUILDFORD BOROUGH COUNCIL","Countryside and Parks Services","Rigby Taylor Limited","714600","06/05/2021",30020796,322.06,0,"Materials","Gardening Equipment Suppliers","II","BACS","None",2021-04-12 00:00:00,"2021","01","RSIN0368540","A1232","Sutherland Memorial Park","D2003","Materials"
"GUILDFORD BOROUGH COUNCIL","Countryside and Parks Services","Rigby Taylor Limited","714600","06/05/2021",30020796,160.97,0,"Materials","Gardening Equipment Suppliers","II","BACS","None",2021-04-12 00:00:00,"2021","01","RSIN0368540","A1295","East Horsley Bowls Ground And Pavilion","D2003","Materials"
"GUILDFORD BOROUGH COUNCIL","Resources Caseworker","Amazon Payments Europe S.C.A.","951330","06/05/2021",30020797,96.38,0,"Equipment","Other Retailers","II","BACS","None",2021-04-13 00:00:00,"2021","01","INV-GB-179993431-2021-983","G7511","Millmead House","D2001","Equipment"
"GUILDFORD BOROUGH COUNCIL","Millmead House","Amazon Payments Europe S.C.A.","951330","06/05/2021",30020797,96.38,0,"Equipment","Other Retailers","II","BACS","None",2021-04-13 00:00:00,"2021","01","INV-GB-179993431-2021-983","G7511","Millmead House","D2001","Equipment"
"GUILDFORD BOROUGH COUNCIL","Markets","FASTSIGNS (Guildford) Ltd","199300","20/04/2021",30020798,140,0,"Advertising, Publicity & Promotion","Building Signage Suppliers","II","BACS","None",2021-03-28 00:00:00,"2021","01","858--17544","F5550","Farmers Market","D5002","Advertising, Publicity & Promotion"
"GUILDFORD BOROUGH COUNCIL","Vehicle Maintenance","Charters Of Aldershot Limited","128600","06/05/2021",30020799,214.41,0,"Repair And Maintenance Of Vehicles","Third Party Supplier","II","BACS","None",2021-04-12 00:00:00,"2021","01","10251459","K5551","Fleet Workshops","C1002","Repair And Maintenance Of Vehicles"
"GUILDFORD BOROUGH COUNCIL","Council Tax","Morgan Hunt UK Limited","729420","29/04/2021",30020800,727.35,0,"Agency","Other Recruitment Agencies And Service Providers","II","BACS","None",2021-04-11 00:00:00,"2021","01","1225687","F6141","Council Tax Collectn Expenses","A5191","Agency"
"GUILDFORD BOROUGH COUNCIL","Business Improvement","Gravitas Recruitment Group","1000035","22/04/2021",30020801,4640,0,"Agency","","II","BACS","None",2021-04-13 00:00:00,"2021","01","INV167510","G3531","Future Guildford","A5191","Agency"
"GUILDFORD BOROUGH COUNCIL","Audit Management","Gravitas Recruitment Group","1000035","22/04/2021",30020801,4640,0,"Agency","","II","BACS","None",2021-04-13 00:00:00,"2021","01","INV167510","G3531","Future Guildford","A5191","Agency"
"GUILDFORD BOROUGH COUNCIL","Countryside and Parks Services","Soil Biology Limited","957100","27/04/2021",30020802,190,0,"Grounds Maintenance","Third Party Supplier","II","BACS","None",2021-03-31 00:00:00,"2021","01","01737","A1300","Trees And Countryside","B6001","Grounds Maintenance"
"GUILDFORD BOROUGH COUNCIL","Parks Countryside Management","Soil Biology Limited","957100","27/04/2021",30020802,190,0,"Grounds Maintenance","Third Party Supplier","II","BACS","None",2021-03-31 00:00:00,"2021","01","01737","A1300","Trees And Countryside","B6001","Grounds Maintenance"
"GUILDFORD BOROUGH COUNCIL","Development Control","APSE","105080","27/04/2021",30020803,1950,0,"Consultancy","Trade Associations And Regulatory Bodies","II","BACS","None",2021-03-31 00:00:00,"2021","01","2021/2314","D5100","Development Control - Fee Earn","D6001","Consultancy"
"GUILDFORD BOROUGH COUNCIL","Business Improvement","Mason Frank International Limited","1000025","06/05/2021",30020804,3000,0,"Consultancy","","II","BACS","None",2021-04-13 00:00:00,"2021","01","M1000007063","G3531","Future Guildford","D6001","Consultancy"
"GUILDFORD BOROUGH COUNCIL","Audit Management","Mason Frank International Limited","1000025","06/05/2021",30020804,3000,0,"Consultancy","","II","BACS","None",2021-04-13 00:00:00,"2021","01","M1000007063","G3531","Future Guildford","D6001","Consultancy"
"GUILDFORD BOROUGH COUNCIL","Emergency Communications","London Telecare Ltd","697290","27/04/2021",30020805,275,0,"Grants And Subscriptions","Other Community Healthcare Service Providers","II","BACS","None",2021-04-01 00:00:00,"2021","01","897","C2511","Careline/Telecare","D9001","Grants And Subscriptions"
"GUILDFORD BOROUGH COUNCIL","Building Control","Hays Specialist Recruitment Limited","156250","06/05/2021",30020806,1852.51,0,"Agency","Other Recruitment Agencies And Service Providers","II","BACS","None",2021-04-13 00:00:00,"2021","01","1011250712","D5700","Building Control - Fee","A5191","Agency"
"GUILDFORD BOROUGH COUNCIL","Building Control","Matchtech Group UK Ltd","933930","06/05/2021",30020807,38.7,0,"Agency","Other Recruitment Agencies And Service Providers","II","BACS","None",2021-04-12 00:00:00,"2021","01","3530429","D5700","Building Control - Fee","A5191","Agency"
"GUILDFORD BOROUGH COUNCIL","Vehicle Maintenance","Fuller Tyres Limited","882220","04/05/2021",30020808,360.15,0,"Repair And Maintenance Of Vehicles","Other Vehicle Equipment Providers","II","BACS","None",2021-03-18 00:00:00,"2021","01","FTI-29621","K5551","Fleet Workshops","C1002","Repair And Maintenance Of Vehicles"
"GUILDFORD BOROUGH COUNCIL","Building Control","Matchtech Group UK Ltd","933930","15/04/2021",30020809,-21.15,0,"Agency","Other Recruitment Agencies And Service Providers","II","BACS","None",2021-04-12 00:00:00,"2021","01","748801","D5700","Building Control - Fee","A5191","Agency"
"GUILDFORD BOROUGH COUNCIL","Vehicle Maintenance","Fuller Tyres Limited","882220","20/04/2021",30020810,57,0,"Repair And Maintenance Of Vehicles","Other Vehicle Equipment Providers","II","BACS","None",2021-03-18 00:00:00,"2021","01","FTI-29622","K5551","Fleet Workshops","C1002","Repair And Maintenance Of Vehicles"
"GUILDFORD BOROUGH COUNCIL","Refuse and Recycling","Dura-ID Solutions","1000351","06/05/2021",30020811,1008.5,0,"Advertising, Publicity & Promotion","","II","BACS","None",2021-04-13 00:00:00,"2021","01","109830","K3551","Refuse - Domestic","D5002","Advertising, Publicity & Promotion"
"GUILDFORD BOROUGH COUNCIL","Grants","Bentley Mobility Services Limited","929000","06/05/2021",30020812,1490,0,"Outgoing VAT on sales to EU Member states","Mobility Disability Equipment Suppliers","II","BACS","None",2021-04-13 00:00:00,"2021","01","27724","N51019","BCF Non Grant Expenditure","1311","Outgoing VAT on sales to EU Member states"
"GUILDFORD BOROUGH COUNCIL","Grants","Bentley Mobility Services Limited","929000","06/05/2021",30020812,1490,0,"Outgoing VAT on sales to EU Member states","Mobility Disability Equipment Suppliers","II","BACS","None",2021-04-13 00:00:00,"2021","01","27724","N51019","BCF Non Grant Expenditure","1311","Outgoing VAT on sales to EU Member states"
"GUILDFORD BOROUGH COUNCIL","Grants","Bentley Mobility Services Limited","929000","06/05/2021",30020812,1490,0,"Grants To Private Owners","Mobility Disability Equipment Suppliers","II","BACS","None",2021-04-13 00:00:00,"2021","01","27724","N51019","BCF Non Grant Expenditure","1311","Grants To Private Owners"
"GUILDFORD BOROUGH COUNCIL","Grants","Powerguards Inc Ramping System Ltd (Grants & NON CIS)","166950","20/04/2021",30020813,1280,0,"Outgoing VAT on sales to EU Member states","Fixed Disability Equipment Suppliers","II","BACS","None",2021-03-24 00:00:00,"2021","01","16923","N51019","BCF Non Grant Expenditure","1311","Outgoing VAT on sales to EU Member states"
"GUILDFORD BOROUGH COUNCIL","Grants","Powerguards Inc Ramping System Ltd (Grants & NON CIS)","166950","20/04/2021",30020813,1280,0,"Outgoing VAT on sales to EU Member states","Fixed Disability Equipment Suppliers","II","BACS","None",2021-03-24 00:00:00,"2021","01","16923","N51019","BCF Non Grant Expenditure","1311","Outgoing VAT on sales to EU Member states"
"GUILDFORD BOROUGH COUNCIL","Grants","Powerguards Inc Ramping System Ltd (Grants & NON CIS)","166950","20/04/2021",30020813,1280,0,"Grants To Private Owners","Fixed Disability Equipment Suppliers","II","BACS","None",2021-03-24 00:00:00,"2021","01","16923","N51019","BCF Non Grant Expenditure","1311","Grants To Private Owners"
"GUILDFORD BOROUGH COUNCIL","HRA Income","Rent Refunds","9999997","20/04/2021",30020999,235.46,0,"Rent","","II","BACS","None",2021-04-15 00:00:00,"2021","01","L Battle 100534400006","M9111","General Income","K5001","Rent"
"GUILDFORD BOROUGH COUNCIL","Grants","Specialist Adaptive Services Ltd","803110","20/04/2021",30021002,5350,0,"Outgoing VAT on sales to EU Member states","Fixed Disability Equipment Suppliers","II","BACS","None",2021-04-14 00:00:00,"2021","01","INV-0017","N51008","Mandatory DFG","1311","Outgoing VAT on sales to EU Member states"
"GUILDFORD BOROUGH COUNCIL","Grants","Specialist Adaptive Services Ltd","803110","20/04/2021",30021002,5350,0,"Outgoing VAT on sales to EU Member states","Fixed Disability Equipment Suppliers","II","BACS","None",2021-04-14 00:00:00,"2021","01","INV-0017","N51008","Mandatory DFG","1311","Outgoing VAT on sales to EU Member states"
"GUILDFORD BOROUGH COUNCIL","Grants","Specialist Adaptive Services Ltd","803110","20/04/2021",30021002,5350,0,"Grants To Private Owners","Fixed Disability Equipment Suppliers","II","BACS","None",2021-04-14 00:00:00,"2021","01","INV-0017","N51008","Mandatory DFG","1311","Grants To Private Owners"
"GUILDFORD BOROUGH COUNCIL","Grants","Stannah Stairlifts Ltd (Grants only)","766700","22/04/2021",30021003,4863,0,"Outgoing VAT on sales to EU Member states","Stairlift Suppliers","II","BACS","None",2021-03-29 00:00:00,"2021","01","1085292935","N51019","BCF Non Grant Expenditure","1311","Outgoing VAT on sales to EU Member states"
"GUILDFORD BOROUGH COUNCIL","Grants","Stannah Stairlifts Ltd (Grants only)","766700","22/04/2021",30021003,4863,0,"Outgoing VAT on sales to EU Member states","Stairlift Suppliers","II","BACS","None",2021-03-29 00:00:00,"2021","01","1085292935","N51019","BCF Non Grant Expenditure","1311","Outgoing VAT on sales to EU Member states"
"GUILDFORD BOROUGH COUNCIL","Grants","Stannah Stairlifts Ltd (Grants only)","766700","22/04/2021",30021003,4863,0,"Grants To Private Owners","Stairlift Suppliers","II","BACS","None",2021-03-29 00:00:00,"2021","01","1085292935","N51019","BCF Non Grant Expenditure","1311","Grants To Private Owners"
"GUILDFORD BOROUGH COUNCIL","Property","John Thompson & Partners LLP","974700","22/04/2021",30021004,1200,0,"Consultants Fees","","II","BACS","None",2021-04-15 00:00:00,"2021","01","payment adjustment","P74040","Slyfield Area Regeneration Project","1221","Consultants Fees"
"GUILDFORD BOROUGH COUNCIL","Development Control","Portal Planquest Ltd.","1000021","20/04/2021",30021005,234,0,"Planning Fees","","II","BACS","None",2021-03-08 00:00:00,"2021","01","PP09524075v1VMP","D5100","Development Control - Fee Earn","K4006","Planning Fees"
"GUILDFORD BOROUGH COUNCIL","Vehicle Maintenance","Charters Of Aldershot Limited","128600","11/05/2021",30021007,181.72,0,"Repair And Maintenance Of Vehicles","Third Party Supplier","II","BACS","None",2021-04-14 00:00:00,"2021","01","10251467","K5551","Fleet Workshops","C1002","Repair And Maintenance Of Vehicles"
"GUILDFORD BOROUGH COUNCIL","Corporate Health and Safety","Osteopaths For Industry Ltd","1000277","20/04/2021",30021008,442.5,0,"Staff Costs","","II","BACS","None",2021-02-01 00:00:00,"2021","01","INV-1346","G2525","Health And Safety","A7100","Staff Costs"
"GUILDFORD BOROUGH COUNCIL","Refuse and Recycling","Osteopaths For Industry Ltd","1000277","20/04/2021",30021008,442.5,0,"Staff Costs","","II","BACS","None",2021-02-01 00:00:00,"2021","01","INV-1346","K3551","Refuse - Domestic","A7100","Staff Costs"
"GUILDFORD BOROUGH COUNCIL","Vehicle Maintenance","Lister Wilder Ltd","299800","27/04/2021",30021009,588.83,0,"Repair And Maintenance Of Vehicles","Emergency And Other Specialist Vehicle Dealers","II","BACS","None",2021-03-31 00:00:00,"2021","01","506451","K5551","Fleet Workshops","C1002","Repair And Maintenance Of Vehicles"
"GUILDFORD BOROUGH COUNCIL","Vehicle Maintenance","Lister Wilder Ltd","299800","27/04/2021",30021009,58.88,0,"Repair And Maintenance Of Vehicles","Emergency And Other Specialist Vehicle Dealers","II","BACS","None",2021-03-31 00:00:00,"2021","01","506451","K5551","Fleet Workshops","C1002","Repair And Maintenance Of Vehicles"
"GUILDFORD BOROUGH COUNCIL","Affordable Housing","Vivid Resourcing Limited","856800","11/05/2021",30021010,1605,0,"Agency","Other Recruitment Agencies And Service Providers","II","BACS","None",2021-04-14 00:00:00,"2021","01","58087","C4111","Affordable Housing Development","A5191","Agency"
"GUILDFORD BOROUGH COUNCIL","Affordable Housing","Vivid Resourcing Limited","856800","11/05/2021",30021011,2040.5,0,"Agency","Other Recruitment Agencies And Service Providers","II","BACS","None",2021-04-14 00:00:00,"2021","01","58088","C4111","Affordable Housing Development","A5191","Agency"
"GUILDFORD BOROUGH COUNCIL","New Build","Carrington West Limited","950550","11/05/2021",30021012,312,0,"Consultants Fees","Other Recruitment Agencies And Service Providers","II","BACS","None",2021-04-15 00:00:00,"2021","01","158049","N30022","Manor House Flats","1221","Consultants Fees"
"GUILDFORD BOROUGH COUNCIL","New Build","Carrington West Limited","950550","11/05/2021",30021012,312,0,"Consultants Fees","Other Recruitment Agencies And Service Providers","II","BACS","None",2021-04-15 00:00:00,"2021","01","158049","N30027","Station Road East","1221","Consultants Fees"
"GUILDFORD BOROUGH COUNCIL","Affordable Hsg - Site Prep Etc","Carrington West Limited","950550","11/05/2021",30021012,624,0,"Consultants Fees","Other Recruitment Agencies And Service Providers","II","BACS","None",2021-04-15 00:00:00,"2021","01","158049","N55023","Clover Road Garages","1221","Consultants Fees"
"GUILDFORD BOROUGH COUNCIL","New Build","Carrington West Limited","950550","11/05/2021",30021012,156,0,"Consultants Fees","Other Recruitment Agencies And Service Providers","II","BACS","None",2021-04-15 00:00:00,"2021","01","158049","N30012","Appletree Pub Site","1221","Consultants Fees"
"GUILDFORD BOROUGH COUNCIL","New Build","Carrington West Limited","950550","11/05/2021",30021012,156,0,"Consultants Fees","Other Recruitment Agencies And Service Providers","II","BACS","None",2021-04-15 00:00:00,"2021","01","158049","N30019","Ladymead/Fire Station Site","1221","Consultants Fees"
"GUILDFORD BOROUGH COUNCIL","Off Street Parking","Royal Mail Group Ltd (Chesterfield)","878030","27/04/2021",30021013,13.02,0,"Postage","","II","BACS","None",2021-04-01 00:00:00,"2021","01","9062706218","B2111","Car Parks - Administration","D5003","Postage"
"GUILDFORD BOROUGH COUNCIL","Guildford Museum","Joanna Wiltcher","957850","27/04/2021",30021014,3800,0,"Consultancy","Interim Management Agencies","II","BACS","None",2021-04-03 00:00:00,"2021","01","JW/GBC28","A5511","Museum","D6001","Consultancy"
"GUILDFORD BOROUGH COUNCIL","Off Street Parking","Nilfisk Ltd","232730","22/04/2021",30021015,164,0,"Services","Cleaning And Janitorial Equipment And Supplies Providers","II","BACS","None",2021-03-29 00:00:00,"2021","01","3024554482","B2216","General Upkeep- Urban Car Pks","D6004","Services"
"GUILDFORD BOROUGH COUNCIL","Inventories","Screwfix (Trade UK - Screwfix / B&Q)","650550","29/04/2021",30021016,21,0,"Purchases","Do-It-Yourself (Diy) Stores","II","BACS","None",2021-04-09 00:00:00,"2021","01","1152552031","I01001","Stocks","2591","Purchases"
"GUILDFORD BOROUGH COUNCIL","Countryside and Parks Services","Tudor (UK) Ltd T/A Tudor Environmental","950920","11/05/2021",30021017,64.04,0,"Equipment","Gardening Equipment Suppliers","II","BACS","None",2021-04-14 00:00:00,"2021","01","IN0120343","A1100","Horticulture","D2001","Equipment"
"GUILDFORD BOROUGH COUNCIL","Resources Caseworker","Quadient UK Ltd","186720","11/05/2021",30021018,1089.46,0,"Services","Postal Equipment Suppliers","II","BACS","None",2021-04-14 00:00:00,"2021","01","2021022553","G4545","Reprographics","D6004","Services"
"GUILDFORD BOROUGH COUNCIL","Vehicle Maintenance","Geesink Norba Ltd","214500","06/05/2021",30021019,588.4,0,"Repair And Maintenance Of Vehicles","Waste Disposal Equipment Suppliers","II","BACS","None",2021-04-12 00:00:00,"2021","01","90027344","K5551","Fleet Workshops","C1002","Repair And Maintenance Of Vehicles"
"GUILDFORD BOROUGH COUNCIL","New Build","Carrington West Limited","950550","11/05/2021",30021020,195,0,"Consultants Fees","Other Recruitment Agencies And Service Providers","II","BACS","None",2021-04-15 00:00:00,"2021","01","158048","N30019","Ladymead/Fire Station Site","1221","Consultants Fees"
"GUILDFORD BOROUGH COUNCIL","New Build","Carrington West Limited","950550","11/05/2021",30021020,195,0,"Consultants Fees","Other Recruitment Agencies And Service Providers","II","BACS","None",2021-04-15 00:00:00,"2021","01","158048","N30012","Appletree Pub Site","1221","Consultants Fees"
"GUILDFORD BOROUGH COUNCIL","New Build","Carrington West Limited","950550","11/05/2021",30021020,390,0,"Consultants Fees","Other Recruitment Agencies And Service Providers","II","BACS","None",2021-04-15 00:00:00,"2021","01","158048","N30022","Manor House Flats","1221","Consultants Fees"
"GUILDFORD BOROUGH COUNCIL","New Build","Carrington West Limited","950550","11/05/2021",30021020,390,0,"Consultants Fees","Other Recruitment Agencies And Service Providers","II","BACS","None",2021-04-15 00:00:00,"2021","01","158048","N30027","Station Road East","1221","Consultants Fees"
"GUILDFORD BOROUGH COUNCIL","Affordable Hsg - Site Prep Etc","Carrington West Limited","950550","11/05/2021",30021020,780,0,"Consultants Fees","Other Recruitment Agencies And Service Providers","II","BACS","None",2021-04-15 00:00:00,"2021","01","158048","N55023","Clover Road Garages","1221","Consultants Fees"
"GUILDFORD BOROUGH COUNCIL","Licensing","Mink Farm Boarding Kennels and Cattery","968950","27/04/2021",30021021,1141.08,0,"Services","Animal Boarding Service Providers","II","BACS","None",2021-03-31 00:00:00,"2021","01","43167","H2100","Licensing Services","D6004","Services"
"GUILDFORD BOROUGH COUNCIL","Housing Benefits","Eden Brown Ltd","829540","11/05/2021",30021022,892.5,0,"Agency","Other Recruitment Agencies And Service Providers","II","BACS","None",2021-04-14 00:00:00,"2021","01","1269209","C4511","Housing Benefits Admin.","A5191","Agency"
"GUILDFORD BOROUGH COUNCIL","Government Short Term Debtors","Shaw & Sons Limited","748800","06/05/2021",30021023,57.24,0,"Debt Royalties/Commisions","Printing Service Providers","II","BACS","None",2021-04-12 00:00:00,"2021","01","0000280271","J01194","Elections - PCC","2445","Debt Royalties/Commisions"
"GUILDFORD BOROUGH COUNCIL","Government Short Term Debtors","Shaw & Sons Limited","748800","06/05/2021",30021023,57.24,0,"Debt Royalties/Commisions","Printing Service Providers","II","BACS","None",2021-04-12 00:00:00,"2021","01","0000280271","J01194","Elections - PCC","2445","Debt Royalties/Commisions"
"GUILDFORD BOROUGH COUNCIL","Government Short Term Debtors","Shaw & Sons Limited","748800","06/05/2021",30021023,57.24,0,"Polling Station Costs","Printing Service Providers","II","BACS","None",2021-04-12 00:00:00,"2021","01","0000280271","J01194","Elections - PCC","2445","Polling Station Costs"
"GUILDFORD BOROUGH COUNCIL","Government Short Term Debtors","Shaw & Sons Limited","748800","06/05/2021",30021023,39.38,0,"Debt Royalties/Commisions","Printing Service Providers","II","BACS","None",2021-04-12 00:00:00,"2021","01","0000280271","J01194","Elections - PCC","2445","Debt Royalties/Commisions"
"GUILDFORD BOROUGH COUNCIL","Government Short Term Debtors","Shaw & Sons Limited","748800","06/05/2021",30021023,39.38,0,"Debt Royalties/Commisions","Printing Service Providers","II","BACS","None",2021-04-12 00:00:00,"2021","01","0000280271","J01194","Elections - PCC","2445","Debt Royalties/Commisions"
"GUILDFORD BOROUGH COUNCIL","Government Short Term Debtors","Shaw & Sons Limited","748800","06/05/2021",30021023,39.38,0,"Polling Station Costs","Printing Service Providers","II","BACS","None",2021-04-12 00:00:00,"2021","01","0000280271","J01194","Elections - PCC","2445","Polling Station Costs"
"GUILDFORD BOROUGH COUNCIL","Government Short Term Debtors","Shaw & Sons Limited","748800","06/05/2021",30021023,129.85,0,"Debt Royalties/Commisions","Printing Service Providers","II","BACS","None",2021-04-12 00:00:00,"2021","01","0000280271","J01194","Elections - PCC","2445","Debt Royalties/Commisions"
"GUILDFORD BOROUGH COUNCIL","Government Short Term Debtors","Shaw & Sons Limited","748800","06/05/2021",30021023,129.85,0,"Debt Royalties/Commisions","Printing Service Providers","II","BACS","None",2021-04-12 00:00:00,"2021","01","0000280271","J01194","Elections - PCC","2445","Debt Royalties/Commisions"
"GUILDFORD BOROUGH COUNCIL","Government Short Term Debtors","Shaw & Sons Limited","748800","06/05/2021",30021023,129.85,0,"Polling Station Costs","Printing Service Providers","II","BACS","None",2021-04-12 00:00:00,"2021","01","0000280271","J01194","Elections - PCC","2445","Polling Station Costs"
"GUILDFORD BOROUGH COUNCIL","Planning Policy","Shaw & Sons Limited","748800","06/05/2021",30021023,20.16,0,"Printing, Photocopying And Reprographics External","Printing Service Providers","II","BACS","None",2021-04-12 00:00:00,"2021","01","0000280271","D5301","Neigbourhood Plans","D5005","Printing, Photocopying And Reprographics External"
"GUILDFORD BOROUGH COUNCIL","Planning Policy","Shaw & Sons Limited","748800","06/05/2021",30021023,-0.02,0,"Printing, Photocopying And Reprographics External","Printing Service Providers","II","BACS","None",2021-04-12 00:00:00,"2021","01","0000280271","D5301","Neigbourhood Plans","D5005","Printing, Photocopying And Reprographics External"
"GUILDFORD BOROUGH COUNCIL","Government Short Term Debtors","Shaw & Sons Limited","748800","06/05/2021",30021023,192.5,0,"Debt Royalties/Commisions","Printing Service Providers","II","BACS","None",2021-04-12 00:00:00,"2021","01","0000280271","J01195","Elections - SCC","2445","Debt Royalties/Commisions"
"GUILDFORD BOROUGH COUNCIL","Government Short Term Debtors","Shaw & Sons Limited","748800","06/05/2021",30021023,192.5,0,"Debt Royalties/Commisions","Printing Service Providers","II","BACS","None",2021-04-12 00:00:00,"2021","01","0000280271","J01195","Elections - SCC","2445","Debt Royalties/Commisions"
"GUILDFORD BOROUGH COUNCIL","Government Short Term Debtors","Shaw & Sons Limited","748800","06/05/2021",30021023,192.5,0,"Polling Station Costs","Printing Service Providers","II","BACS","None",2021-04-12 00:00:00,"2021","01","0000280271","J01195","Elections - SCC","2445","Polling Station Costs"
"GUILDFORD BOROUGH COUNCIL","Government Short Term Debtors","Shaw & Sons Limited","748800","06/05/2021",30021023,39.38,0,"Debt Royalties/Commisions","Printing Service Providers","II","BACS","None",2021-04-12 00:00:00,"2021","01","0000280271","J01195","Elections - SCC","2445","Debt Royalties/Commisions"
"GUILDFORD BOROUGH COUNCIL","Government Short Term Debtors","Shaw & Sons Limited","748800","06/05/2021",30021023,39.38,0,"Debt Royalties/Commisions","Printing Service Providers","II","BACS","None",2021-04-12 00:00:00,"2021","01","0000280271","J01195","Elections - SCC","2445","Debt Royalties/Commisions"
"GUILDFORD BOROUGH COUNCIL","Government Short Term Debtors","Shaw & Sons Limited","748800","06/05/2021",30021023,39.38,0,"Polling Station Costs","Printing Service Providers","II","BACS","None",2021-04-12 00:00:00,"2021","01","0000280271","J01195","Elections - SCC","2445","Polling Station Costs"
"GUILDFORD BOROUGH COUNCIL","Lead Specialist - ICT","Hershey Systems","410440","11/05/2021",30021024,7000,0,"ICT Software","Software Developers","II","BACS","None",2021-04-15 00:00:00,"2021","01","563/2021","G3548","ICT Technical & Infrastructure","D7002","ICT Software"
"GUILDFORD BOROUGH COUNCIL","Building Maintenance","A Star Maintenance Contractors Ltd (CIS)","969700","20/04/2021",30021025,10587.8,0,"Services","Property Maintenance Contractors","II","BACS","None",2021-04-09 00:00:00,"2021","01","13899","K1515","Building Maintenance","D6004","Services"
"GUILDFORD BOROUGH COUNCIL","Car Leasing Holding Code (Service)","Lex Autolease Ltd","248920","20/04/2021",30021026,333.44,0,"Car Leasing","Vehicle Finance And Leasing Companies","II","BACS","None",2021-03-25 00:00:00,"2021","01","EXI1659165","G1131","Car Leasing Holding Code","C3002","Car Leasing"
"GUILDFORD BOROUGH COUNCIL","Digital Services","Goss Interactive Ltd","577320","11/05/2021",30021027,38640,0,"ICT Software","Digital Marketing Service Providers","II","BACS","None",2021-04-15 00:00:00,"2021","01","19870","F1141","Internet Site Access","D7002","ICT Software"
"GUILDFORD BOROUGH COUNCIL","Woking Road Depot","Connect Vending Limited","891110","27/04/2021",30021029,421.3,0,"Equipment","","II","BACS","None",2021-03-31 00:00:00,"2021","01","5024437","B4452","Woking Road Depot","D2001","Equipment"
"GUILDFORD BOROUGH COUNCIL","Leisure Management Contract","A P Williamson Consultants Ltd","775140","11/05/2021",30021030,807.5,0,"Consultancy","Roofers","II","BACS","None",2021-04-14 00:00:00,"2021","01","1490","A7540","Spectrum","D6001","Consultancy"
"GUILDFORD BOROUGH COUNCIL","Tenant Services","EDF Energy","656190","27/04/2021",30021031,8.03,0,"Utilities","Mains Electricity Suppliers","II","BACS","None",2021-04-01 00:00:00,"2021","01","673117542060/010421","M1151","Tenants Services (BHS)","B2001","Utilities"
"GUILDFORD BOROUGH COUNCIL","Building Maintenance","Cinnamon Construction Limited (CIS)","921860","20/04/2021",30021032,3456.75,0,"Services","General Builders","II","BACS","None",2021-04-12 00:00:00,"2021","01","52","K1515","Building Maintenance","D6004","Services"
"GUILDFORD BOROUGH COUNCIL","Business Improvement","Softcat Limited","668140","06/05/2021",30021033,18895,0,"Consultancy","It Support Service Providers","II","BACS","None",2021-04-13 00:00:00,"2021","01","INV02894433","G3531","Future Guildford","D6001","Consultancy"
"GUILDFORD BOROUGH COUNCIL","Audit Management","Softcat Limited","668140","06/05/2021",30021033,18895,0,"Consultancy","It Support Service Providers","II","BACS","None",2021-04-13 00:00:00,"2021","01","INV02894433","G3531","Future Guildford","D6001","Consultancy"
"GUILDFORD BOROUGH COUNCIL","Off Street Parking","Keltic Ltd","214100","06/05/2021",30021034,107.7,0,"Clothing & Uniform","Personal Protective Equipment (Ppe) Suppliers","II","BACS","None",2021-04-13 00:00:00,"2021","01","162896","B2111","Car Parks - Administration","D4001","Clothing & Uniform"
"GUILDFORD BOROUGH COUNCIL","Off Street Parking","Keltic Ltd","214100","06/05/2021",30021034,23.7,0,"Clothing & Uniform","Personal Protective Equipment (Ppe) Suppliers","II","BACS","None",2021-04-13 00:00:00,"2021","01","162896","B2111","Car Parks - Administration","D4001","Clothing & Uniform"
"GUILDFORD BOROUGH COUNCIL","Off Street Parking","Keltic Ltd","214100","06/05/2021",30021034,9.95,0,"Postage","Personal Protective Equipment (Ppe) Suppliers","II","BACS","None",2021-04-13 00:00:00,"2021","01","162896","B2111","Car Parks - Administration","D5003","Postage"
"GUILDFORD BOROUGH COUNCIL","Off Street Parking","Keltic Ltd","214100","06/05/2021",30021034,18,0,"Clothing & Uniform","Personal Protective Equipment (Ppe) Suppliers","II","BACS","None",2021-04-13 00:00:00,"2021","01","162896","B2111","Car Parks - Administration","D4001","Clothing & Uniform"
"GUILDFORD BOROUGH COUNCIL","Countryside and Parks Services","Soil Biology Limited","957100","06/05/2021",30021035,679,0,"Materials","Third Party Supplier","II","BACS","None",2021-04-12 00:00:00,"2021","01","101742","A1300","Trees And Countryside","D2003","Materials"
"GUILDFORD BOROUGH COUNCIL","Parks Countryside Management","Soil Biology Limited","957100","06/05/2021",30021035,679,0,"Materials","Third Party Supplier","II","BACS","None",2021-04-12 00:00:00,"2021","01","101742","A1300","Trees And Countryside","D2003","Materials"
"GUILDFORD BOROUGH COUNCIL","Building Control","Hays Specialist Recruitment Limited","156250","11/05/2021",30021036,30.6,0,"Agency","Other Recruitment Agencies And Service Providers","II","BACS","None",2021-04-14 00:00:00,"2021","01","1011252887","D5700","Building Control - Fee","A5191","Agency"
"GUILDFORD BOROUGH COUNCIL","Resources Caseworker","Screwfix (Trade UK - Screwfix / B&Q)","650550","06/05/2021",30021037,69.98,0,"Clothing & Uniform","Do-It-Yourself (Diy) Stores","II","BACS","None",2021-04-13 00:00:00,"2021","01","1153419955","G7511","Millmead House","D4001","Clothing & Uniform"
"GUILDFORD BOROUGH COUNCIL","Millmead House","Screwfix (Trade UK - Screwfix / B&Q)","650550","06/05/2021",30021037,69.98,0,"Clothing & Uniform","Do-It-Yourself (Diy) Stores","II","BACS","None",2021-04-13 00:00:00,"2021","01","1153419955","G7511","Millmead House","D4001","Clothing & Uniform"
"GUILDFORD BOROUGH COUNCIL","Woking Road Depot","Start Traffic Ltd","924240","11/05/2021",30021038,212,0,"Equipment","Third Party Supplier","II","BACS","None",2021-04-14 00:00:00,"2021","01","SI-144474","B4452","Woking Road Depot","D2001","Equipment"
"GUILDFORD BOROUGH COUNCIL","Woking Road Depot","Start Traffic Ltd","924240","11/05/2021",30021038,119.4,0,"Equipment","Third Party Supplier","II","BACS","None",2021-04-14 00:00:00,"2021","01","SI-144474","B4452","Woking Road Depot","D2001","Equipment"
"GUILDFORD BOROUGH COUNCIL","Woking Road Depot","Start Traffic Ltd","924240","11/05/2021",30021038,10.5,0,"Postage","Third Party Supplier","II","BACS","None",2021-04-14 00:00:00,"2021","01","SI-144474","B4452","Woking Road Depot","D5003","Postage"
"GUILDFORD BOROUGH COUNCIL","Business Improvement","Ignite Consulting Limited T/A Ignite","945780","11/05/2021",30021039,135713.66,0,"Consultancy","Construction Project Management Consultants","II","BACS","None",2021-04-15 00:00:00,"2021","01","2314","G3531","Future Guildford","D6001","Consultancy"
"GUILDFORD BOROUGH COUNCIL","Audit Management","Ignite Consulting Limited T/A Ignite","945780","11/05/2021",30021039,135713.66,0,"Consultancy","Construction Project Management Consultants","II","BACS","None",2021-04-15 00:00:00,"2021","01","2314","G3531","Future Guildford","D6001","Consultancy"
"GUILDFORD BOROUGH COUNCIL","Countryside and Parks Services","Tudor (UK) Ltd T/A Tudor Environmental","950920","11/05/2021",30021040,41.9,0,"Equipment","Gardening Equipment Suppliers","II","BACS","None",2021-04-14 00:00:00,"2021","01","IN0120344","A1100","Horticulture","D2001","Equipment"
"GUILDFORD BOROUGH COUNCIL","Countryside and Parks Services","Tudor (UK) Ltd T/A Tudor Environmental","950920","11/05/2021",30021040,379.85,0,"Equipment","Gardening Equipment Suppliers","II","BACS","None",2021-04-14 00:00:00,"2021","01","IN0120344","A1100","Horticulture","D2001","Equipment"
"GUILDFORD BOROUGH COUNCIL","Lead Specialist - ICT","Bolderwood Solutions Ltd","892850","27/04/2021",30021041,5157,0,"Agency","Computer Systems Integrators","II","BACS","None",2021-03-31 00:00:00,"2021","01","GBC-0074","G3548","ICT Technical & Infrastructure","A5191","Agency"
"GUILDFORD BOROUGH COUNCIL","Countryside and Parks Services","Tudor (UK) Ltd T/A Tudor Environmental","950920","11/05/2021",30021042,66.9,0,"Equipment","Gardening Equipment Suppliers","II","BACS","None",2021-04-14 00:00:00,"2021","01","IN0120345","A1100","Horticulture","D2001","Equipment"
"GUILDFORD BOROUGH COUNCIL","Countryside and Parks Services","Tudor (UK) Ltd T/A Tudor Environmental","950920","11/05/2021",30021042,75,0,"Equipment","Gardening Equipment Suppliers","II","BACS","None",2021-04-14 00:00:00,"2021","01","IN0120345","A1100","Horticulture","D2001","Equipment"
"GUILDFORD BOROUGH COUNCIL","Countryside and Parks Services","Tudor (UK) Ltd T/A Tudor Environmental","950920","11/05/2021",30021042,24,0,"Equipment","Gardening Equipment Suppliers","II","BACS","None",2021-04-14 00:00:00,"2021","01","IN0120345","A1100","Horticulture","D2001","Equipment"
"GUILDFORD BOROUGH COUNCIL","Countryside and Parks Services","Tudor (UK) Ltd T/A Tudor Environmental","950920","11/05/2021",30021042,48.8,0,"Equipment","Gardening Equipment Suppliers","II","BACS","None",2021-04-14 00:00:00,"2021","01","IN0120345","A1100","Horticulture","D2001","Equipment"
"GUILDFORD BOROUGH COUNCIL","Countryside and Parks Services","Tudor (UK) Ltd T/A Tudor Environmental","950920","11/05/2021",30021042,137.76,0,"Equipment","Gardening Equipment Suppliers","II","BACS","None",2021-04-14 00:00:00,"2021","01","IN0120345","A1100","Horticulture","D2001","Equipment"
"GUILDFORD BOROUGH COUNCIL","Building Maintenance","D G Property Refurbishment Ltd","713710","20/04/2021",30021043,2467.91,0,"Services","Restoration Specialists","II","BACS","None",2021-04-12 00:00:00,"2021","01","99","K1515","Building Maintenance","D6004","Services"
"GUILDFORD BOROUGH COUNCIL","Building Maintenance","D G Property Refurbishment Ltd","713710","20/04/2021",30021043,2000,0,"Materials","Restoration Specialists","II","BACS","None",2021-04-12 00:00:00,"2021","01","99","K1515","Building Maintenance","D2003","Materials"
"GUILDFORD BOROUGH COUNCIL","Energy Holding Account (Service)","Npower Ltd (PO Box 8201)","956130","29/04/2021",30021046,690.02,0,"Utilities","Mains Electricity Suppliers","II","BACS","None",2021-04-11 00:00:00,"2021","01","LGWK4F4Y","G1141","Energy Services Holding Account","B2001","Utilities"
"GUILDFORD BOROUGH COUNCIL","Energy Holding Account (Service)","Npower Ltd (PO Box 8201)","956130","29/04/2021",30021047,1501.05,0,"Utilities","Mains Electricity Suppliers","II","BACS","None",2021-04-11 00:00:00,"2021","01","LGWK4F4Z","G1141","Energy Services Holding Account","B2001","Utilities"
"GUILDFORD BOROUGH COUNCIL","Lead Specialist - Finance","Association Of Accounting Technicians","672000","20/04/2021",30021048,159,0,"Staff Costs","Third Party Supplier","II","BACS","None",2021-04-16 00:00:00,"2021","01","AAT membership number: 10321267","G3565","Finance Specialists","A7100","Staff Costs"
"GUILDFORD BOROUGH COUNCIL","Countryside and Parks Services","Gristman Tree Surgery Limited","342640","06/05/2021",30021049,800,0,"Grounds Maintenance","Tree Work Contractors","II","BACS","None",2021-04-13 00:00:00,"2021","01","02305","A1300","Trees And Countryside","B6001","Grounds Maintenance"
"GUILDFORD BOROUGH COUNCIL","Parks Countryside Management","Gristman Tree Surgery Limited","342640","06/05/2021",30021049,800,0,"Grounds Maintenance","Tree Work Contractors","II","BACS","None",2021-04-13 00:00:00,"2021","01","02305","A1300","Trees And Countryside","B6001","Grounds Maintenance"
"GUILDFORD BOROUGH COUNCIL","Doors and Windows","Wessex Commercial Division","1000090","20/04/2021",30021051,36599.72,0,"Contractor Payments","","II","BACS","None",2021-03-31 00:00:00,"2021","01","30699/6","N45067","Doors & Windows 2018-19","1233","Contractor Payments"
"GUILDFORD BOROUGH COUNCIL","Day Services","Scattergoods Agency Ltd","742000","06/05/2021",30021052,664.6,0,"Agency","Other Recruitment Agencies And Service Providers","II","BACS","None",2021-04-13 00:00:00,"2021","01","420150","C8100","Community Hubs","A5191","Agency"
"GUILDFORD BOROUGH COUNCIL","Major Projects","Carter Jonas LLP","1000230","22/04/2021",30021053,3310,0,"Consultancy","","II","BACS","None",2021-01-29 00:00:00,"2021","01","F0143995","F5530","Major Projects","D6001","Consultancy"
"GUILDFORD BOROUGH COUNCIL","Vehicle Maintenance","Digital Tachograph Centre Ltd","905220","06/05/2021",30021054,95,0,"Repair And Maintenance Of Vehicles","Other Vehicle Equipment Providers","II","BACS","None",2021-04-13 00:00:00,"2021","01","44461","K5551","Fleet Workshops","C1002","Repair And Maintenance Of Vehicles"
"GUILDFORD BOROUGH COUNCIL","Land Charges","Surrey County Council","230230","11/05/2021",30021055,6946.08,0,"Agency Agreements","Local Government [Uk Only]","II","BACS","None",2021-04-16 00:00:00,"2021","01","9500259476","F4111","Local Land Charges","D6011","Agency Agreements"
"GUILDFORD BOROUGH COUNCIL","Vehicle Maintenance","Connections UK","145000","11/05/2021",30021056,216.4,0,"Repair And Maintenance Of Vehicles","Event Management Agencies","II","BACS","None",2021-04-14 00:00:00,"2021","01","3227","K5551","Fleet Workshops","C1002","Repair And Maintenance Of Vehicles"
"GUILDFORD BOROUGH COUNCIL","New Build","W Stirland Limited","934900","22/04/2021",30021057,1058,0,"Contractor Payments","General Builders","II","BACS","None",2021-04-16 00:00:00,"2021","01","7402","N30012","Appletree Pub Site","1233","Contractor Payments"
"GUILDFORD BOROUGH COUNCIL","Off Street Parking","Park Now Limited","876560","27/04/2021",30021058,6635.96,0,"Asset Maintenance","Other It Service Providers","II","BACS","None",2021-04-01 00:00:00,"2021","01","R210331-99","B2111","Car Parks - Administration","B1001","Asset Maintenance"
"GUILDFORD BOROUGH COUNCIL","Off Street Parking","FASTSIGNS (Guildford) Ltd","199300","20/04/2021",30021059,110.8,0,"Printing, Photocopying And Reprographics External","Building Signage Suppliers","II","BACS","None",2020-12-04 00:00:00,"2021","01","858--17375","B2111","Car Parks - Administration","D5005","Printing, Photocopying And Reprographics External"
"GUILDFORD BOROUGH COUNCIL","Executive - Miscellaneous","Skanska Construction UK Tld","698930","22/04/2021",30021060,26934.21,0,"Consultants Fees","Non-Residential Main Building Contractors","II","BACS","None",2020-01-08 00:00:00,"2021","01","CW00004893","P79026","Internal Estate Road -Cllr Ph1","1221","Consultants Fees"
"GUILDFORD BOROUGH COUNCIL","Development Control","Thomson Ecology Ltd","496140","20/04/2021",30021061,1620,0,"Consultancy","Environmental Consultants","II","BACS","None",2021-04-16 00:00:00,"2021","01","INV014218","D5100","Development Control - Fee Earn","D6001","Consultancy"
"GUILDFORD BOROUGH COUNCIL","Lead Specialist - HR","GB Group Plc","914540","27/04/2021",30021062,187,0,"Vacancy And Interview Costs","","II","BACS","None",2021-03-31 00:00:00,"2021","01","112797","G2555","HR Services","A7120","Vacancy And Interview Costs"
"GUILDFORD BOROUGH COUNCIL","Lead Specialist - HR","GB Group Plc","914540","27/04/2021",30021062,506,0,"Vacancy And Interview Costs","","II","BACS","None",2021-03-31 00:00:00,"2021","01","112797","G2555","HR Services","A7120","Vacancy And Interview Costs"
"GUILDFORD BOROUGH COUNCIL","Industrial Estates","British Gas Trading Ltd","341270","29/04/2021",30021063,345.24,0,"Utilities","Mains Utility Multiple Service Providers","II","BACS","None",2021-04-06 00:00:00,"2021","01","430623949","B5341","Midleton Industrial Estate","B2001","Utilities"
"GUILDFORD BOROUGH COUNCIL","Vehicle Maintenance","Certas Energy UK Limited","759300","04/05/2021",30021064,19509.75,0,"Vehicle Operating Costs","Oil Fuel Suppliers","II","BACS","None",2021-04-14 00:00:00,"2021","01","5630570","K5551","Fleet Workshops","C1001","Vehicle Operating Costs"
"GUILDFORD BOROUGH COUNCIL","Vehicle and Plant Acquisition","Dennis Eagle Limited","168100","04/05/2021",30021065,212884,0,"Vehicle Purchase","Refuse Vehicle Suppliers","II","BACS","None",2021-02-09 00:00:00,"2021","01","400980","P58012","Vehicle & Plant Acqs 2020-21","1745","Vehicle Purchase"
"GUILDFORD BOROUGH COUNCIL","Day Services","Adecco UK Ltd","461000","06/05/2021",30021066,799.5,0,"Agency","Other Recruitment Agencies And Service Providers","II","BACS","None",2021-04-13 00:00:00,"2021","01","28952618","C8100","Community Hubs","A5191","Agency"
"GUILDFORD BOROUGH COUNCIL","Development Control","APSE","105080","27/04/2021",30021067,1300,0,"Consultancy","Trade Associations And Regulatory Bodies","II","BACS","None",2021-03-31 00:00:00,"2021","01","2021/2315","D5100","Development Control - Fee Earn","D6001","Consultancy"
"GUILDFORD BOROUGH COUNCIL","Vehicle Maintenance","T H White Ltd","550130","29/04/2021",30021068,186.01,0,"Repair And Maintenance Of Vehicles","Other Vehicle Dealers","II","BACS","None",2021-04-09 00:00:00,"2021","01","H24198","K5551","Fleet Workshops","C1002","Repair And Maintenance Of Vehicles"
"GUILDFORD BOROUGH COUNCIL","Vehicle Maintenance","Certas Energy UK Limited","759300","04/05/2021",30021069,1045.2,0,"Vehicle Operating Costs","Oil Fuel Suppliers","II","BACS","None",2021-04-14 00:00:00,"2021","01","5630574","K5551","Fleet Workshops","C1001","Vehicle Operating Costs"
"GUILDFORD BOROUGH COUNCIL","Project Aspire","Beeline Taxis","908000","04/05/2021",30021070,18.4,0,"Grants And Subscriptions","Taxis And Private Hire Companies","II","BACS","None",2020-05-31 00:00:00,"2021","01","58156","F1126","Project Aspire","D9001","Grants And Subscriptions"
"GUILDFORD BOROUGH COUNCIL","Resources Caseworker","Encore Envelopes Limited","969960","11/05/2021",30021071,190,0,"Printing, Photocopying And Reprographics External","Stationery And Office Products Suppliers","II","BACS","None",2021-04-14 00:00:00,"2021","01","688490","G4545","Reprographics","D5005","Printing, Photocopying And Reprographics External"
"GUILDFORD BOROUGH COUNCIL","Off Street Parking","SSG Support Services Group Ltd","1000332","06/05/2021",30021073,11666.66,0,"Services","","II","BACS","None",2021-04-12 00:00:00,"2021","01","SSG/786/7839","B2216","General Upkeep- Urban Car Pks","D6004","Services"
"GUILDFORD BOROUGH COUNCIL","Lead Specialist - HR","My Staff Shop Limited","971670","20/04/2021",30021074,803.7,0,"Staff Costs","Other Business Service Providers","II","BACS","None",2021-04-09 00:00:00,"2021","01","INV-5818","G2555","HR Services","A7100","Staff Costs"
"GUILDFORD BOROUGH COUNCIL","Tenant Services","Southern Electric Gas","260350","20/04/2021",30021075,137.13,0,"Utilities","Mains Gas Suppliers","II","BACS","None",2021-03-09 00:00:00,"2021","01","6532241517/090321","M1151","Tenants Services (BHS)","B2001","Utilities"
"GUILDFORD BOROUGH COUNCIL","Miscellaneous Expenses","HQ Theatre Guildford Limited","652890","04/05/2021",30021076,20881.72,0,"Services","Theatres","II","BACS","None",2021-04-01 00:00:00,"2021","01","SIN004451","F7539","COVID-19","D6004","Services"
"GUILDFORD BOROUGH COUNCIL","Vehicle Maintenance","Fluid Systems Ltd T/A Pirtek (Guildford)","667001","29/04/2021",30021077,65.92,0,"Repair And Maintenance Of Vehicles","","II","BACS","None",2021-04-09 00:00:00,"2021","01","GUI4128","K5551","Fleet Workshops","C1002","Repair And Maintenance Of Vehicles"
"GUILDFORD BOROUGH COUNCIL","Countryside and Parks Services","APSE","105080","11/05/2021",30021078,259,0,"Staff Costs","Trade Associations And Regulatory Bodies","II","BACS","None",2021-04-15 00:00:00,"2021","01","2122/295","A1900","Parks Management And Admin","A7100","Staff Costs"
"GUILDFORD BOROUGH COUNCIL","Vehicle and Plant Acquisition","Dennis Eagle Limited","168100","04/05/2021",30021079,212884,0,"Vehicle Purchase","Refuse Vehicle Suppliers","II","BACS","None",2021-02-09 00:00:00,"2021","01","400979","P58012","Vehicle & Plant Acqs 2020-21","1745","Vehicle Purchase"
"GUILDFORD BOROUGH COUNCIL","Parks Countryside Management","Recognition Express Guildford","564320","11/05/2021",30021080,354,0,"Advertising, Publicity & Promotion","Promotional Item Suppliers","II","BACS","None",2021-04-16 00:00:00,"2021","01","REG2643","A1960","Guildford In Bloom","D5002","Advertising, Publicity & Promotion"
"GUILDFORD BOROUGH COUNCIL","Countryside and Parks Services","Recognition Express Guildford","564320","11/05/2021",30021080,354,0,"Advertising, Publicity & Promotion","Promotional Item Suppliers","II","BACS","None",2021-04-16 00:00:00,"2021","01","REG2643","A1960","Guildford In Bloom","D5002","Advertising, Publicity & Promotion"
"GUILDFORD BOROUGH COUNCIL","Vehicle and Plant Acquisition","Dennis Eagle Limited","168100","04/05/2021",30021081,212884,0,"Vehicle Purchase","Refuse Vehicle Suppliers","II","BACS","None",2021-02-04 00:00:00,"2021","01","400614","P58012","Vehicle & Plant Acqs 2020-21","1745","Vehicle Purchase"
"GUILDFORD BOROUGH COUNCIL","Development Control","Thomson Ecology Ltd","496140","20/04/2021",30021082,1515,0,"Consultancy","Environmental Consultants","II","BACS","None",2021-04-16 00:00:00,"2021","01","INV014219","D5100","Development Control - Fee Earn","D6001","Consultancy"
"GUILDFORD BOROUGH COUNCIL","Car Leasing Holding Code (Service)","Car Hire (Day Of Swansea) Ltd","856090","25/05/2021",30021083,-354.84,0,"Car Leasing","Car, Van And Truck Hire Companies","II","BACS","None",2021-04-14 00:00:00,"2021","01","CR00014857","G1131","Car Leasing Holding Code","C3002","Car Leasing"
"GUILDFORD BOROUGH COUNCIL","Car Leasing Holding Code (Service)","Lex Autolease Ltd","248920","20/04/2021",30021084,214,0,"Car Leasing","Vehicle Finance And Leasing Companies","II","BACS","None",2021-03-28 00:00:00,"2021","01","EXI1659957","G1131","Car Leasing Holding Code","C3002","Car Leasing"
"GUILDFORD BOROUGH COUNCIL","Telephony Holding Account (Service)","British Telecom (Durham)","105900","22/04/2021",30021085,8510.67,0,"Telephones & Broadband","Fixed Telecoms Service Providers","II","BACS","None",2021-03-23 00:00:00,"2021","01","VP557041702511","G1151","Telephony Holding Account","D7004","Telephones & Broadband"
"GUILDFORD BOROUGH COUNCIL","Street Cleansing","Wilbar Associates Limited","655940","11/05/2021",30021086,784.8,0,"Staff Costs","Other Training Providers","II","BACS","None",2021-04-16 00:00:00,"2021","01","04421","K4551","Street Cleansing","A7100","Staff Costs"
"GUILDFORD BOROUGH COUNCIL","Council Tax","Penna Plc","674100","11/05/2021",30021087,793.5,0,"Agency","Human Resources Consultants","II","BACS","None",2021-04-14 00:00:00,"2021","01","631112","F6141","Council Tax Collectn Expenses","A5191","Agency"
"GUILDFORD BOROUGH COUNCIL","Affordable Housing","Penna Plc","674100","11/05/2021",30021087,4761,0,"Agency","Human Resources Consultants","II","BACS","None",2021-04-14 00:00:00,"2021","01","631112","C4111","Affordable Housing Development","A5191","Agency"
"GUILDFORD BOROUGH COUNCIL","Housing Benefits","Penna Plc","674100","11/05/2021",30021087,793.5,0,"Agency","Human Resources Consultants","II","BACS","None",2021-04-14 00:00:00,"2021","01","631112","C4511","Housing Benefits Admin.","A5191","Agency"
"GUILDFORD BOROUGH COUNCIL","Private Sector Housing Maintenance","Penna Plc","674100","11/05/2021",30021087,1587,0,"Agency","Human Resources Consultants","II","BACS","None",2021-04-14 00:00:00,"2021","01","631112","C5122","Private Sector Housing Standard","A5191","Agency"
"GUILDFORD BOROUGH COUNCIL","Private Sector Housing","Penna Plc","674100","11/05/2021",30021087,1587,0,"Agency","Human Resources Consultants","II","BACS","None",2021-04-14 00:00:00,"2021","01","631112","C5122","Private Sector Housing Standard","A5191","Agency"
"GUILDFORD BOROUGH COUNCIL","Tenant Services","Penna Plc","674100","11/05/2021",30021087,7935,0,"Agency","Human Resources Consultants","II","BACS","None",2021-04-14 00:00:00,"2021","01","631112","M1151","Tenants Services (BHS)","A5191","Agency"
"GUILDFORD BOROUGH COUNCIL","Tenant Services","Southern Electric Gas","260350","20/04/2021",30021088,520.77,0,"Utilities","Mains Gas Suppliers","II","BACS","None",2021-03-09 00:00:00,"2021","01","5514051511/090321","M1151","Tenants Services (BHS)","B2001","Utilities"
"GUILDFORD BOROUGH COUNCIL","Inventories","Akw Medi-Care Limited","178400","06/05/2021",30021089,87.35,0,"Purchases","Mobility Disability Equipment Suppliers","II","BACS","None",2021-04-13 00:00:00,"2021","01","1915458","I01001","Stocks","2591","Purchases"
"GUILDFORD BOROUGH COUNCIL","On Street Parking","Parking Refunds","9999994","20/04/2021",30021090,32.04,0,"Income Recovery","","II","BACS","None",2021-04-16 00:00:00,"2021","01","S Horsford RESD2145 refund","B2217","Guildford On-Street","K2003","Income Recovery"
"GUILDFORD BOROUGH COUNCIL","Strategic Support","Keyworker Housing Association Ltd","874950","13/05/2021",30021091,-411.66,0,"Asset Maintenance","Housing Associations","II","BACS","None",2021-04-19 00:00:00,"2021","01","Keyworker Housing Assoc March 2021","M6666","King Edward Ct 120 Walnut Tree","B1001","Asset Maintenance"
"GUILDFORD BOROUGH COUNCIL","Strategic Support","Keyworker Housing Association Ltd","874950","13/05/2021",30021091,-468.24,0,"Asset Maintenance","Housing Associations","II","BACS","None",2021-04-19 00:00:00,"2021","01","Keyworker Housing Assoc March 2021","M6666","King Edward Ct 120 Walnut Tree","B1001","Asset Maintenance"
"GUILDFORD BOROUGH COUNCIL","Strategic Support","Keyworker Housing Association Ltd","874950","13/05/2021",30021091,-1317.31,0,"Income Recovery","Housing Associations","II","BACS","None",2021-04-19 00:00:00,"2021","01","Keyworker Housing Assoc March 2021","M6666","King Edward Ct 120 Walnut Tree","K2003","Income Recovery"
"GUILDFORD BOROUGH COUNCIL","Strategic Support","Keyworker Housing Association Ltd","874950","13/05/2021",30021091,16466.33,0,"Services","Housing Associations","II","BACS","None",2021-04-19 00:00:00,"2021","01","Keyworker Housing Assoc March 2021","M6666","King Edward Ct 120 Walnut Tree","D6004","Services"
"GUILDFORD BOROUGH COUNCIL","Other Short Term Debtors","Masella Coupe Lettings","178430","20/04/2021",30021092,6300,0,"Cash Paid","Property Letting And Estate Agents","II","BACS","None",2021-04-19 00:00:00,"2021","01","Ritson - Summers Road RIA","J01064","Housing H4U Scheme","2175","Cash Paid"
"GUILDFORD BOROUGH COUNCIL","Other Short Term Debtors","Masella Coupe Lettings","178430","20/04/2021",30021093,6270,0,"Cash Paid","Property Letting And Estate Agents","II","BACS","None",2021-04-19 00:00:00,"2021","01","Akaanan - Holm Court RIA","J01064","Housing H4U Scheme","2175","Cash Paid"
"GUILDFORD BOROUGH COUNCIL","Countryside and Parks Services","Green Plant UK Ltd","793350","11/05/2021",30021094,575,0,"Grounds Maintenance","Confidential Waste Disposal Providers","II","BACS","None",2021-04-16 00:00:00,"2021","01","64868","A1300","Trees And Countryside","B6001","Grounds Maintenance"
"GUILDFORD BOROUGH COUNCIL","Parks Countryside Management","Green Plant UK Ltd","793350","11/05/2021",30021094,575,0,"Grounds Maintenance","Confidential Waste Disposal Providers","II","BACS","None",2021-04-16 00:00:00,"2021","01","64868","A1300","Trees And Countryside","B6001","Grounds Maintenance"
"GUILDFORD BOROUGH COUNCIL","Industrial Estates","British Gas Trading Ltd","341270","29/04/2021",30021095,39.72,0,"Utilities","Mains Utility Multiple Service Providers","II","BACS","None",2021-04-06 00:00:00,"2021","01","191789375","B5341","Midleton Industrial Estate","B2001","Utilities"
"GUILDFORD BOROUGH COUNCIL","Vehicle Maintenance","Fuller Tyres Limited","882220","06/05/2021",30021096,20,0,"Repair And Maintenance Of Vehicles","Other Vehicle Equipment Providers","II","BACS","None",2021-04-13 00:00:00,"2021","01","FTI-29723","K5551","Fleet Workshops","C1002","Repair And Maintenance Of Vehicles"
"GUILDFORD BOROUGH COUNCIL","Roads and Footpaths","John Britten Limited","273600","22/04/2021",30021097,641.6,0,"Asset Maintenance","Paving And Driveway Service Contractors","II","BACS","None",2021-02-23 00:00:00,"2021","01","JB/230221","B5112","Roads & Footpaths Maintenance","B1001","Asset Maintenance"
"GUILDFORD BOROUGH COUNCIL","Roads and Footpaths","John Britten Limited","273600","22/04/2021",30021097,176.76,0,"Asset Maintenance","Paving And Driveway Service Contractors","II","BACS","None",2021-02-23 00:00:00,"2021","01","JB/230221","B5112","Roads & Footpaths Maintenance","B1001","Asset Maintenance"
"GUILDFORD BOROUGH COUNCIL","Business Improvement","Gravitas Recruitment Group","1000035","27/04/2021",30021098,2900,0,"Agency","","II","BACS","None",2021-04-19 00:00:00,"2021","01","INV167646","G3531","Future Guildford","A5191","Agency"
"GUILDFORD BOROUGH COUNCIL","Audit Management","Gravitas Recruitment Group","1000035","27/04/2021",30021098,2900,0,"Agency","","II","BACS","None",2021-04-19 00:00:00,"2021","01","INV167646","G3531","Future Guildford","A5191","Agency"
"GUILDFORD BOROUGH COUNCIL","Inventories","M E Duffell Ltd","510200","11/05/2021",30021099,75.05,0,"Purchases","Keys And Locksmiths","II","BACS","None",2021-04-14 00:00:00,"2021","01","I2214388","I01001","Stocks","2591","Purchases"
"GUILDFORD BOROUGH COUNCIL","Building Maintenance","Revive Services (CIS)","846250","20/04/2021",30021100,3190,0,"Services","Other Cleaning And Janitorial Service Providers","II","BACS","None",2021-04-13 00:00:00,"2021","01","105","K1515","Building Maintenance","D6004","Services"
"GUILDFORD BOROUGH COUNCIL","Building Maintenance","Drain & Sewer Services","108390","11/05/2021",30021101,150,0,"Services","Sewerage And Drainage Service Providers","II","BACS","None",2021-04-14 00:00:00,"2021","01","89678","K1515","Building Maintenance","D6004","Services"
"GUILDFORD BOROUGH COUNCIL","Miscellaneous Expenses","Risk Security Solutions Limited (RSS)","1000118","13/05/2021",30021102,1586,0,"Contractors","","II","BACS","None",2021-04-19 00:00:00,"2021","01","RSS-0690","F7539","COVID-19","D6012","Contractors"
"GUILDFORD BOROUGH COUNCIL","Vehicle Maintenance","Fuller Tyres Limited","882220","22/04/2021",30021103,401,0,"Repair And Maintenance Of Vehicles","Other Vehicle Equipment Providers","II","BACS","None",2021-03-18 00:00:00,"2021","01","FTI-29620","K5551","Fleet Workshops","C1002","Repair And Maintenance Of Vehicles"
"GUILDFORD BOROUGH COUNCIL","Snow and Ice","John Britten Limited","273600","22/04/2021",30021104,1118.4,0,"Asset Maintenance","Paving And Driveway Service Contractors","II","BACS","None",2021-02-23 00:00:00,"2021","01","JB2/230221","K1555","Snow & Ice Plan - Holding Account","B1001","Asset Maintenance"
"GUILDFORD BOROUGH COUNCIL","Vehicle Maintenance","Fuller Tyres Limited","882220","06/05/2021",30021105,152,0,"Repair And Maintenance Of Vehicles","Other Vehicle Equipment Providers","II","BACS","None",2021-04-13 00:00:00,"2021","01","FTI-29727","K5551","Fleet Workshops","C1002","Repair And Maintenance Of Vehicles"
"GUILDFORD BOROUGH COUNCIL","Vehicle Maintenance","Fuller Tyres Limited","882220","29/04/2021",30021106,20,0,"Repair And Maintenance Of Vehicles","Other Vehicle Equipment Providers","II","BACS","None",2021-04-09 00:00:00,"2021","01","FTI-29721","K5551","Fleet Workshops","C1002","Repair And Maintenance Of Vehicles"
"GUILDFORD BOROUGH COUNCIL","Vehicle Maintenance","Fuller Tyres Limited","882220","06/05/2021",30021107,22,0,"Repair And Maintenance Of Vehicles","Other Vehicle Equipment Providers","II","BACS","None",2021-04-13 00:00:00,"2021","01","FTI-29722","K5551","Fleet Workshops","C1002","Repair And Maintenance Of Vehicles"
"GUILDFORD BOROUGH COUNCIL","Vehicle Maintenance","Rivus Fleet Solutions Limited","985450","11/05/2021",30021108,56,0,"Vehicle Operating Costs","","II","BACS","None",2021-04-17 00:00:00,"2021","01","SIV210400000547","K5551","Fleet Workshops","C1001","Vehicle Operating Costs"
"GUILDFORD BOROUGH COUNCIL","Vehicle Maintenance","Rivus Fleet Solutions Limited","985450","11/05/2021",30021108,113,0,"Vehicle Operating Costs","","II","BACS","None",2021-04-17 00:00:00,"2021","01","SIV210400000547","K5551","Fleet Workshops","C1001","Vehicle Operating Costs"
"GUILDFORD BOROUGH COUNCIL","Vehicle Maintenance","Fuller Tyres Limited","882220","06/05/2021",30021109,790,0,"Repair And Maintenance Of Vehicles","Other Vehicle Equipment Providers","II","BACS","None",2021-04-13 00:00:00,"2021","01","FTI-29724","K5551","Fleet Workshops","C1002","Repair And Maintenance Of Vehicles"
"GUILDFORD BOROUGH COUNCIL","Corporate Property Management","Fire Coral Ltd","971570","20/04/2021",30021110,375,0,"Staff Costs","Health And Safety Training Providers","II","BACS","None",2021-01-27 00:00:00,"2021","01","INV-1998","G4575","Asset Management","A7100","Staff Costs"
"GUILDFORD BOROUGH COUNCIL","Countryside and Parks Services","APSE","105080","11/05/2021",30021111,175,0,"Staff Costs","Trade Associations And Regulatory Bodies","II","BACS","None",2021-04-16 00:00:00,"2021","01","2122/304","A1300","Trees And Countryside","A7100","Staff Costs"
"GUILDFORD BOROUGH COUNCIL","Parks Countryside Management","APSE","105080","11/05/2021",30021111,175,0,"Staff Costs","Trade Associations And Regulatory Bodies","II","BACS","None",2021-04-16 00:00:00,"2021","01","2122/304","A1300","Trees And Countryside","A7100","Staff Costs"
"GUILDFORD BOROUGH COUNCIL","Industrial Estates","British Gas Trading Ltd","341270","29/04/2021",30021112,330.99,0,"Utilities","Mains Utility Multiple Service Providers","II","BACS","None",2021-04-08 00:00:00,"2021","01","103503135","B5341","Midleton Industrial Estate","B2001","Utilities"
"GUILDFORD BOROUGH COUNCIL","Lead Specialist - Finance","Hays Specialist Recruitment Limited","156250","11/05/2021",30021113,1604,0,"Agency","Other Recruitment Agencies And Service Providers","II","BACS","None",2021-04-14 00:00:00,"2021","01","1011259291","G3593","Procurement Services","A5191","Agency"
"GUILDFORD BOROUGH COUNCIL","Snow and Ice","John Britten Limited","273600","22/04/2021",30021114,1097.6,0,"Asset Maintenance","Paving And Driveway Service Contractors","II","BACS","None",2021-02-23 00:00:00,"2021","01","JB3/230221","K1555","Snow & Ice Plan - Holding Account","B1001","Asset Maintenance"
"GUILDFORD BOROUGH COUNCIL","Building Maintenance","Drain & Sewer Services","108390","11/05/2021",30021116,200,0,"Services","Sewerage And Drainage Service Providers","II","BACS","None",2021-04-14 00:00:00,"2021","01","89679","K1515","Building Maintenance","D6004","Services"
"GUILDFORD BOROUGH COUNCIL","Guildford House","Omicways Ltd T/A Container Group Buying","898840","06/05/2021",30021117,-580.7,0,"Materials","Promotional Item Suppliers","II","BACS","None",2021-04-12 00:00:00,"2021","01","CR010349","A4511","Guildford House Administration","D2003","Materials"
"GUILDFORD BOROUGH COUNCIL","Vehicle Maintenance","Frm Truck & Trailer Spares Ltd","208100","11/05/2021",30021118,79.92,0,"Repair And Maintenance Of Vehicles","Car And Van Parts Suppliers","II","BACS","None",2021-04-15 00:00:00,"2021","01","356962","K5551","Fleet Workshops","C1002","Repair And Maintenance Of Vehicles"
"GUILDFORD BOROUGH COUNCIL","Countryside and Parks Services","SMI Group Ltd","792570","11/05/2021",30021119,48.99,0,"Clothing & Uniform","Personal Protective Equipment (Ppe) Suppliers","II","BACS","None",2021-04-16 00:00:00,"2021","01","INV871913","A1100","Horticulture","D4001","Clothing & Uniform"
"GUILDFORD BOROUGH COUNCIL","Off Street Parking","Harpers Door Specialists","759110","22/04/2021",30021120,410,0,"Asset Maintenance","Security Shutter, Door And Gate Contractors","II","BACS","None",2021-04-19 00:00:00,"2021","01","SI-3721","B2257","Leapale Road Mscp","B1001","Asset Maintenance"
"GUILDFORD BOROUGH COUNCIL","Off Street Parking","Harpers Door Specialists","759110","22/04/2021",30021120,150,0,"Asset Maintenance","Security Shutter, Door And Gate Contractors","II","BACS","None",2021-04-19 00:00:00,"2021","01","SI-3721","B2257","Leapale Road Mscp","B1001","Asset Maintenance"
"GUILDFORD BOROUGH COUNCIL","Park and Ride Service","John F Hunt Power Ltd","803060","22/04/2021",30021121,687.7,0,"Materials","Other Construction Contractors","II","BACS","None",2021-01-18 00:00:00,"2021","01","208510","B5206","Onslow Park And Ride","D2003","Materials"
"GUILDFORD BOROUGH COUNCIL","Inventories","Akw Medi-Care Limited","178400","11/05/2021",30021122,486.76,0,"Purchases","Mobility Disability Equipment Suppliers","II","BACS","None",2021-04-14 00:00:00,"2021","01","1915863","I01001","Stocks","2591","Purchases"
"GUILDFORD BOROUGH COUNCIL","Resources Caseworker","Canon (UK) Ltd","1000065","29/04/2021",30021124,247.5,0,"Stationery & Paper","","II","BACS","None",2021-04-08 00:00:00,"2021","01","44193113","G4545","Reprographics","D5007","Stationery & Paper"
"GUILDFORD BOROUGH COUNCIL","Vehicle Maintenance","Fuller Tyres Limited","882220","06/05/2021",30021126,266,0,"Repair And Maintenance Of Vehicles","Other Vehicle Equipment Providers","II","BACS","None",2021-04-13 00:00:00,"2021","01","FTI-29725","K5551","Fleet Workshops","C1002","Repair And Maintenance Of Vehicles"
"GUILDFORD BOROUGH COUNCIL","Building Maintenance","AMG Electrical - Closed see account 1000451","268000","20/04/2021",30021127,1059.33,0,"Materials","Electricians","II","BACS","None",2021-04-13 00:00:00,"2021","01","2104-50","K1515","Building Maintenance","D2003","Materials"
"GUILDFORD BOROUGH COUNCIL","Building Maintenance","AMG Electrical - Closed see account 1000451","268000","20/04/2021",30021127,886.5,0,"Materials","Electricians","II","BACS","None",2021-04-13 00:00:00,"2021","01","2104-50","K1515","Building Maintenance","D2003","Materials"
"GUILDFORD BOROUGH COUNCIL","Vehicle Maintenance","Inchcape Retail Ltd t/a Inchcape Jaguar Land Rover","1000327","29/04/2021",30021128,80.17,0,"Repair And Maintenance Of Vehicles","","II","BACS","None",2021-04-07 00:00:00,"2021","01","74507329","K5551","Fleet Workshops","C1002","Repair And Maintenance Of Vehicles"
"GUILDFORD BOROUGH COUNCIL","Homelessness Support","Riverside Group Ltd","746370","20/04/2021",30021130,11719.62,0,"Partnerships","Housing Associations","II","BACS","None",2021-03-26 00:00:00,"2021","01","Riverside Host Contract March 2021","C3311","Homelessness","D6013","Partnerships"
"GUILDFORD BOROUGH COUNCIL","Grants","Wealden Services Ltd (Grants only)","692280","22/04/2021",30021131,5280,0,"Outgoing VAT on sales to EU Member states","Property Maintenance Contractors","II","BACS","None",2021-01-29 00:00:00,"2021","01","INV-47352","N51008","Mandatory DFG","1311","Outgoing VAT on sales to EU Member states"
"GUILDFORD BOROUGH COUNCIL","Grants","Wealden Services Ltd (Grants only)","692280","22/04/2021",30021131,5280,0,"Outgoing VAT on sales to EU Member states","Property Maintenance Contractors","II","BACS","None",2021-01-29 00:00:00,"2021","01","INV-47352","N51008","Mandatory DFG","1311","Outgoing VAT on sales to EU Member states"
"GUILDFORD BOROUGH COUNCIL","Grants","Wealden Services Ltd (Grants only)","692280","22/04/2021",30021131,5280,0,"Grants To Private Owners","Property Maintenance Contractors","II","BACS","None",2021-01-29 00:00:00,"2021","01","INV-47352","N51008","Mandatory DFG","1311","Grants To Private Owners"
"GUILDFORD BOROUGH COUNCIL","Grants","Bentley Mobility Services Limited","929000","11/05/2021",30021132,2498,0,"Outgoing VAT on sales to EU Member states","Mobility Disability Equipment Suppliers","II","BACS","None",2021-04-15 00:00:00,"2021","01","27735","N51019","BCF Non Grant Expenditure","1311","Outgoing VAT on sales to EU Member states"
"GUILDFORD BOROUGH COUNCIL","Grants","Bentley Mobility Services Limited","929000","11/05/2021",30021132,2498,0,"Outgoing VAT on sales to EU Member states","Mobility Disability Equipment Suppliers","II","BACS","None",2021-04-15 00:00:00,"2021","01","27735","N51019","BCF Non Grant Expenditure","1311","Outgoing VAT on sales to EU Member states"
"GUILDFORD BOROUGH COUNCIL","Grants","Bentley Mobility Services Limited","929000","11/05/2021",30021132,2498,0,"Grants To Private Owners","Mobility Disability Equipment Suppliers","II","BACS","None",2021-04-15 00:00:00,"2021","01","27735","N51019","BCF Non Grant Expenditure","1311","Grants To Private Owners"
"GUILDFORD BOROUGH COUNCIL","Other Short Term Creditors","Stevens and Bolton","1000050","13/05/2021",30021308,842.74,0,"Non Gbc Bank Items","","II","BACS","None",2021-04-20 00:00:00,"2021","01","Payment Made In Error","L02095","Unidentified Receipts Suspense","2463","Non Gbc Bank Items"
"GUILDFORD BOROUGH COUNCIL","Private Sector Housing Maintenance","BJC Design (Southeast) Ltd","938540","11/05/2021",30021309,535,0,"Services","Surveyors And Inspectors","II","BACS","None",2021-04-14 00:00:00,"2021","01","000669","C5132","Care And Repair (Detr)","D6004","Services"
"GUILDFORD BOROUGH COUNCIL","Crematorium","The Yaboo Co Ltd","792870","29/04/2021",30021310,990,0,"Services","Media Production Agencies","II","BACS","None",2021-03-31 00:00:00,"2021","01","55390","A1500","Crematorium","D6004","Services"
"GUILDFORD BOROUGH COUNCIL","Lead Specialist - Finance","Hays Specialist Recruitment Limited","156250","13/05/2021",30021311,1297.16,0,"Agency","Other Recruitment Agencies And Service Providers","II","BACS","None",2021-04-19 00:00:00,"2021","01","1011259201","G3593","Procurement Services","A5191","Agency"
"GUILDFORD BOROUGH COUNCIL","Building Maintenance","Chambers Waste Management Plc","127500","22/04/2021",30021312,198,0,"Materials","Other Waste Disposal Suppliers","II","BACS","None",2020-12-31 00:00:00,"2021","01","P450681","K1515","Building Maintenance","D2003","Materials"
"GUILDFORD BOROUGH COUNCIL","Miscellaneous Expenses","Fidelis Security Limited","200000","22/04/2021",30021313,1293.33,0,"Services","Security Guards","II","BACS","None",2021-03-30 00:00:00,"2021","01","10786","F7539","COVID-19","D6004","Services"
"GUILDFORD BOROUGH COUNCIL","Building Control","Hays Specialist Recruitment Limited","156250","13/05/2021",30021314,4780.14,0,"Agency","Other Recruitment Agencies And Service Providers","II","BACS","None",2021-04-19 00:00:00,"2021","01","1011255606","D5700","Building Control - Fee","A5191","Agency"
"GUILDFORD BOROUGH COUNCIL","Countryside and Parks Services","Shorts Group Limited","1000078","11/05/2021",30021315,30,0,"Grounds Maintenance","","II","BACS","None",2021-04-18 00:00:00,"2021","01","S236912","A1300","Trees And Countryside","B6001","Grounds Maintenance"
"GUILDFORD BOROUGH COUNCIL","Parks Countryside Management","Shorts Group Limited","1000078","11/05/2021",30021315,30,0,"Grounds Maintenance","","II","BACS","None",2021-04-18 00:00:00,"2021","01","S236912","A1300","Trees And Countryside","B6001","Grounds Maintenance"
"GUILDFORD BOROUGH COUNCIL","Countryside and Parks Services","Shorts Group Limited","1000078","11/05/2021",30021315,305,0,"Grounds Maintenance","","II","BACS","None",2021-04-18 00:00:00,"2021","01","S236912","A1300","Trees And Countryside","B6001","Grounds Maintenance"
"GUILDFORD BOROUGH COUNCIL","Parks Countryside Management","Shorts Group Limited","1000078","11/05/2021",30021315,305,0,"Grounds Maintenance","","II","BACS","None",2021-04-18 00:00:00,"2021","01","S236912","A1300","Trees And Countryside","B6001","Grounds Maintenance"
"GUILDFORD BOROUGH COUNCIL","Crematorium","Dr A Bryett","174500","13/05/2021",30021316,5263,0,"Services","","II","BACS","None",2021-04-19 00:00:00,"2021","01","16","A1500","Crematorium","D6004","Services"
"GUILDFORD BOROUGH COUNCIL","Street Cleansing","Spaldings (UK) Ltd","761300","27/05/2021",30021317,52.45,0,"Equipment","Farming And Agricultural Equipment Suppliers","II","BACS","None",2021-04-16 00:00:00,"2021","01","SI-2668522","K4551","Street Cleansing","D2001","Equipment"
"GUILDFORD BOROUGH COUNCIL","Street Cleansing","Spaldings (UK) Ltd","761300","27/05/2021",30021317,35.2,0,"Equipment","Farming And Agricultural Equipment Suppliers","II","BACS","None",2021-04-16 00:00:00,"2021","01","SI-2668522","K4551","Street Cleansing","D2001","Equipment"
"GUILDFORD BOROUGH COUNCIL","Street Cleansing","Spaldings (UK) Ltd","761300","27/05/2021",30021317,8.8,0,"Equipment","Farming And Agricultural Equipment Suppliers","II","BACS","None",2021-04-16 00:00:00,"2021","01","SI-2668522","K4551","Street Cleansing","D2001","Equipment"
"GUILDFORD BOROUGH COUNCIL","Street Cleansing","Spaldings (UK) Ltd","761300","27/05/2021",30021317,83.4,0,"Equipment","Farming And Agricultural Equipment Suppliers","II","BACS","None",2021-04-16 00:00:00,"2021","01","SI-2668522","K4551","Street Cleansing","D2001","Equipment"
"GUILDFORD BOROUGH COUNCIL","Vehicle Maintenance","Air Products Plc","491000","06/05/2021",30021318,25.75,0,"Equipment","Other Chemical Suppliers","II","BACS","None",2021-04-13 00:00:00,"2021","01","416546575","K5551","Fleet Workshops","D2001","Equipment"
"GUILDFORD BOROUGH COUNCIL","Countryside and Parks Services","SMI Group Ltd","792570","11/05/2021",30021319,453.64,0,"Clothing & Uniform","Personal Protective Equipment (Ppe) Suppliers","II","BACS","None",2021-04-16 00:00:00,"2021","01","INV871912","A1100","Horticulture","D4001","Clothing & Uniform"
"GUILDFORD BOROUGH COUNCIL","Street Cleansing","Farnborough Communications","198500","13/05/2021",30021322,46,0,"Equipment","Radio Communications Equipment Providers","II","BACS","None",2021-04-20 00:00:00,"2021","01","5944","K4551","Street Cleansing","D2001","Equipment"
"GUILDFORD BOROUGH COUNCIL","Industrial Estates","Amiri Construction Limited","1000098","27/04/2021",30021323,862351.87,0,"Contractor Payments","","II","BACS","None",2021-04-13 00:00:00,"2021","01","1179/7","P72037","Midleton Ind Est Redevelop","1233","Contractor Payments"
"GUILDFORD BOROUGH COUNCIL","Executive - Miscellaneous","Balfour Beatty Civil Engineering Ltd","702080","27/04/2021",30021324,201548.25,0,"Consultants Fees","Civil Engineers","II","BACS","None",2021-03-04 00:00:00,"2021","01","CSUKOU/INV/102534","P79026","Internal Estate Road -Cllr Ph1","1221","Consultants Fees"
"GUILDFORD BOROUGH COUNCIL","Building Control","JJ Surveying Ltd","877460","13/05/2021",30021325,600,0,"Consultancy","Surveyors And Inspectors","II","BACS","None",2021-04-19 00:00:00,"2021","01","1286","D5700","Building Control - Fee","D6001","Consultancy"
"GUILDFORD BOROUGH COUNCIL","Countryside and Parks Services","Nomix Enviro Limited","621700","13/05/2021",30021326,59.5,0,"Grounds Maintenance","Other Chemical Suppliers","II","BACS","None",2021-04-19 00:00:00,"2021","01","SI/04420422","A1300","Trees And Countryside","B6001","Grounds Maintenance"
"GUILDFORD BOROUGH COUNCIL","Parks Countryside Management","Nomix Enviro Limited","621700","13/05/2021",30021326,59.5,0,"Grounds Maintenance","Other Chemical Suppliers","II","BACS","None",2021-04-19 00:00:00,"2021","01","SI/04420422","A1300","Trees And Countryside","B6001","Grounds Maintenance"
"GUILDFORD BOROUGH COUNCIL","Environmental Works","Forest Tree Care Ltd","892900","11/05/2021",30021327,850.5,0,"Grounds Maintenance","Tree Work Contractors","II","BACS","None",2021-04-16 00:00:00,"2021","01","1812","M4615","Env Wks To Estate (BHS)","B6001","Grounds Maintenance"
"GUILDFORD BOROUGH COUNCIL","Building Maintenance","Professional Construction Recruitment Limited","1000119","11/05/2021",30021328,464,0,"Services","","II","BACS","None",2021-04-14 00:00:00,"2021","01","135044","K1515","Building Maintenance","D6004","Services"
"GUILDFORD BOROUGH COUNCIL","Crematorium","The Yaboo Co Ltd","792870","29/04/2021",30021329,842,0,"Services","Media Production Agencies","II","BACS","None",2021-03-31 00:00:00,"2021","01","55387","A1500","Crematorium","D6004","Services"
"GUILDFORD BOROUGH COUNCIL","Building Maintenance","Surrey County Windows Ltd","686720","22/04/2021",30021330,994,0,"Services","Window And Door Installers","II","BACS","None",2021-04-16 00:00:00,"2021","01","17","K1515","Building Maintenance","D6004","Services"
"GUILDFORD BOROUGH COUNCIL","Building Maintenance","Surrey County Windows Ltd","686720","22/04/2021",30021330,2882.87,0,"Materials","Window And Door Installers","II","BACS","None",2021-04-16 00:00:00,"2021","01","17","K1515","Building Maintenance","D2003","Materials"
"GUILDFORD BOROUGH COUNCIL","Guildford House","Headline Design & Print","831730","22/04/2021",30021331,1267.4,0,"Printing, Photocopying And Reprographics External","Printing Service Providers","II","BACS","None",2021-04-19 00:00:00,"2021","01","18192","A4511","Guildford House Administration","D5005","Printing, Photocopying And Reprographics External"
"GUILDFORD BOROUGH COUNCIL","Guildford House","Bernard Sims Associates","685740","13/05/2021",30021333,700,0,"Consultancy","Health And Safety Consultants","II","BACS","None",2021-04-19 00:00:00,"2021","01","0000048855","A4511","Guildford House Administration","D6001","Consultancy"
"GUILDFORD BOROUGH COUNCIL","Building Maintenance","Davis Property Services GU Limited (CIS)","946970","22/04/2021",30021334,4915.27,0,"Services","Roofers","II","BACS","None",2021-04-15 00:00:00,"2021","01","212","K1515","Building Maintenance","D6004","Services"
"GUILDFORD BOROUGH COUNCIL","Government Short Term Debtors","Town and Country Cleaning Limited","1000136","27/04/2021",30021336,5400,0,"Debt Royalties/Commisions","","II","BACS","None",2021-04-19 00:00:00,"2021","01","24075","J01194","Elections - PCC","2445","Debt Royalties/Commisions"
"GUILDFORD BOROUGH COUNCIL","Government Short Term Debtors","Town and Country Cleaning Limited","1000136","27/04/2021",30021336,5400,0,"Debt Royalties/Commisions","","II","BACS","None",2021-04-19 00:00:00,"2021","01","24075","J01194","Elections - PCC","2445","Debt Royalties/Commisions"
"GUILDFORD BOROUGH COUNCIL","Government Short Term Debtors","Town and Country Cleaning Limited","1000136","27/04/2021",30021336,5400,0,"Polling Station Costs","","II","BACS","None",2021-04-19 00:00:00,"2021","01","24075","J01194","Elections - PCC","2445","Polling Station Costs"
"GUILDFORD BOROUGH COUNCIL","Government Short Term Debtors","Town and Country Cleaning Limited","1000136","27/04/2021",30021336,5400,0,"Debt Royalties/Commisions","","II","BACS","None",2021-04-19 00:00:00,"2021","01","24075","J01195","Elections - SCC","2445","Debt Royalties/Commisions"
"GUILDFORD BOROUGH COUNCIL","Government Short Term Debtors","Town and Country Cleaning Limited","1000136","27/04/2021",30021336,5400,0,"Debt Royalties/Commisions","","II","BACS","None",2021-04-19 00:00:00,"2021","01","24075","J01195","Elections - SCC","2445","Debt Royalties/Commisions"
"GUILDFORD BOROUGH COUNCIL","Government Short Term Debtors","Town and Country Cleaning Limited","1000136","27/04/2021",30021336,5400,0,"Polling Station Costs","","II","BACS","None",2021-04-19 00:00:00,"2021","01","24075","J01195","Elections - SCC","2445","Polling Station Costs"
"GUILDFORD BOROUGH COUNCIL","Crematorium","Nomix Enviro Limited","621700","13/05/2021",30021337,394.4,0,"Materials","Other Chemical Suppliers","II","BACS","None",2021-04-19 00:00:00,"2021","01","SI/04420421","A1500","Crematorium","D2003","Materials"
"GUILDFORD BOROUGH COUNCIL","Street Cleansing","Arton Monoseal Ltd","775190","13/05/2021",30021338,260,0,"Waste Removal","Asbestos Removal Service Providers","II","BACS","None",2021-04-20 00:00:00,"2021","01","INV-5232","K4551","Street Cleansing","D6010","Waste Removal"
"GUILDFORD BOROUGH COUNCIL","HRA Income","Rent Refunds","9999997","22/04/2021",30021339,216,0,"Rent","","II","BACS","None",2021-04-21 00:00:00,"2021","01","Sigman 100329150000","M9111","General Income","K5001","Rent"
"GUILDFORD BOROUGH COUNCIL","HRA Income","Rent Refunds","9999997","22/04/2021",30021340,36.33,0,"Rent","","II","BACS","None",2021-04-21 00:00:00,"2021","01","Macey 100105720007","M9111","General Income","K5001","Rent"
"GUILDFORD BOROUGH COUNCIL","Development Control","Portal Planquest Ltd.","1000021","22/04/2021",30021341,103,0,"Planning Fees","","II","BACS","None",2021-04-21 00:00:00,"2021","01","PP09706830v1ATN","D5100","Development Control - Fee Earn","K4006","Planning Fees"
"GUILDFORD BOROUGH COUNCIL","Development Control","Portal Planquest Ltd.","1000021","22/04/2021",30021342,34,0,"Planning Fees","","II","BACS","None",2021-04-20 00:00:00,"2021","01","PP-09743324v1LUJ","D5100","Development Control - Fee Earn","K4006","Planning Fees"
"GUILDFORD BOROUGH COUNCIL","Other Short Term Debtors","Masella Coupe Lettings","178430","22/04/2021",30021343,5970,0,"Cash Paid","Property Letting And Estate Agents","II","BACS","None",2021-04-21 00:00:00,"2021","01","James - Meadowside RIA","J01064","Housing H4U Scheme","2175","Cash Paid"
"GUILDFORD BOROUGH COUNCIL","Other Short Term Debtors","Masella Coupe Lettings","178430","22/04/2021",30021344,1790,0,"Cash Paid","Property Letting And Estate Agents","II","BACS","None",2021-04-21 00:00:00,"2021","01","Bello-Dines - Sycamore Court RIA","J01064","Housing H4U Scheme","2175","Cash Paid"
"GUILDFORD BOROUGH COUNCIL","Woking Road Depot","Water Plus Limited","988920","27/04/2021",30021347,1466.62,0,"Utilities","","II","BACS","None",2021-04-02 00:00:00,"2021","01","INVO4796413","B4452","Woking Road Depot","B2001","Utilities"
"GUILDFORD BOROUGH COUNCIL","Woking Road Depot","Water Plus Limited","988920","22/04/2021",30021348,5596.24,0,"Utilities","","II","BACS","None",2021-03-11 00:00:00,"2021","01","INVO4673803","B4452","Woking Road Depot","B2001","Utilities"
"GUILDFORD BOROUGH COUNCIL","Woking Road Depot","Water Plus Limited","988920","22/04/2021",30021349,67931.58,0,"Utilities","","II","BACS","None",2021-02-05 00:00:00,"2021","01","INVO455388","B4452","Woking Road Depot","B2001","Utilities"
"GUILDFORD BOROUGH COUNCIL","Inventories","MAGNET CKS","1000216","22/04/2021",30021350,783.17,0,"Purchases","","II","BACS","None",2021-02-15 00:00:00,"2021","01","58493079","I01001","Stocks","2591","Purchases"
"GUILDFORD BOROUGH COUNCIL","Inventories","MAGNET CKS","1000216","22/04/2021",30021351,675.11,0,"Purchases","","II","BACS","None",2021-02-16 00:00:00,"2021","01","58495886","I01001","Stocks","2591","Purchases"
"GUILDFORD BOROUGH COUNCIL","Inventories","MAGNET CKS","1000216","22/04/2021",30021353,534.96,0,"Purchases","","II","BACS","None",2021-02-22 00:00:00,"2021","01","58506484","I01001","Stocks","2591","Purchases"
"GUILDFORD BOROUGH COUNCIL","Inventories","MAGNET CKS","1000216","22/04/2021",30021355,319.8,0,"Purchases","","II","BACS","None",2021-02-22 00:00:00,"2021","01","58506488","I01001","Stocks","2591","Purchases"
"GUILDFORD BOROUGH COUNCIL","Vehicle Maintenance","Bucher Municipal Limited (formerly Johnston Sweepers Ltd)","150890","29/04/2021",30021357,2621.15,0,"Repair And Maintenance Of Vehicles","Car And Van Dealers","II","BACS","None",2021-04-06 00:00:00,"2021","01","65355585","K5551","Fleet Workshops","C1002","Repair And Maintenance Of Vehicles"
"GUILDFORD BOROUGH COUNCIL","Building Maintenance","RGB Decorating Limited (CIS)","769600","22/04/2021",30021359,6060,0,"Services","Painters And Decorators","II","BACS","None",2021-04-20 00:00:00,"2021","01","X0068120/3","K1515","Building Maintenance","D6004","Services"
"GUILDFORD BOROUGH COUNCIL","Countryside and Parks Services","FASTSIGNS (Guildford) Ltd","199300","13/05/2021",30021360,164,0,"Grounds Maintenance","Building Signage Suppliers","II","BACS","None",2021-04-19 00:00:00,"2021","01","858--17559","A1300","Trees And Countryside","B6001","Grounds Maintenance"
"GUILDFORD BOROUGH COUNCIL","Parks Countryside Management","FASTSIGNS (Guildford) Ltd","199300","13/05/2021",30021360,164,0,"Grounds Maintenance","Building Signage Suppliers","II","BACS","None",2021-04-19 00:00:00,"2021","01","858--17559","A1300","Trees And Countryside","B6001","Grounds Maintenance"
"GUILDFORD BOROUGH COUNCIL","Countryside and Parks Services","FASTSIGNS (Guildford) Ltd","199300","13/05/2021",30021360,531,0,"Grounds Maintenance","Building Signage Suppliers","II","BACS","None",2021-04-19 00:00:00,"2021","01","858--17559","A1300","Trees And Countryside","B6001","Grounds Maintenance"
"GUILDFORD BOROUGH COUNCIL","Parks Countryside Management","FASTSIGNS (Guildford) Ltd","199300","13/05/2021",30021360,531,0,"Grounds Maintenance","Building Signage Suppliers","II","BACS","None",2021-04-19 00:00:00,"2021","01","858--17559","A1300","Trees And Countryside","B6001","Grounds Maintenance"
"GUILDFORD BOROUGH COUNCIL","Countryside and Parks Services","FASTSIGNS (Guildford) Ltd","199300","13/05/2021",30021360,496.3,0,"Grounds Maintenance","Building Signage Suppliers","II","BACS","None",2021-04-19 00:00:00,"2021","01","858--17559","A1300","Trees And Countryside","B6001","Grounds Maintenance"
"GUILDFORD BOROUGH COUNCIL","Parks Countryside Management","FASTSIGNS (Guildford) Ltd","199300","13/05/2021",30021360,496.3,0,"Grounds Maintenance","Building Signage Suppliers","II","BACS","None",2021-04-19 00:00:00,"2021","01","858--17559","A1300","Trees And Countryside","B6001","Grounds Maintenance"
"GUILDFORD BOROUGH COUNCIL","Countryside and Parks Services","FASTSIGNS (Guildford) Ltd","199300","13/05/2021",30021360,159,0,"Grounds Maintenance","Building Signage Suppliers","II","BACS","None",2021-04-19 00:00:00,"2021","01","858--17559","A1300","Trees And Countryside","B6001","Grounds Maintenance"
"GUILDFORD BOROUGH COUNCIL","Parks Countryside Management","FASTSIGNS (Guildford) Ltd","199300","13/05/2021",30021360,159,0,"Grounds Maintenance","Building Signage Suppliers","II","BACS","None",2021-04-19 00:00:00,"2021","01","858--17559","A1300","Trees And Countryside","B6001","Grounds Maintenance"
"GUILDFORD BOROUGH COUNCIL","Building Maintenance","Chambers Waste Management Plc","127500","29/04/2021",30021361,3227.66,0,"Materials","Other Waste Disposal Suppliers","II","BACS","None",2021-04-11 00:00:00,"2021","01","P472517","K1515","Building Maintenance","D2003","Materials"
"GUILDFORD BOROUGH COUNCIL","Family and Refugee Support Programme","Caring Daycare - Busy Bees","1000079","22/04/2021",30021362,549,0,"Services","","II","BACS","None",2021-04-21 00:00:00,"2021","01","00009917","C3321","Refugee Support","D6004","Services"
"GUILDFORD BOROUGH COUNCIL","Family and Refugee Support Programme","Caring Daycare - Busy Bees","1000079","22/04/2021",30021362,549,0,"Services","","II","BACS","None",2021-04-21 00:00:00,"2021","01","00009917","C3321","Refugee Support","D6004","Services"
"GUILDFORD BOROUGH COUNCIL","Housing Benefits","Hbinfo Ltd","596350","04/05/2021",30021363,810,0,"Grants And Subscriptions","Other Technical Consultants","II","BACS","None",2021-02-01 00:00:00,"2021","01","S/16014","C4511","Housing Benefits Admin.","D9001","Grants And Subscriptions"
"GUILDFORD BOROUGH COUNCIL","Countryside and Parks Services","Broxap Limited","106700","13/05/2021",30021364,285.99,0,"Materials","Sheet Metal And Fabrication Suppliers","II","BACS","None",2021-04-20 00:00:00,"2021","01","INV274376","A1100","Horticulture","D2003","Materials"
"GUILDFORD BOROUGH COUNCIL","Countryside and Parks Services","Broxap Limited","106700","13/05/2021",30021364,6.95,0,"Postage","Sheet Metal And Fabrication Suppliers","II","BACS","None",2021-04-20 00:00:00,"2021","01","INV274376","A1100","Horticulture","D5003","Postage"
"GUILDFORD BOROUGH COUNCIL","Countryside and Parks Services","Broxap Limited","106700","13/05/2021",30021364,15.75,0,"Materials","Sheet Metal And Fabrication Suppliers","II","BACS","None",2021-04-20 00:00:00,"2021","01","INV274376","A1100","Horticulture","D2003","Materials"
"GUILDFORD BOROUGH COUNCIL","Countryside and Parks Services","Broxap Limited","106700","13/05/2021",30021364,66,0,"Materials","Sheet Metal And Fabrication Suppliers","II","BACS","None",2021-04-20 00:00:00,"2021","01","INV274376","A1100","Horticulture","D2003","Materials"
"GUILDFORD BOROUGH COUNCIL","Emergency Communications","Tunstall Healthcare (UK) Ltd","100310","13/05/2021",30021365,3202.64,0,"Services","Community Alarm Suppliers","II","BACS","None",2021-04-20 00:00:00,"2021","01","INV/30041715","C2511","Careline/Telecare","D6004","Services"
"GUILDFORD BOROUGH COUNCIL","Resources Caseworker","Screwfix (Trade UK - Screwfix / B&Q)","650550","13/05/2021",30021366,69.98,0,"Clothing & Uniform","Do-It-Yourself (Diy) Stores","II","BACS","None",2021-04-19 00:00:00,"2021","01","1154911675","G7511","Millmead House","D4001","Clothing & Uniform"
"GUILDFORD BOROUGH COUNCIL","Millmead House","Screwfix (Trade UK - Screwfix / B&Q)","650550","13/05/2021",30021366,69.98,0,"Clothing & Uniform","Do-It-Yourself (Diy) Stores","II","BACS","None",2021-04-19 00:00:00,"2021","01","1154911675","G7511","Millmead House","D4001","Clothing & Uniform"
"GUILDFORD BOROUGH COUNCIL","Guildford House","Pierra Ltd (CIS)","958530","27/04/2021",30021367,1250,0,"Asset Maintenance","Other Construction Contractors","II","BACS","None",2021-04-20 00:00:00,"2021","01","2823","A4511","Guildford House Administration","B1001","Asset Maintenance"
"GUILDFORD BOROUGH COUNCIL","Family and Refugee Support Programme","Caring Daycare - Busy Bees","1000079","27/04/2021",30021368,632,0,"Services","","II","BACS","None",2021-04-21 00:00:00,"2021","01","00009970","C3321","Refugee Support","D6004","Services"
"GUILDFORD BOROUGH COUNCIL","Family and Refugee Support Programme","Caring Daycare - Busy Bees","1000079","27/04/2021",30021368,632,0,"Services","","II","BACS","None",2021-04-21 00:00:00,"2021","01","00009970","C3321","Refugee Support","D6004","Services"
"GUILDFORD BOROUGH COUNCIL","Affordable Hsg - Site Prep Etc","Thames Water Utilities Ltd","171920","04/05/2021",30021369,341.3,0,"Legal Expenses","Mains Water Suppliers","II","BACS","None",2021-04-06 00:00:00,"2021","01","OSS211278227","N55034","27 Broomfield","1395","Legal Expenses"
"GUILDFORD BOROUGH COUNCIL","Building Maintenance","D G Property Refurbishment Ltd","713710","22/04/2021",30021370,1966.94,0,"Services","Restoration Specialists","II","BACS","None",2021-04-19 00:00:00,"2021","01","100","K1515","Building Maintenance","D6004","Services"
"GUILDFORD BOROUGH COUNCIL","Building Maintenance","D G Property Refurbishment Ltd","713710","22/04/2021",30021370,2000,0,"Materials","Restoration Specialists","II","BACS","None",2021-04-19 00:00:00,"2021","01","100","K1515","Building Maintenance","D2003","Materials"
"GUILDFORD BOROUGH COUNCIL","Development Control","Alexander Advertising (International) Ltd","454730","11/05/2021",30021371,581.22,0,"Advertising, Publicity & Promotion","Full Service Marketing Agencies","II","BACS","None",2021-04-16 00:00:00,"2021","01","2158R21","D5100","Development Control - Fee Earn","D5002","Advertising, Publicity & Promotion"
"GUILDFORD BOROUGH COUNCIL","Private Sector Housing Maintenance","CLA Ltd","981800","22/04/2021",30021372,80,0,"Services","","II","BACS","None",2021-04-08 00:00:00,"2021","01","310457","C5132","Care And Repair (Detr)","D6004","Services"
"GUILDFORD BOROUGH COUNCIL","Affordable Hsg - Site Prep Etc","3R Finance Ltd","1000077","13/05/2021",30021373,234.3,0,"Consultants Fees","","II","BACS","None",2021-04-19 00:00:00,"2021","01","INV-45321","N55026","Georgelands 108","1221","Consultants Fees"
"GUILDFORD BOROUGH COUNCIL","Affordable Hsg - Site Prep Etc","3R Finance Ltd","1000077","13/05/2021",30021373,234.3,0,"Consultants Fees","","II","BACS","None",2021-04-19 00:00:00,"2021","01","INV-45321","N55034","27 Broomfield","1221","Consultants Fees"
"GUILDFORD BOROUGH COUNCIL","New Build","3R Finance Ltd","1000077","13/05/2021",30021373,234.3,0,"Consultants Fees","","II","BACS","None",2021-04-19 00:00:00,"2021","01","INV-45321","N30028","Dunmore Garden Land","1221","Consultants Fees"
"GUILDFORD BOROUGH COUNCIL","Affordable Hsg - Site Prep Etc","3R Finance Ltd","1000077","13/05/2021",30021373,234.3,0,"Consultants Fees","","II","BACS","None",2021-04-19 00:00:00,"2021","01","INV-45321","N55035","17 Wharf Lane","1221","Consultants Fees"
"GUILDFORD BOROUGH COUNCIL","New Build","3R Finance Ltd","1000077","13/05/2021",30021373,234.3,0,"Consultants Fees","","II","BACS","None",2021-04-19 00:00:00,"2021","01","INV-45321","N30026","Banders Rise","1221","Consultants Fees"
"GUILDFORD BOROUGH COUNCIL","Countryside and Parks Services","FASTSIGNS (Guildford) Ltd","199300","13/05/2021",30021374,541,0,"Grounds Maintenance","Building Signage Suppliers","II","BACS","None",2021-04-19 00:00:00,"2021","01","858--17567","A1300","Trees And Countryside","B6001","Grounds Maintenance"
"GUILDFORD BOROUGH COUNCIL","Parks Countryside Management","FASTSIGNS (Guildford) Ltd","199300","13/05/2021",30021374,541,0,"Grounds Maintenance","Building Signage Suppliers","II","BACS","None",2021-04-19 00:00:00,"2021","01","858--17567","A1300","Trees And Countryside","B6001","Grounds Maintenance"
"GUILDFORD BOROUGH COUNCIL","Countryside and Parks Services","FASTSIGNS (Guildford) Ltd","199300","13/05/2021",30021374,295,0,"Grounds Maintenance","Building Signage Suppliers","II","BACS","None",2021-04-19 00:00:00,"2021","01","858--17567","A1300","Trees And Countryside","B6001","Grounds Maintenance"
"GUILDFORD BOROUGH COUNCIL","Parks Countryside Management","FASTSIGNS (Guildford) Ltd","199300","13/05/2021",30021374,295,0,"Grounds Maintenance","Building Signage Suppliers","II","BACS","None",2021-04-19 00:00:00,"2021","01","858--17567","A1300","Trees And Countryside","B6001","Grounds Maintenance"
"GUILDFORD BOROUGH COUNCIL","Countryside and Parks Services","Tudor (UK) Ltd T/A Tudor Environmental","950920","13/05/2021",30021376,698,0,"Equipment","Gardening Equipment Suppliers","II","BACS","None",2021-04-20 00:00:00,"2021","01","IN0121563","A1100","Horticulture","D2001","Equipment"
"GUILDFORD BOROUGH COUNCIL","Guildford House","Bernard Sims Associates","685740","11/05/2021",30021377,-700,0,"Consultancy","Health And Safety Consultants","II","BACS","None",2021-04-20 00:00:00,"2021","01","0000005134","A4511","Guildford House Administration","D6001","Consultancy"
"GUILDFORD BOROUGH COUNCIL","Street Cleansing","CTG Enterprises Ltd","795800","27/04/2021",30021378,999.6,0,"Services","Other Cleaning And Janitorial Service Providers","II","BACS","None",2021-04-01 00:00:00,"2021","01","GU1731GBC","K4551","Street Cleansing","D6004","Services"
"GUILDFORD BOROUGH COUNCIL","Vehicle Maintenance","Terberg Matec UK Ltd","798000","11/05/2021",30021379,1741.32,0,"Repair And Maintenance Of Vehicles","Waste Disposal Equipment Suppliers","II","BACS","None",2021-04-15 00:00:00,"2021","01","96405448","K5551","Fleet Workshops","C1002","Repair And Maintenance Of Vehicles"
"GUILDFORD BOROUGH COUNCIL","Private Sector Housing Maintenance","Royal Mail Group Ltd (Chesterfield)","878030","27/04/2021",30021380,5.28,0,"Postage","","II","BACS","None",2021-03-06 00:00:00,"2021","01","9062740209","C5132","Care And Repair (Detr)","D5003","Postage"
"GUILDFORD BOROUGH COUNCIL","Countryside and Parks Services","FASTSIGNS (Guildford) Ltd","199300","13/05/2021",30021381,146.5,0,"Equipment","Building Signage Suppliers","II","BACS","None",2021-04-19 00:00:00,"2021","01","858--17576","A1100","Horticulture","D2001","Equipment"
"GUILDFORD BOROUGH COUNCIL","Lead Specialist - Finance","Hays Specialist Recruitment Limited","156250","27/04/2021",30021383,3519,0,"Agency","Other Recruitment Agencies And Service Providers","II","BACS","None",2021-03-01 00:00:00,"2021","01","1011109109","G3565","Finance Specialists","A5191","Agency"
"GUILDFORD BOROUGH COUNCIL","Woking Road Depot","R S Components Limited","699000","29/04/2021",30021384,147.96,0,"Equipment","","II","BACS","None",2021-04-06 00:00:00,"2021","01","2202370396","B4452","Woking Road Depot","D2001","Equipment"
"GUILDFORD BOROUGH COUNCIL","Industrial Estates","Opus Energy Limited","884470","11/05/2021",30021385,815.49,0,"Utilities","Mains Electricity Suppliers","II","BACS","None",2021-04-16 00:00:00,"2021","01","70436835","B5351","Slyfield Industrial Estate","B2001","Utilities"
"GUILDFORD BOROUGH COUNCIL","Building Maintenance","D G Property Refurbishment Ltd","713710","22/04/2021",30021386,120,0,"Services","Restoration Specialists","II","BACS","None",2021-04-19 00:00:00,"2021","01","101","K1515","Building Maintenance","D6004","Services"
"GUILDFORD BOROUGH COUNCIL","Street Cleansing","Addex Group","777090","13/05/2021",30021387,356.28,0,"Equipment","Power And Hand Tool Suppliers","II","BACS","None",2021-04-20 00:00:00,"2021","01","326238","K4551","Street Cleansing","D2001","Equipment"
"GUILDFORD BOROUGH COUNCIL","Countryside and Parks Services","Tudor (UK) Ltd T/A Tudor Environmental","950920","13/05/2021",30021390,143.3,0,"Materials","Gardening Equipment Suppliers","II","BACS","None",2021-04-20 00:00:00,"2021","01","IN0121562","A1100","Horticulture","D2003","Materials"
"GUILDFORD BOROUGH COUNCIL","Countryside and Parks Services","Tudor (UK) Ltd T/A Tudor Environmental","950920","13/05/2021",30021390,160,0,"Materials","Gardening Equipment Suppliers","II","BACS","None",2021-04-20 00:00:00,"2021","01","IN0121562","A1100","Horticulture","D2003","Materials"
"GUILDFORD BOROUGH COUNCIL","Countryside and Parks Services","Sterling Hydrotech Ltd","857560","22/04/2021",30021391,199,0,"Asset Maintenance","Water Treatment Service Providers","II","BACS","None",2021-03-31 00:00:00,"2021","01","41064","A1250","Stoke Park","B1001","Asset Maintenance"
"GUILDFORD BOROUGH COUNCIL","Building Maintenance","Certsure LLP","619300","22/04/2021",30021392,41,0,"Materials","Professional Associations","II","BACS","None",2021-02-10 00:00:00,"2021","01","0086994675","K1515","Building Maintenance","D2003","Materials"
"GUILDFORD BOROUGH COUNCIL","Vehicle Maintenance","Fuller Tyres Limited","882220","13/05/2021",30021393,20,0,"Repair And Maintenance Of Vehicles","Other Vehicle Equipment Providers","II","BACS","None",2021-04-20 00:00:00,"2021","01","FTI-29805","K5551","Fleet Workshops","C1002","Repair And Maintenance Of Vehicles"
"GUILDFORD BOROUGH COUNCIL","Vehicle Maintenance","Fuller Tyres Limited","882220","13/05/2021",30021393,84,0,"Repair And Maintenance Of Vehicles","Other Vehicle Equipment Providers","II","BACS","None",2021-04-20 00:00:00,"2021","01","FTI-29805","K5551","Fleet Workshops","C1002","Repair And Maintenance Of Vehicles"
"GUILDFORD BOROUGH COUNCIL","Telephony Holding Account (Service)","EE Limited (Airtime Payments)","853640","27/04/2021",30021394,7534.13,0,"Telephones & Broadband","Mobile Communications Service Providers","II","BACS","None",2021-04-03 00:00:00,"2021","01","01286208060","G1151","Telephony Holding Account","D7004","Telephones & Broadband"
"GUILDFORD BOROUGH COUNCIL","Homelessness Support","Top Mill Limited","898090","13/05/2021",30021395,240,0,"Emergency Accomodation","Hotels","II","BACS","None",2021-04-19 00:00:00,"2021","01","4069","C3311","Homelessness","D8009","Emergency Accomodation"
"GUILDFORD BOROUGH COUNCIL","Private Sector Housing Maintenance","Chris Cory-Wright","951500","27/04/2021",30021396,35.38,0,"Services","Third Party Supplier","II","BACS","None",2021-03-17 00:00:00,"2021","01","60A","C5136","Handyperson Service","D6004","Services"
"GUILDFORD BOROUGH COUNCIL","Private Sector Housing Maintenance","Chris Cory-Wright","951500","27/04/2021",30021396,397.5,0,"Services","Third Party Supplier","II","BACS","None",2021-03-17 00:00:00,"2021","01","60A","C5136","Handyperson Service","D6004","Services"
"GUILDFORD BOROUGH COUNCIL","Investment Properties","British Gas (Payment Area 60)","412860","27/04/2021",30021397,24.73,0,"Utilities","Mains Gas Suppliers","II","BACS","None",2021-03-29 00:00:00,"2021","01","400634478","B6543","High St 5","B2001","Utilities"
"GUILDFORD BOROUGH COUNCIL","Vehicle Maintenance","HTS Spares Limited","928730","13/05/2021",30021398,100,0,"Repair And Maintenance Of Vehicles","Machinery And Engineering Parts Suppliers","II","BACS","None",2021-04-19 00:00:00,"2021","01","389484","K5551","Fleet Workshops","C1002","Repair And Maintenance Of Vehicles"
"GUILDFORD BOROUGH COUNCIL","Land Drainage","Richard Foakes","711600","22/04/2021",30021399,90,0,"Asset Maintenance","Sewerage And Drainage Service Providers","II","BACS","None",2021-04-20 00:00:00,"2021","01","9739","B5511","Land Drainage","B1001","Asset Maintenance"
"GUILDFORD BOROUGH COUNCIL","Land Drainage","Richard Foakes","711600","22/04/2021",30021399,410,0,"Asset Maintenance","Sewerage And Drainage Service Providers","II","BACS","None",2021-04-20 00:00:00,"2021","01","9739","B5511","Land Drainage","B1001","Asset Maintenance"
"GUILDFORD BOROUGH COUNCIL","Private Sector Housing Maintenance","CLA Ltd","981800","22/04/2021",30021400,90,0,"Services","","II","BACS","None",2021-04-08 00:00:00,"2021","01","310458","C5132","Care And Repair (Detr)","D6004","Services"
"GUILDFORD BOROUGH COUNCIL","Countryside and Parks Services","FASTSIGNS (Guildford) Ltd","199300","13/05/2021",30021401,334.4,0,"Grounds Maintenance","Building Signage Suppliers","II","BACS","None",2021-04-19 00:00:00,"2021","01","858--17569","A1300","Trees And Countryside","B6001","Grounds Maintenance"
"GUILDFORD BOROUGH COUNCIL","Parks Countryside Management","FASTSIGNS (Guildford) Ltd","199300","13/05/2021",30021401,334.4,0,"Grounds Maintenance","Building Signage Suppliers","II","BACS","None",2021-04-19 00:00:00,"2021","01","858--17569","A1300","Trees And Countryside","B6001","Grounds Maintenance"
"GUILDFORD BOROUGH COUNCIL","Lead Specialist - Finance","Hays Specialist Recruitment Limited","156250","27/04/2021",30021402,4500,0,"Agency","Other Recruitment Agencies And Service Providers","II","BACS","None",2021-03-01 00:00:00,"2021","01","1011109127","G3565","Finance Specialists","A5191","Agency"
"GUILDFORD BOROUGH COUNCIL","Miscellaneous Expenses","Leisure Net Solutions Ltd.","1000364","27/04/2021",30021404,1542,0,"Consultancy","","II","BACS","None",2021-04-01 00:00:00,"2021","01","7955","F7539","COVID-19","D6001","Consultancy"
"GUILDFORD BOROUGH COUNCIL","Day Services","Scattergoods Agency Ltd","742000","13/05/2021",30021405,458.9,0,"Agency","Other Recruitment Agencies And Service Providers","II","BACS","None",2021-04-20 00:00:00,"2021","01","420165","C8100","Community Hubs","A5191","Agency"
"GUILDFORD BOROUGH COUNCIL","Building Maintenance","Drain & Sewer Services","108390","27/04/2021",30021406,495,0,"Services","Sewerage And Drainage Service Providers","II","BACS","None",2020-05-11 00:00:00,"2021","01","87732","K1515","Building Maintenance","D6004","Services"
"GUILDFORD BOROUGH COUNCIL","Grants","Wealden Services Ltd (Grants only)","692280","13/05/2021",30021460,2523.76,0,"Outgoing VAT on sales to EU Member states","Property Maintenance Contractors","II","BACS","None",2021-04-20 00:00:00,"2021","01","INV-47439","N51024","BCF- Prevention Grant","1311","Outgoing VAT on sales to EU Member states"
"GUILDFORD BOROUGH COUNCIL","Grants","Wealden Services Ltd (Grants only)","692280","13/05/2021",30021460,2523.76,0,"Outgoing VAT on sales to EU Member states","Property Maintenance Contractors","II","BACS","None",2021-04-20 00:00:00,"2021","01","INV-47439","N51024","BCF- Prevention Grant","1311","Outgoing VAT on sales to EU Member states"
"GUILDFORD BOROUGH COUNCIL","Grants","Wealden Services Ltd (Grants only)","692280","13/05/2021",30021460,2523.76,0,"Grants To Private Owners","Property Maintenance Contractors","II","BACS","None",2021-04-20 00:00:00,"2021","01","INV-47439","N51024","BCF- Prevention Grant","1311","Grants To Private Owners"
"GUILDFORD BOROUGH COUNCIL","Other Short Term Creditors","Wealden Services Ltd (Grants only)","692280","13/05/2021",30021460,805.2,0,"Payments","Property Maintenance Contractors","II","BACS","None",2021-04-20 00:00:00,"2021","01","INV-47439","L02088","Care & Repair Client Fund","2489","Payments"
"GUILDFORD BOROUGH COUNCIL","Grants","Wealden Services Ltd (Grants only)","692280","13/05/2021",30021461,474,0,"Outgoing VAT on sales to EU Member states","Property Maintenance Contractors","II","BACS","None",2021-04-20 00:00:00,"2021","01","INV-47432","N51019","BCF Non Grant Expenditure","1311","Outgoing VAT on sales to EU Member states"
"GUILDFORD BOROUGH COUNCIL","Grants","Wealden Services Ltd (Grants only)","692280","13/05/2021",30021461,474,0,"Outgoing VAT on sales to EU Member states","Property Maintenance Contractors","II","BACS","None",2021-04-20 00:00:00,"2021","01","INV-47432","N51019","BCF Non Grant Expenditure","1311","Outgoing VAT on sales to EU Member states"
"GUILDFORD BOROUGH COUNCIL","Grants","Wealden Services Ltd (Grants only)","692280","13/05/2021",30021461,474,0,"Grants To Private Owners","Property Maintenance Contractors","II","BACS","None",2021-04-20 00:00:00,"2021","01","INV-47432","N51019","BCF Non Grant Expenditure","1311","Grants To Private Owners"
"GUILDFORD BOROUGH COUNCIL","Grants","Bentley Mobility Services Limited","929000","18/05/2021",30021462,1857,0,"Outgoing VAT on sales to EU Member states","Mobility Disability Equipment Suppliers","II","BACS","None",2021-04-21 00:00:00,"2021","01","27743","N51019","BCF Non Grant Expenditure","1311","Outgoing VAT on sales to EU Member states"
"GUILDFORD BOROUGH COUNCIL","Grants","Bentley Mobility Services Limited","929000","18/05/2021",30021462,1857,0,"Outgoing VAT on sales to EU Member states","Mobility Disability Equipment Suppliers","II","BACS","None",2021-04-21 00:00:00,"2021","01","27743","N51019","BCF Non Grant Expenditure","1311","Outgoing VAT on sales to EU Member states"
"GUILDFORD BOROUGH COUNCIL","Grants","Bentley Mobility Services Limited","929000","18/05/2021",30021462,1857,0,"Grants To Private Owners","Mobility Disability Equipment Suppliers","II","BACS","None",2021-04-21 00:00:00,"2021","01","27743","N51019","BCF Non Grant Expenditure","1311","Grants To Private Owners"
"GUILDFORD BOROUGH COUNCIL","HRA Income","Rent Refunds","9999997","27/04/2021",30021619,410.85,0,"Rent","","II","BACS","None",2021-04-22 00:00:00,"2021","01","Attapatto 100486560008","M9111","General Income","K5001","Rent"
"GUILDFORD BOROUGH COUNCIL","Development Control","Portal Planquest Ltd.","1000021","27/04/2021",30021621,28,0,"Planning Fees","","II","BACS","None",2021-04-22 00:00:00,"2021","01","PP09625383v1ABQ","D5100","Development Control - Fee Earn","K4006","Planning Fees"
"GUILDFORD BOROUGH COUNCIL","Building Maintenance","Revive Services (CIS)","846250","27/04/2021",30021622,2610,0,"Services","Other Cleaning And Janitorial Service Providers","II","BACS","None",2021-04-20 00:00:00,"2021","01","106","K1515","Building Maintenance","D6004","Services"
"GUILDFORD BOROUGH COUNCIL","Affordable Housing","Vivid Resourcing Limited","856800","18/05/2021",30021623,2252.5,0,"Agency","Other Recruitment Agencies And Service Providers","II","BACS","None",2021-04-21 00:00:00,"2021","01","58339","C4111","Affordable Housing Development","A5191","Agency"
"GUILDFORD BOROUGH COUNCIL","Business Improvement","Mason Frank International Limited","1000025","18/05/2021",30021624,3000,0,"Consultancy","","II","BACS","None",2021-04-22 00:00:00,"2021","01","M1000007126","G3531","Future Guildford","D6001","Consultancy"
"GUILDFORD BOROUGH COUNCIL","Audit Management","Mason Frank International Limited","1000025","18/05/2021",30021624,3000,0,"Consultancy","","II","BACS","None",2021-04-22 00:00:00,"2021","01","M1000007126","G3531","Future Guildford","D6001","Consultancy"
"GUILDFORD BOROUGH COUNCIL","Street Cleansing","Farnborough Communications","198500","13/05/2021",30021625,195,0,"Equipment","Radio Communications Equipment Providers","II","BACS","None",2021-04-20 00:00:00,"2021","01","5941","K4551","Street Cleansing","D2001","Equipment"
"GUILDFORD BOROUGH COUNCIL","Housing Benefits","Eden Brown Ltd","829540","18/05/2021",30021626,971.25,0,"Agency","Other Recruitment Agencies And Service Providers","II","BACS","None",2021-04-21 00:00:00,"2021","01","1269567","C4511","Housing Benefits Admin.","A5191","Agency"
"GUILDFORD BOROUGH COUNCIL","Refuse and Recycling","Mauser UK Ltd","161500","18/05/2021",30021627,597.1,0,"Equipment","Hospital Furniture And Equipment Suppliers","II","BACS","None",2021-04-21 00:00:00,"2021","01","21/INV005323","K3551","Refuse - Domestic","D2001","Equipment"
"GUILDFORD BOROUGH COUNCIL","Government Short Term Debtors","Ambroplastics Ltd","1000325","18/05/2021",30021628,200,0,"Count Costs","","II","BACS","None",2021-04-21 00:00:00,"2021","01","089889","J01194","Elections - PCC","2245","Count Costs"
"GUILDFORD BOROUGH COUNCIL","Government Short Term Debtors","Ambroplastics Ltd","1000325","18/05/2021",30021628,200,0,"Count Costs","","II","BACS","None",2021-04-21 00:00:00,"2021","01","089889","J01195","Elections - SCC","2245","Count Costs"
"GUILDFORD BOROUGH COUNCIL","Government Short Term Debtors","Ambroplastics Ltd","1000325","18/05/2021",30021628,7.5,0,"Postage","","II","BACS","None",2021-04-21 00:00:00,"2021","01","089889","J01194","Elections - PCC","D5003","Postage"
"GUILDFORD BOROUGH COUNCIL","Government Short Term Debtors","Ambroplastics Ltd","1000325","18/05/2021",30021628,7.5,0,"Postage","","II","BACS","None",2021-04-21 00:00:00,"2021","01","089889","J01195","Elections - SCC","D5003","Postage"
"GUILDFORD BOROUGH COUNCIL","Executive - Miscellaneous","Ashurst LLP","722840","04/05/2021",30021629,80414.6,0,"Consultants Fees","Other Legal Service Providers","II","BACS","None",2021-03-26 00:00:00,"2021","01","500059134","P79023","Guild Town Centre Regeneration","1221","Consultants Fees"
"GUILDFORD BOROUGH COUNCIL","Guildford House","Headline Design & Print","831730","13/05/2021",30021631,414,0,"Specialist Services","Printing Service Providers","II","BACS","None",2021-04-19 00:00:00,"2021","01","18193","A4511","Guildford House Administration","D6009","Specialist Services"
"GUILDFORD BOROUGH COUNCIL","Council Tax","Morgan Hunt UK Limited","729420","11/05/2021",30021632,861.38,0,"Agency","Other Recruitment Agencies And Service Providers","II","BACS","None",2021-04-18 00:00:00,"2021","01","1226458","F6141","Council Tax Collectn Expenses","A5191","Agency"
"GUILDFORD BOROUGH COUNCIL","Council Tax","Morgan Hunt UK Limited","729420","11/05/2021",30021633,944.61,0,"Agency","Other Recruitment Agencies And Service Providers","II","BACS","None",2021-04-18 00:00:00,"2021","01","1226459","F6141","Council Tax Collectn Expenses","A5191","Agency"
"GUILDFORD BOROUGH COUNCIL","New Build","Carrington West Limited","950550","18/05/2021",30021635,195,0,"Consultants Fees","Other Recruitment Agencies And Service Providers","II","BACS","None",2021-04-22 00:00:00,"2021","01","158637","N30012","Appletree Pub Site","1221","Consultants Fees"
"GUILDFORD BOROUGH COUNCIL","New Build","Carrington West Limited","950550","18/05/2021",30021635,195,0,"Consultants Fees","Other Recruitment Agencies And Service Providers","II","BACS","None",2021-04-22 00:00:00,"2021","01","158637","N30019","Ladymead/Fire Station Site","1221","Consultants Fees"
"GUILDFORD BOROUGH COUNCIL","New Build","Carrington West Limited","950550","18/05/2021",30021635,390,0,"Consultants Fees","Other Recruitment Agencies And Service Providers","II","BACS","None",2021-04-22 00:00:00,"2021","01","158637","N30027","Station Road East","1221","Consultants Fees"
"GUILDFORD BOROUGH COUNCIL","Affordable Hsg - Site Prep Etc","Carrington West Limited","950550","18/05/2021",30021635,780,0,"Consultants Fees","Other Recruitment Agencies And Service Providers","II","BACS","None",2021-04-22 00:00:00,"2021","01","158637","N55023","Clover Road Garages","1221","Consultants Fees"
"GUILDFORD BOROUGH COUNCIL","New Build","Carrington West Limited","950550","18/05/2021",30021635,390,0,"Consultants Fees","Other Recruitment Agencies And Service Providers","II","BACS","None",2021-04-22 00:00:00,"2021","01","158637","N30022","Manor House Flats","1221","Consultants Fees"
